Workbook

Sheet Skriveni (hidden)
A1: OPIS | B1: VRIJEDNOST | D1: OBRAZAC | E1: SIFRA | F1: AOP | G1: BILJESKA | H1: KNTBR | I1: DECIMALE | J1: IZNOS01 | K1: IZNOS02 | L1: IZNOS03 | M1: IZNOS04 | N1: IZNOS05 | O1: IZNOS06 | P1: IZNOS07 | Q1: IZNOS08 | R1: IZNOS09 | S1: IZNOS10 | T1: IZNOS11 | U1: IZNOS12 | V1: IZNOS13 | W1: IZNOS14 | X1: IZNOS15 | Y1: IZNOS16 | Z1: IZNOS17 | AA1: IZNOS18 | AB1: IZNOS19 | AC1: IZNOS20 | AD1: IZNOS21 | AE1: IZNOS22
A2: GOD_OBR | B2: =RefStr!F12 -> 2024 | D2: BIL | E2: 1 | F2: =Bilanca!G9 -> 1 | G2: =IF(Bilanca!H9=0,"",Bilanca!H9) ->  | H2: =J2/100*F2+2*K2/100*F2 -> 0 | I2: 0 | J2: =ROUND(Bilanca!I9,2) -> 0 | K2: =ROUND(Bilanca!J9,2) -> 0
A3: VP | B3: 777 | D3: BIL | E3: 1 | F3: =Bilanca!G10 -> 2 | G3: =IF(Bilanca!H10=0,"",Bilanca!H10) ->  | H3: =J3/100*F3+2*K3/100*F3 -> 821069.7324 | I3: 0 | J3: =ROUND(Bilanca!I10,2) -> 13185733.12 | K3: =ROUND(Bilanca!J10,2) -> 13933876.75
A4: VER | B4: 5010 | D4: BIL | E4: 1 | F4: =Bilanca!G11 -> 3 | G4: =IF(Bilanca!H11=0,"",Bilanca!H11) ->  | H4: =J4/100*F4+2*K4/100*F4 -> 16130.5923 | I4: 0 | J4: =ROUND(Bilanca!I11,2) -> 213753.07 | K4: =ROUND(Bilanca!J11,2) -> 161966.67
A5: VRSTA_IZV | B5: =IF(ISNUMBER(RefStr!C17), RefStr!C17,0) -> 10 | D5: BIL | E5: 1 | F5: =Bilanca!G12 -> 4 | G5: =IF(Bilanca!H12=0,"",Bilanca!H12) ->  | H5: 0 | I5: 0 | J5: =ROUND(Bilanca!I12,2) -> 0 | K5: =ROUND(Bilanca!J12,2) -> 0
A6: MB | B6: =RefStr!H27 -> 03361721 | D6: BIL | E6: 1 | F6: =Bilanca!G13 -> 5 | G6: =IF(Bilanca!H13=0,"",Bilanca!H13) ->  | H6: 26884.3205 | I6: 0 | J6: =ROUND(Bilanca!I13,2) -> 213753.07 | K6: =ROUND(Bilanca!J13,2) -> 161966.67
A7: MBS | B7: =RefStr!M27 -> 030026579 | D7: BIL | E7: 1 | F7: =Bilanca!G14 -> 6 | G7: =IF(Bilanca!H14=0,"",Bilanca!H14) ->  | H7: 0 | I7: 0 | J7: =ROUND(Bilanca!I14,2) -> 0 | K7: =ROUND(Bilanca!J14,2) -> 0
A8: OIB | B8: =RefStr!C27 -> 48188420009 | D8: BIL | E8: 1 | F8: =Bilanca!G15 -> 7 | G8: =IF(Bilanca!H15=0,"",Bilanca!H15) ->  | H8: 0 | I8: 0 | J8: =ROUND(Bilanca!I15,2) -> 0 | K8: =ROUND(Bilanca!J15,2) -> 0
A9: NAZIV | B9: =TRIM(RefStr!C29) -> Zračna luka Osijek d.o.o. | D9: BIL | E9: 1 | F9: =Bilanca!G16 -> 8 | G9: =IF(Bilanca!H16=0,"",Bilanca!H16) ->  | H9: 0 | I9: 0 | J9: =ROUND(Bilanca!I16,2) -> 0 | K9: =ROUND(Bilanca!J16,2) -> 0
A10: POSTA | B10: =TEXT(RefStr!C31, "00000") -> 31207 | D10: BIL | E10: 1 | F10: =Bilanca!G17 -> 9 | G10: =IF(Bilanca!H17=0,"",Bilanca!H17) ->  | H10: 0 | I10: 0 | J10: =ROUND(Bilanca!I17,2) -> 0 | K10: =ROUND(Bilanca!J17,2) -> 0
A11: MJESTO | B11: =TRIM(RefStr!F31) -> Klisa | D11: BIL | E11: 1 | F11: =Bilanca!G18 -> 10 | G11: =IF(Bilanca!H18=0,"",Bilanca!H18) ->  | H11: 4047352.733 | I11: 0 | J11: =ROUND(Bilanca!I18,2) -> 12957889.09 | K11: =ROUND(Bilanca!J18,2) -> 13757819.12
A12: ADRESA | B12: =TRIM(RefStr!C33) -> Vukovarska ulica 67 | D12: BIL | E12: 1 | F12: =Bilanca!G19 -> 11 | G12: =IF(Bilanca!H19=0,"",Bilanca!H19) ->  | H12: 671132.7436 | I12: 0 | J12: =ROUND(Bilanca!I19,2) -> 2033855.94 | K12: =ROUND(Bilanca!J19,2) -> 2033675.41
A13: E_MAIL | B13: =TRIM(RefStr!C35) -> info@osijek-airport.hr | D13: BIL | E13: 1 | F13: =Bilanca!G20 -> 12 | G13: =IF(Bilanca!H20=0,"",Bilanca!H20) ->  | H13: 2937638.842 | I13: 0 | J13: =ROUND(Bilanca!I20,2) -> 8124824.68 | K13: =ROUND(Bilanca!J20,2) -> 8177749.5
A14: WEB | B14: =TRIM(RefStr!C37) -> www.osijek-airport.hr | D14: BIL | E14: 1 | F14: =Bilanca!G21 -> 13 | G14: =IF(Bilanca!H21=0,"",Bilanca!H21) ->  | H14: 257227.5784 | I14: 0 | J14: =ROUND(Bilanca!I21,2) -> 671411.7 | K14: =ROUND(Bilanca!J21,2) -> 653630.99
A15: ZUPANIJA | B15: =TEXT(RefStr!J39,"00") -> 14 | D15: BIL | E15: 1 | F15: =Bilanca!G22 -> 14 | G15: =IF(Bilanca!H22=0,"",Bilanca!H22) ->  | H15: 160950.188 | I15: 0 | J15: =ROUND(Bilanca!I22,2) -> 419900.94 | K15: =ROUND(Bilanca!J22,2) -> 364871.63
A16: OPCINA | B16: =TEXT(RefStr!C39, "000") -> 312 | D16: BIL | E16: 1 | F16: =Bilanca!G23 -> 15 | G16: =IF(Bilanca!H23=0,"",Bilanca!H23) ->  | H16: 0 | I16: 0 | J16: =ROUND(Bilanca!I23,2) -> 0 | K16: =ROUND(Bilanca!J23,2) -> 0
A17: DJELAT | B17: =RefStr!C42 -> 5223 | D17: BIL | E17: 1 | F17: =Bilanca!G24 -> 16 | G17: =IF(Bilanca!H24=0,"",Bilanca!H24) ->  | H17: 399804.8384 | I17: 0 | J17: =ROUND(Bilanca!I24,2) -> 905945 | K17: =ROUND(Bilanca!J24,2) -> 796417.62
A18: KONS | B18: =IF(RefStr!C21<>"",RefStr!C21,"") -> NE | D18: BIL | E18: 1 | F18: =Bilanca!G25 -> 17 | G18: =IF(Bilanca!H25=0,"",Bilanca!H25) ->  | H18: 716182.4719 | I18: 0 | J18: =ROUND(Bilanca!I25,2) -> 784552.17 | K18: =ROUND(Bilanca!J25,2) -> 1714142.95
A19: REVIZIJA | B19: =IF(RefStr!I21<>"",RefStr!I21,"") -> DA | D19: BIL | E19: 1 | F19: =Bilanca!G26 -> 18 | G19: =IF(Bilanca!H26=0,"",Bilanca!H26) ->  | H19: 9370.926 | I19: 0 | J19: =ROUND(Bilanca!I26,2) -> 17398.66 | K19: =ROUND(Bilanca!J26,2) -> 17331.02
A20: SVRHA | B20: =RefStr!C19 -> 2 | D20: BIL | E20: 1 | F20: =Bilanca!G27 -> 19 | G20: =IF(Bilanca!H27=0,"",Bilanca!H27) ->  | H20: 0 | I20: 0 | J20: =ROUND(Bilanca!I27,2) -> 0 | K20: =ROUND(Bilanca!J27,2) -> 0
A21: VELICINA | B21: =IF(RefStr!C50>0,IF(RefStr!C50=1,4,RefStr!C50-1),RefStr!C50) -> 1 | D21: BIL | E21: 1 | F21: =Bilanca!G28 -> 20 | G21: =IF(Bilanca!H28=0,"",Bilanca!H28) ->  | H21: 8454.576 | I21: 0 | J21: =ROUND(Bilanca!I28,2) -> 14090.96 | K21: =ROUND(Bilanca!J28,2) -> 14090.96
A22: VLAST | B22: =RefStr!C52 -> 11 | D22: BIL | E22: 1 | F22: =Bilanca!G29 -> 21 | G22: =IF(Bilanca!H29=0,"",Bilanca!H29) ->  | H22: 0 | I22: 0 | J22: =ROUND(Bilanca!I29,2) -> 0 | K22: =ROUND(Bilanca!J29,2) -> 0
A23: KAPITALD | B23: =RefStr!C54 -> 100 | D23: BIL | E23: 1 | F23: =Bilanca!G30 -> 22 | G23: =IF(Bilanca!H30=0,"",Bilanca!H30) ->  | H23: 0 | I23: 0 | J23: =ROUND(Bilanca!I30,2) -> 0 | K23: =ROUND(Bilanca!J30,2) -> 0
A24: KAPITALS | B24: =RefStr!F54 -> 0 | D24: BIL | E24: 1 | F24: =Bilanca!G31 -> 23 | G24: =IF(Bilanca!H31=0,"",Bilanca!H31) ->  | H24: 0 | I24: 0 | J24: =ROUND(Bilanca!I31,2) -> 0 | K24: =ROUND(Bilanca!J31,2) -> 0
A25: ZAPSTANJEP | B25: =RefStr!C56 -> 50 | D25: BIL | E25: 1 | F25: =Bilanca!G32 -> 24 | G25: =IF(Bilanca!H32=0,"",Bilanca!H32) ->  | H25: 0 | I25: 0 | J25: =ROUND(Bilanca!I32,2) -> 0 | K25: =ROUND(Bilanca!J32,2) -> 0
A26: ZAPSTANJET | B26: =RefStr!F56 -> 57 | D26: BIL | E26: 1 | F26: =Bilanca!G33 -> 25 | G26: =IF(Bilanca!H33=0,"",Bilanca!H33) ->  | I26: 0 | J26: =ROUND(Bilanca!#REF!,2) ->  | K26: =ROUND(Bilanca!J33,2) -> 9210.96
A27: ZAPPROST | B27: =RefStr!C58 -> 49 | D27: BIL | E27: 1 | F27: =Bilanca!G34 -> 26 | G27: =IF(Bilanca!H34=0,"",Bilanca!H34) ->  | H27: 0 | I27: 0 | J27: =ROUND(Bilanca!I34,2) -> 0 | K27: =ROUND(Bilanca!J34,2) -> 0
A28: ZAPPROSD | B28: =RefStr!F58 -> 55 | D28: BIL | E28: 1 | F28: =Bilanca!G35 -> 27 | G28: =IF(Bilanca!H35=0,"",Bilanca!H35) ->  | H28: 2486.9592 | I28: 0 | J28: =ROUND(Bilanca!I33,2) -> 9210.96 | K28: =ROUND(Bilanca!J35,2) -> 0
A29: MJPOSLP | B29: =RefStr!C60 -> 12 | D29: BIL | E29: 1 | F29: =Bilanca!G36 -> 28 | G29: =IF(Bilanca!H36=0,"",Bilanca!H36) ->  | H29: 4099.2 | I29: 0 | J29: =ROUND(Bilanca!I36,2) -> 4880 | K29: =ROUND(Bilanca!J36,2) -> 4880
A30: MJPOSLT | B30: =RefStr!F60 -> 12 | D30: BIL | E30: 1 | F30: =Bilanca!G37 -> 29 | G30: =IF(Bilanca!H37=0,"",Bilanca!H37) ->  | H30: 0 | I30: 0 | J30: =ROUND(Bilanca!I37,2) -> 0 | K30: =ROUND(Bilanca!J37,2) -> 0
A31: PRIPMB1 | B31: 0 | D31: BIL | E31: 1 | F31: =Bilanca!G38 -> 30 | G31: =IF(Bilanca!H38=0,"",Bilanca!H38) ->  | H31: 0 | I31: 0 | J31: =ROUND(Bilanca!I38,2) -> 0 | K31: =ROUND(Bilanca!J38,2) -> 0
A32: PRIPMB2 | B32: 0 | D32: BIL | E32: 1 | F32: =Bilanca!G39 -> 31 | G32: =IF(Bilanca!H39=0,"",Bilanca!H39) ->  | H32: 0 | I32: 0 | J32: =ROUND(Bilanca!I39,2) -> 0 | K32: =ROUND(Bilanca!J39,2) -> 0
A33: PRIPMB3 | B33: 0 | D33: BIL | E33: 1 | F33: =Bilanca!G40 -> 32 | G33: =IF(Bilanca!H40=0,"",Bilanca!H40) ->  | H33: 0 | I33: 0 | J33: =ROUND(Bilanca!I40,2) -> 0 | K33: =ROUND(Bilanca!J40,2) -> 0
A34: STATMB1 | B34: 0 | D34: BIL | E34: 1 | F34: =Bilanca!G41 -> 33 | G34: =IF(Bilanca!H41=0,"",Bilanca!H41) ->  | H34: 0 | I34: 0 | J34: =ROUND(Bilanca!I41,2) -> 0 | K34: =ROUND(Bilanca!J41,2) -> 0
A35: STATMB2 | B35: 0 | D35: BIL | E35: 1 | F35: =Bilanca!G42 -> 34 | G35: =IF(Bilanca!H42=0,"",Bilanca!H42) ->  | H35: 0 | I35: 0 | J35: =ROUND(Bilanca!I42,2) -> 0 | K35: =ROUND(Bilanca!J42,2) -> 0
A36: STATMB3 | B36: 0 | D36: BIL | E36: 1 | F36: =Bilanca!G43 -> 35 | G36: =IF(Bilanca!H43=0,"",Bilanca!H43) ->  | H36: 0 | I36: 0 | J36: =ROUND(Bilanca!I43,2) -> 0 | K36: =ROUND(Bilanca!J43,2) -> 0
A37: MBSERVIS | B37: =RefStr!B64 -> 0 | D37: BIL | E37: 1 | F37: =Bilanca!G44 -> 36 | G37: =IF(Bilanca!H44=0,"",Bilanca!H44) ->  | H37: 0 | I37: 0 | J37: =ROUND(Bilanca!I44,2) -> 0 | K37: =ROUND(Bilanca!J44,2) -> 0
A38: NAZIVSERVIS | B38: =RefStr!B66 -> 0 | D38: BIL | E38: 1 | F38: =Bilanca!G45 -> 37 | G38: =IF(Bilanca!H45=0,"",Bilanca!H45) ->  | H38: 638274.4385 | I38: 0 | J38: =ROUND(Bilanca!I45,2) -> 309542.53 | K38: =ROUND(Bilanca!J45,2) -> 707761.76
A39: KONTAKT_OS | B39: =RefStr!C68 -> Katarina Jelečević | D39: BIL | E39: 1 | F39: =Bilanca!G46 -> 38 | G39: =IF(Bilanca!H46=0,"",Bilanca!H46) ->  | H39: 35235.2226 | I39: 0 | J39: =ROUND(Bilanca!I46,2) -> 25755.93 | K39: =ROUND(Bilanca!J46,2) -> 33484.17
A40: TEL | B40: =TRIM(RefStr!C70) -> 031/512-402 | D40: BIL | E40: 1 | F40: =Bilanca!G47 -> 39 | G40: =IF(Bilanca!H47=0,"",Bilanca!H47) ->  | H40: 25305.0408 | I40: 0 | J40: =ROUND(Bilanca!I47,2) -> 20129 | K40: =ROUND(Bilanca!J47,2) -> 22377.86
A41: FAX | D41: BIL | E41: 1 | F41: =Bilanca!G48 -> 40 | G41: =IF(Bilanca!H48=0,"",Bilanca!H48) ->  | H41: 0 | I41: 0 | J41: =ROUND(Bilanca!I48,2) -> 0 | K41: =ROUND(Bilanca!J48,2) -> 0
A42: KONTAKT_EMAIL | B42: =TRIM(RefStr!C72) -> katarina.jelecevic@osijek-airport.hr | D42: BIL | E42: 1 | F42: =Bilanca!G49 -> 41 | G42: =IF(Bilanca!H49=0,"",Bilanca!H49) ->  | H42: 0 | I42: 0 | J42: =ROUND(Bilanca!I49,2) -> 0 | K42: =ROUND(Bilanca!J49,2) -> 0
A43: OVL_OSOBA | B43: =TRIM(RefStr!A75) -> KOS IVAN | D43: BIL | E43: 1 | F43: =Bilanca!G50 -> 42 | G43: =IF(Bilanca!H50=0,"",Bilanca!H50) ->  | H43: 11692.611 | I43: 0 | J43: =ROUND(Bilanca!I50,2) -> 5626.93 | K43: =ROUND(Bilanca!J50,2) -> 11106.31
A44: DATUMOD | B44: =IF(RefStr!C4<>"",TEXT(RefStr!C4,"YYYYMMDD"),"") -> 20240101 | D44: BIL | E44: 1 | F44: =Bilanca!G51 -> 43 | G44: =IF(Bilanca!H51=0,"",Bilanca!H51) ->  | H44: 0 | I44: 0 | J44: =ROUND(Bilanca!I51,2) -> 0 | K44: =ROUND(Bilanca!J51,2) -> 0
A45: DATUMDO | B45: =IF(RefStr!F4<>"",TEXT(RefStr!F4,"YYYYMMDD"),"") -> 20241231 | D45: BIL | E45: 1 | F45: =Bilanca!G52 -> 44 | G45: =IF(Bilanca!H52=0,"",Bilanca!H52) ->  | H45: 0 | I45: 0 | J45: =ROUND(Bilanca!I52,2) -> 0 | K45: =ROUND(Bilanca!J52,2) -> 0
A46: IMABIL | B46: =IF(Bilanca!Q1<>0,"DA", "NE") -> DA | D46: BIL | E46: 1 | F46: =Bilanca!G53 -> 45 | G46: =IF(Bilanca!H53=0,"",Bilanca!H53) ->  | H46: 0 | I46: 0 | J46: =ROUND(Bilanca!I53,2) -> 0 | K46: =ROUND(Bilanca!J53,2) -> 0
A47: IMARDG | B47: =IF(RDG!Q1<>0, "DA","NE") -> DA | D47: BIL | E47: 1 | F47: =Bilanca!G54 -> 46 | G47: =IF(Bilanca!H54=0,"",Bilanca!H54) ->  | H47: 396681.9384 | I47: 0 | J47: =ROUND(Bilanca!I54,2) -> 232882.22 | K47: =ROUND(Bilanca!J54,2) -> 314734.91
A48: IMADOD | B48: =RefStr!I54 -> NE | D48: BIL | E48: 1 | F48: =Bilanca!G55 -> 47 | G48: =IF(Bilanca!H55=0,"",Bilanca!H55) ->  | H48: 0 | I48: 0 | J48: =ROUND(Bilanca!I55,2) -> 0 | K48: =ROUND(Bilanca!J55,2) -> 0
A49: IMANTI | B49: =IF(NT_I!Q1<>0,"DA","NE") -> NE | D49: BIL | E49: 1 | F49: =Bilanca!G56 -> 48 | G49: =IF(Bilanca!H56=0,"",Bilanca!H56) ->  | H49: 0 | I49: 0 | J49: =ROUND(Bilanca!I56,2) -> 0 | K49: =ROUND(Bilanca!J56,2) -> 0
A50: IMANTD | B50: =IF(NT_D!Q1<>0, "DA", "NE") -> NE | D50: BIL | E50: 1 | F50: =Bilanca!G57 -> 49 | G50: =IF(Bilanca!H57=0,"",Bilanca!H57) ->  | H50: 345232.2881 | I50: 0 | J50: =ROUND(Bilanca!I57,2) -> 189519.47 | K50: =ROUND(Bilanca!J57,2) -> 257518.11
A51: IMAPK | B51: =RefStr!I60 -> NE | D51: BIL | E51: 1 | F51: =Bilanca!G58 -> 50 | G51: =IF(Bilanca!H58=0,"",Bilanca!H58) ->  | H51: 0 | I51: 0 | J51: =ROUND(Bilanca!I58,2) -> 0 | K51: =ROUND(Bilanca!J58,2) -> 0
A52: IMALM | B52: NE | D52: BIL | E52: 1 | F52: =Bilanca!G59 -> 51 | G52: =IF(Bilanca!H59=0,"",Bilanca!H59) ->  | H52: 66877.6056 | I52: 0 | J52: =ROUND(Bilanca!I59,2) -> 37092.46 | K52: =ROUND(Bilanca!J59,2) -> 47020.05
A53: IMABILJ | B53: =RefStr!I56 -> DA | D53: BIL | E53: 1 | F53: =Bilanca!G60 -> 52 | G53: =IF(Bilanca!H60=0,"",Bilanca!H60) ->  | H53: 13865.1708 | I53: 0 | J53: =ROUND(Bilanca!I60,2) -> 6270.29 | K53: =ROUND(Bilanca!J60,2) -> 10196.75
A54: IMAREVIZ | B54: =RefStr!I62 -> DA | D54: BIL | E54: 1 | F54: =Bilanca!G61 -> 53 | G54: =IF(Bilanca!H61=0,"",Bilanca!H61) ->  | H54: 0 | I54: 0 | J54: =ROUND(Bilanca!I61,2) -> 0 | K54: =ROUND(Bilanca!J61,2) -> 0
A55: IMAGODIZV | B55: =RefStr!I64 -> NE | D55: BIL | E55: 1 | F55: =Bilanca!G62 -> 54 | G55: =IF(Bilanca!H62=0,"",Bilanca!H62) ->  | H55: 0 | I55: 0 | J55: =ROUND(Bilanca!I62,2) -> 0 | K55: =ROUND(Bilanca!J62,2) -> 0
A56: IMAODLRASP | B56: =RefStr!I66 -> DA | D56: BIL | E56: 1 | F56: =Bilanca!G63 -> 55 | G56: =IF(Bilanca!H63=0,"",Bilanca!H63) ->  | H56: 0 | I56: 0 | J56: =ROUND(Bilanca!I63,2) -> 0 | K56: =ROUND(Bilanca!J63,2) -> 0
A57: IMAODLUTVR | B57: =RefStr!I68 -> DA | D57: BIL | E57: 1 | F57: =Bilanca!G64 -> 56 | G57: =IF(Bilanca!H64=0,"",Bilanca!H64) ->  | H57: 0 | I57: 0 | J57: =ROUND(Bilanca!I64,2) -> 0 | K57: =ROUND(Bilanca!J64,2) -> 0
A58: KONTROLIRAN | B58: =IF(Kont!J4>0,"NE", "DA") -> DA | D58: BIL | E58: 1 | F58: =Bilanca!G65 -> 57 | G58: =IF(Bilanca!H65=0,"",Bilanca!H65) ->  | H58: 0 | I58: 0 | J58: =ROUND(Bilanca!I65,2) -> 0 | K58: =ROUND(Bilanca!J65,2) -> 0
A59: KTR_BROJ | B59: =ROUND(SUM(H2:H448)+SUM(RefStr!Q9:Q65),2) ->  | D59: BIL | E59: 1 | F59: =Bilanca!G66 -> 58 | G59: =IF(Bilanca!H66=0,"",Bilanca!H66) ->  | H59: 0 | I59: 0 | J59: =ROUND(Bilanca!I66,2) -> 0 | K59: =ROUND(Bilanca!J66,2) -> 0
A60: SIF_OBL_ORG | B60: 0 | D60: BIL | E60: 1 | F60: =Bilanca!G67 -> 59 | G60: =IF(Bilanca!H67=0,"",Bilanca!H67) ->  | H60: 0 | I60: 0 | J60: =ROUND(Bilanca!I67,2) -> 0 | K60: =ROUND(Bilanca!J67,2) -> 0
A61: KTR_LISTAMB | B61: 0 | D61: BIL | E61: 1 | F61: =Bilanca!G68 -> 60 | G61: =IF(Bilanca!H68=0,"",Bilanca!H68) ->  | H61: 0 | I61: 0 | J61: =ROUND(Bilanca!I68,2) -> 0 | K61: =ROUND(Bilanca!J68,2) -> 0
A62: IMANSTD | B62: =RefStr!I70 -> 0 | D62: BIL | E62: 1 | F62: =Bilanca!G69 -> 61 | G62: =IF(Bilanca!H69=0,"",Bilanca!H69) ->  | H62: 0 | I62: 0 | J62: =ROUND(Bilanca!I69,2) -> 0 | K62: =ROUND(Bilanca!J69,2) -> 0
A63: REV_OIB | B63: =IF(ISNUMBER(VALUE(RefStr!L21)),TEXT(INT(VALUE(RefStr!L21)),"00000000000"),"") -> 39806187636 | D63: BIL | E63: 1 | F63: =Bilanca!G70 -> 62 | G63: =IF(Bilanca!H70=0,"",Bilanca!H70) ->  | H63: 0 | I63: 0 | J63: =ROUND(Bilanca!I70,2) -> 0 | K63: =ROUND(Bilanca!J70,2) -> 0
A64: PRIHOD_NULA | B64: =RefStr!N6 -> DA | D64: BIL | E64: 1 | F64: =Bilanca!G71 -> 63 | G64: =IF(Bilanca!H71=0,"",Bilanca!H71) ->  | H64: 485093.5362 | I64: 0 | J64: =ROUND(Bilanca!I71,2) -> 50904.38 | K64: =ROUND(Bilanca!J71,2) -> 359542.68
A65: STANDARDI | B65: =TRIM(RefStr!N19) -> MSFI | D65: BIL | E65: 1 | F65: =Bilanca!G72 -> 64 | G65: =IF(Bilanca!H72=0,"",Bilanca!H72) ->  | H65: 100520.5696 | I65: 0 | J65: =ROUND(Bilanca!I72,2) -> 104844.53 | K65: =ROUND(Bilanca!J72,2) -> 26109.43
A66: VRSTA_NEFIN | B66: =RefStr!C23 -> 1 | D66: BIL | E66: 1 | F66: =Bilanca!G73 -> 65 | G66: =IF(Bilanca!H73=0,"",Bilanca!H73) ->  | H66: 27908150.44 | I66: 0 | J66: =ROUND(Bilanca!I73,2) -> 13600120.18 | K66: =ROUND(Bilanca!J73,2) -> 14667747.94
A67: TEL_OBV | B67: =TRIM(RefStr!L35) -> 031/514-402 | D67: BIL | E67: 1 | F67: =Bilanca!G74 -> 66 | G67: =IF(Bilanca!H74=0,"",Bilanca!H74) ->  | H67: 0 | I67: 0 | J67: =ROUND(Bilanca!I74,2) -> 0 | K67: =ROUND(Bilanca!J74,2) -> 0
A68: AUTONOMNOST | B68: =RefStr!C44 -> 1 | D68: BIL | E68: 1 | F68: =Bilanca!G76 -> 67 | G68: =IF(Bilanca!H76=0,"",Bilanca!H76) ->  | H68: =J68/100*F68+2*K68/100*F68 -> 2085887.054 | I68: 0 | J68: =ROUND(Bilanca!I76,2) -> 812816.6 | K68: =ROUND(Bilanca!J76,2) -> 1150223.83
A69: MB_MATICE | B69: =TRIM(RefStr!M46) ->  | D69: BIL | E69: 1 | F69: =Bilanca!G77 -> 68 | G69: =IF(Bilanca!H77=0,"",Bilanca!H77) ->  | H69: 7095120 | I69: 0 | J69: =ROUND(Bilanca!I77,2) -> 3478000 | K69: =ROUND(Bilanca!J77,2) -> 3478000
A70: DRZAVA_MATICE | B70: =RefStr!C46 -> 0 | D70: BIL | E70: 1 | F70: =Bilanca!G78 -> 69 | G70: =IF(Bilanca!H78=0,"",Bilanca!H78) ->  | H70: 0 | I70: 0 | J70: =ROUND(Bilanca!I78,2) -> 0 | K70: =ROUND(Bilanca!J78,2) -> 0
A71: OZNAKA_VALUTE | B71: =IF(YEAR(RefStr!F4)>2022,"EUR","HRK") -> EUR | D71: BIL | E71: 1 | F71: =Bilanca!G79 -> 70 | G71: =IF(Bilanca!H79=0,"",Bilanca!H79) ->  | H71: 0 | I71: 0 | J71: =ROUND(Bilanca!I79,2) -> 0 | K71: =ROUND(Bilanca!J79,2) -> 0
A72: PRIHOD_NULA_PR | B72: =RefStr!N7 -> DA | D72: BIL | E72: 1 | F72: =Bilanca!G80 -> 71 | G72: =IF(Bilanca!H80=0,"",Bilanca!H80) ->  | H72: 0 | I72: 0 | J72: =ROUND(Bilanca!I80,2) -> 0 | K72: =ROUND(Bilanca!J80,2) -> 0
A73: OZNAKA_BRISANJA | B73: =RefStr!G6 -> NE | D73: BIL | E73: 1 | F73: =Bilanca!G81 -> 72 | G73: =IF(Bilanca!H81=0,"",Bilanca!H81) ->  | H73: 0 | I73: 0 | J73: =ROUND(Bilanca!I81,2) -> 0 | K73: =ROUND(Bilanca!J81,2) -> 0
D74: BIL | E74: 1 | F74: =Bilanca!G82 -> 73 | G74: =IF(Bilanca!H82=0,"",Bilanca!H82) ->  | H74: 0 | I74: 0 | J74: =ROUND(Bilanca!I82,2) -> 0 | K74: =ROUND(Bilanca!J82,2) -> 0
D75: BIL | E75: 1 | F75: =Bilanca!G83 -> 74 | G75: =IF(Bilanca!H83=0,"",Bilanca!H83) ->  | H75: 0 | I75: 0 | J75: =ROUND(Bilanca!I83,2) -> 0 | K75: =ROUND(Bilanca!J83,2) -> 0
D76: BIL | E76: 1 | F76: =Bilanca!G84 -> 75 | G76: =IF(Bilanca!H84=0,"",Bilanca!H84) ->  | H76: 0 | I76: 0 | J76: =ROUND(Bilanca!I84,2) -> 0 | K76: =ROUND(Bilanca!J84,2) -> 0
D77: BIL | E77: 1 | F77: =Bilanca!G85 -> 76 | G77: =IF(Bilanca!H85=0,"",Bilanca!H85) ->  | H77: 0 | I77: 0 | J77: =ROUND(Bilanca!I85,2) -> 0 | K77: =ROUND(Bilanca!J85,2) -> 0
D78: BIL | E78: 1 | F78: =Bilanca!G86 -> 77 | G78: =IF(Bilanca!H86=0,"",Bilanca!H86) ->  | H78: 0 | I78: 0 | J78: =ROUND(Bilanca!I86,2) -> 0 | K78: =ROUND(Bilanca!J86,2) -> 0
D79: BIL | E79: 1 | F79: =Bilanca!G87 -> 78 | G79: =IF(Bilanca!H87=0,"",Bilanca!H87) ->  | H79: 0 | I79: 0 | J79: =ROUND(Bilanca!I87,2) -> 0 | K79: =ROUND(Bilanca!J87,2) -> 0
D80: BIL | E80: 1 | F80: =Bilanca!G88 -> 79 | G80: =IF(Bilanca!H88=0,"",Bilanca!H88) ->  | H80: 0 | I80: 0 | J80: =ROUND(Bilanca!I88,2) -> 0 | K80: =ROUND(Bilanca!J88,2) -> 0
D81: BIL | E81: 1 | F81: =Bilanca!G89 -> 80 | G81: =IF(Bilanca!H89=0,"",Bilanca!H89) ->  | H81: 0 | I81: 0 | J81: =ROUND(Bilanca!I89,2) -> 0 | K81: =ROUND(Bilanca!J89,2) -> 0
D82: BIL | E82: 1 | F82: =Bilanca!G90 -> 81 | G82: =IF(Bilanca!H90=0,"",Bilanca!H90) ->  | H82: 0 | I82: 0 | J82: =ROUND(Bilanca!I90,2) -> 0 | K82: =ROUND(Bilanca!J90,2) -> 0
D83: BIL | E83: 1 | F83: =Bilanca!G91 -> 82 | G83: =IF(Bilanca!H91=0,"",Bilanca!H91) ->  | H83: 0 | I83: 0 | J83: =ROUND(Bilanca!I91,2) -> 0 | K83: =ROUND(Bilanca!J91,2) -> 0
D84: BIL | E84: 1 | F84: =Bilanca!G92 -> 83 | G84: =IF(Bilanca!H92=0,"",Bilanca!H92) ->  | H84: =J84/100*F84+2*K84/100*F84 -> 0 | I84: 0 | J84: =ROUND(Bilanca!I92,2) -> 0 | K84: =ROUND(Bilanca!J92,2) -> 0
D85: BIL | E85: 1 | F85: =Bilanca!G93 -> 84 | G85: =IF(Bilanca!H93=0,"",Bilanca!H93) ->  | H85: -6112017.744 | I85: 0 | J85: =ROUND(Bilanca!I93,2) -> -1945844.8 | K85: =ROUND(Bilanca!J93,2) -> -2665183.4
D86: BIL | E86: 1 | F86: =Bilanca!G94 -> 85 | G86: =IF(Bilanca!H94=0,"",Bilanca!H94) ->  | H86: 0 | I86: 0 | J86: =ROUND(Bilanca!I94,2) -> 0 | K86: =ROUND(Bilanca!J94,2) -> 0
D87: BIL | E87: 1 | F87: =Bilanca!G95 -> 86 | G87: =IF(Bilanca!H95=0,"",Bilanca!H95) ->  | H87: 6257541.976 | I87: 0 | J87: =ROUND(Bilanca!I95,2) -> 1945844.8 | K87: =ROUND(Bilanca!J95,2) -> 2665183.4
D88: BIL | E88: 1 | F88: =Bilanca!G96 -> 87 | G88: =IF(Bilanca!H96=0,"",Bilanca!H96) ->  | H88: -38736.0018 | I88: 0 | J88: =ROUND(Bilanca!I96,2) -> -719338.6 | K88: =ROUND(Bilanca!J96,2) -> 337407.23
D89: BIL | E89: 1 | F89: =Bilanca!G97 -> 88 | G89: =IF(Bilanca!H97=0,"",Bilanca!H97) ->  | H89: 593836.7248 | I89: 0 | J89: =ROUND(Bilanca!I97,2) -> 0 | K89: =ROUND(Bilanca!J97,2) -> 337407.23
D90: BIL | E90: 1 | F90: =Bilanca!G98 -> 89 | G90: =IF(Bilanca!H98=0,"",Bilanca!H98) ->  | H90: 640211.354 | I90: 0 | J90: =ROUND(Bilanca!I98,2) -> 719338.6 | K90: =ROUND(Bilanca!J98,2) -> 0
D91: BIL | E91: 1 | F91: =Bilanca!G99 -> 90 | G91: =IF(Bilanca!H99=0,"",Bilanca!H99) ->  | H91: 0 | I91: 0 | J91: =ROUND(Bilanca!I99,2) -> 0 | K91: =ROUND(Bilanca!J99,2) -> 0
D92: BIL | E92: 1 | F92: =Bilanca!G100 -> 91 | G92: =IF(Bilanca!H100=0,"",Bilanca!H100) ->  | H92: 59517.4398 | I92: 0 | J92: =ROUND(Bilanca!I100,2) -> 22102.96 | K92: =ROUND(Bilanca!J100,2) -> 21650.41
D93: BIL | E93: 1 | F93: =Bilanca!G101 -> 92 | G93: =IF(Bilanca!H101=0,"",Bilanca!H101) ->  | H93: 0 | I93: 0 | J93: =ROUND(Bilanca!I101,2) -> 0 | K93: =ROUND(Bilanca!J101,2) -> 0
D94: BIL | E94: 1 | F94: =Bilanca!G102 -> 93 | G94: =IF(Bilanca!H102=0,"",Bilanca!H102) ->  | H94: 0 | I94: 0 | J94: =ROUND(Bilanca!I102,2) -> 0 | K94: =ROUND(Bilanca!J102,2) -> 0
D95: BIL | E95: 1 | F95: =Bilanca!G103 -> 94 | G95: =IF(Bilanca!H103=0,"",Bilanca!H103) ->  | H95: 61479.5532 | I95: 0 | J95: =ROUND(Bilanca!I103,2) -> 22102.96 | K95: =ROUND(Bilanca!J103,2) -> 21650.41
D96: BIL | E96: 1 | F96: =Bilanca!G104 -> 95 | G96: =IF(Bilanca!H104=0,"",Bilanca!H104) ->  | H96: 0 | I96: 0 | J96: =ROUND(Bilanca!I104,2) -> 0 | K96: =ROUND(Bilanca!J104,2) -> 0
D97: BIL | E97: 1 | F97: =Bilanca!G105 -> 96 | G97: =IF(Bilanca!H105=0,"",Bilanca!H105) ->  | H97: 0 | I97: 0 | J97: =ROUND(Bilanca!I105,2) -> 0 | K97: =ROUND(Bilanca!J105,2) -> 0
D98: BIL | E98: 1 | F98: =Bilanca!G106 -> 97 | G98: =IF(Bilanca!H106=0,"",Bilanca!H106) ->  | H98: 0 | I98: 0 | J98: =ROUND(Bilanca!I106,2) -> 0 | K98: =ROUND(Bilanca!J106,2) -> 0
D99: BIL | E99: 1 | F99: =Bilanca!G107 -> 98 | G99: =IF(Bilanca!H107=0,"",Bilanca!H107) ->  | H99: 8236336.912 | I99: 0 | J99: =ROUND(Bilanca!I107,2) -> 2959653.22 | K99: =ROUND(Bilanca!J107,2) -> 2722386.1
D100: BIL | E100: 1 | F100: =Bilanca!G108 -> 99 | G100: =IF(Bilanca!H108=0,"",Bilanca!H108) ->  | H100: 0 | I100: 0 | J100: =ROUND(Bilanca!I108,2) -> 0 | K100: =ROUND(Bilanca!J108,2) -> 0
D101: BIL | E101: 1 | F101: =Bilanca!G109 -> 100 | G101: =IF(Bilanca!H109=0,"",Bilanca!H109) ->  | H101: 0 | I101: 0 | J101: =ROUND(Bilanca!I109,2) -> 0 | K101: =ROUND(Bilanca!J109,2) -> 0
D102: BIL | E102: 1 | F102: =Bilanca!G110 -> 101 | G102: =IF(Bilanca!H110=0,"",Bilanca!H110) ->  | H102: 0 | I102: 0 | J102: =ROUND(Bilanca!I110,2) -> 0 | K102: =ROUND(Bilanca!J110,2) -> 0
D103: BIL | E103: 1 | F103: =Bilanca!G111 -> 102 | G103: =IF(Bilanca!H111=0,"",Bilanca!H111) ->  | H103: 0 | I103: 0 | J103: =ROUND(Bilanca!I111,2) -> 0 | K103: =ROUND(Bilanca!J111,2) -> 0
D104: BIL | E104: 1 | F104: =Bilanca!G112 -> 103 | G104: =IF(Bilanca!H112=0,"",Bilanca!H112) ->  | H104: 0 | I104: 0 | J104: =ROUND(Bilanca!I112,2) -> 0 | K104: =ROUND(Bilanca!J112,2) -> 0
D105: BIL | E105: 1 | F105: =Bilanca!G113 -> 104 | G105: =IF(Bilanca!H113=0,"",Bilanca!H113) ->  | H105: 8692064.337 | I105: 0 | J105: =ROUND(Bilanca!I113,2) -> 2936317.59 | K105: =ROUND(Bilanca!J113,2) -> 2710718.29
D106: BIL | E106: 1 | F106: =Bilanca!G114 -> 105 | G106: =IF(Bilanca!H114=0,"",Bilanca!H114) ->  | H106: 0 | I106: 0 | J106: =ROUND(Bilanca!I114,2) -> 0 | K106: =ROUND(Bilanca!J114,2) -> 0
D107: BIL | E107: 1 | F107: =Bilanca!G115 -> 106 | G107: =IF(Bilanca!H115=0,"",Bilanca!H115) ->  | H107: 0 | I107: 0 | J107: =ROUND(Bilanca!I115,2) -> 0 | K107: =ROUND(Bilanca!J115,2) -> 0
D108: BIL | E108: 1 | F108: =Bilanca!G116 -> 107 | G108: =IF(Bilanca!H116=0,"",Bilanca!H116) ->  | H108: 0 | I108: 0 | J108: =ROUND(Bilanca!I116,2) -> 0 | K108: =ROUND(Bilanca!J116,2) -> 0
D109: BIL | E109: 1 | F109: =Bilanca!G117 -> 108 | G109: =IF(Bilanca!H117=0,"",Bilanca!H117) ->  | H109: 50404.95 | I109: 0 | J109: =ROUND(Bilanca!I117,2) -> 23335.63 | K109: =ROUND(Bilanca!J117,2) -> 11667.81
D110: BIL | E110: 1 | F110: =Bilanca!G118 -> 109 | G110: =IF(Bilanca!H118=0,"",Bilanca!H118) ->  | H110: 0 | I110: 0 | J110: =ROUND(Bilanca!I118,2) -> 0 | K110: =ROUND(Bilanca!J118,2) -> 0
D111: BIL | E111: 1 | F111: =Bilanca!G119 -> 110 | G111: =IF(Bilanca!H119=0,"",Bilanca!H119) ->  | H111: 1941758.577 | I111: 0 | J111: =ROUND(Bilanca!I119,2) -> 417850.17 | K111: =ROUND(Bilanca!J119,2) -> 673692.45
D112: BIL | E112: 1 | F112: =Bilanca!G120 -> 111 | G112: =IF(Bilanca!H120=0,"",Bilanca!H120) ->  | H112: 0 | I112: 0 | J112: =ROUND(Bilanca!I120,2) -> 0 | K112: =ROUND(Bilanca!J120,2) -> 0
D113: BIL | E113: 1 | F113: =Bilanca!G121 -> 112 | G113: =IF(Bilanca!H121=0,"",Bilanca!H121) ->  | H113: 0 | I113: 0 | J113: =ROUND(Bilanca!I121,2) -> 0 | K113: =ROUND(Bilanca!J121,2) -> 0
D114: BIL | E114: 1 | F114: =Bilanca!G122 -> 113 | G114: =IF(Bilanca!H122=0,"",Bilanca!H122) ->  | H114: 0 | I114: 0 | J114: =ROUND(Bilanca!I122,2) -> 0 | K114: =ROUND(Bilanca!J122,2) -> 0
D115: BIL | E115: 1 | F115: =Bilanca!G123 -> 114 | G115: =IF(Bilanca!H123=0,"",Bilanca!H123) ->  | H115: 0 | I115: 0 | J115: =ROUND(Bilanca!I123,2) -> 0 | K115: =ROUND(Bilanca!J123,2) -> 0
D116: BIL | E116: 1 | F116: =Bilanca!G124 -> 115 | G116: =IF(Bilanca!H124=0,"",Bilanca!H124) ->  | H116: 0 | I116: 0 | J116: =ROUND(Bilanca!I124,2) -> 0 | K116: =ROUND(Bilanca!J124,2) -> 0
D117: BIL | E117: 1 | F117: =Bilanca!G125 -> 116 | G117: =IF(Bilanca!H125=0,"",Bilanca!H125) ->  | H117: 611765.1384 | I117: 0 | J117: =ROUND(Bilanca!I125,2) -> 38792.22 | K117: =ROUND(Bilanca!J125,2) -> 244295.76
D118: BIL | E118: 1 | F118: =Bilanca!G126 -> 117 | G118: =IF(Bilanca!H126=0,"",Bilanca!H126) ->  | H118: 37581.8274 | I118: 0 | J118: =ROUND(Bilanca!I126,2) -> 8623.52 | K118: =ROUND(Bilanca!J126,2) -> 11748.85
D119: BIL | E119: 1 | F119: =Bilanca!G127 -> 118 | G119: =IF(Bilanca!H127=0,"",Bilanca!H127) ->  | H119: 467788.8868 | I119: 0 | J119: =ROUND(Bilanca!I127,2) -> 129118.78 | K119: =ROUND(Bilanca!J127,2) -> 133656.24
D120: BIL | E120: 1 | F120: =Bilanca!G128 -> 119 | G120: =IF(Bilanca!H128=0,"",Bilanca!H128) ->  | H120: 0 | I120: 0 | J120: =ROUND(Bilanca!I128,2) -> 0 | K120: =ROUND(Bilanca!J128,2) -> 0
D121: BIL | E121: 1 | F121: =Bilanca!G129 -> 120 | G121: =IF(Bilanca!H129=0,"",Bilanca!H129) ->  | H121: 246868.308 | I121: 0 | J121: =ROUND(Bilanca!I129,2) -> 52081.83 | K121: =ROUND(Bilanca!J129,2) -> 76820.88
D122: BIL | E122: 1 | F122: =Bilanca!G130 -> 121 | G122: =IF(Bilanca!H130=0,"",Bilanca!H130) ->  | H122: 123017.796 | I122: 0 | J122: =ROUND(Bilanca!I130,2) -> 28200.06 | K122: =ROUND(Bilanca!J130,2) -> 36733.77
D123: BIL | E123: 1 | F123: =Bilanca!G131 -> 122 | G123: =IF(Bilanca!H131=0,"",Bilanca!H131) ->  | H123: 0 | I123: 0 | J123: =ROUND(Bilanca!I131,2) -> 0 | K123: =ROUND(Bilanca!J131,2) -> 0
D124: BIL | E124: 1 | F124: =Bilanca!G132 -> 123 | G124: =IF(Bilanca!H132=0,"",Bilanca!H132) ->  | H124: 0 | I124: 0 | J124: =ROUND(Bilanca!I132,2) -> 0 | K124: =ROUND(Bilanca!J132,2) -> 0
D125: BIL | E125: 1 | F125: =Bilanca!G133 -> 124 | G125: =IF(Bilanca!H133=0,"",Bilanca!H133) ->  | H125: 622365.4984 | I125: 0 | J125: =ROUND(Bilanca!I133,2) -> 161033.76 | K125: =ROUND(Bilanca!J133,2) -> 170436.95
D126: BIL | E126: 1 | F126: =Bilanca!G134 -> 125 | G126: =IF(Bilanca!H134=0,"",Bilanca!H134) ->  | H126: 36984109.41 | I126: 0 | J126: =ROUND(Bilanca!I134,2) -> 9387697.23 | K126: =ROUND(Bilanca!J134,2) -> 10099795.15
D127: BIL | E127: 1 | F127: =Bilanca!G135 -> 126 | G127: =IF(Bilanca!H135=0,"",Bilanca!H135) ->  | H127: 54098876.24 | I127: 0 | J127: =ROUND(Bilanca!I135,2) -> 13600120.18 | K127: =ROUND(Bilanca!J135,2) -> 14667747.94
D128: BIL | E128: 1 | F128: =Bilanca!G136 -> 127 | G128: =IF(Bilanca!H136=0,"",Bilanca!H136) ->  | H128: 0 | I128: 0 | J128: =ROUND(Bilanca!I136,2) -> 0 | K128: =ROUND(Bilanca!J136,2) -> 0
D129: RDG | E129: 2 | F129: =RDG!G8 -> 128 | G129: =IF(RDG!H8=0,"",RDG!H8) ->  | H129: =J129/100*F129+2*K129/100*F129 -> 13558630.67 | I129: 0 | J129: =ROUND(RDG!I8,2) -> 2963897.89 | K129: =ROUND(RDG!J8,2) -> 3814391.16
D130: RDG | E130: 2 | F130: =RDG!G9 -> 129 | G130: =IF(RDG!H9=0,"",RDG!H9) ->  | H130: =J130/100*F130+2*K130/100*F130 -> 0 | I130: 0 | J130: =ROUND(RDG!I9,2) -> 0 | K130: =ROUND(RDG!J9,2) -> 0
D131: RDG | E131: 2 | F131: =RDG!G10 -> 130 | G131: =IF(RDG!H10=0,"",RDG!H10) ->  | H131: =J131/100*F131+2*K131/100*F131 -> 4787452.709 | I131: 0 | J131: =ROUND(RDG!I10,2) -> 1087059.73 | K131: =ROUND(RDG!J10,2) -> 1297798.1
D132: RDG | E132: 2 | F132: =RDG!G11 -> 131 | G132: =IF(RDG!H11=0,"",RDG!H11) ->  | H132: 0 | I132: 0 | J132: =ROUND(RDG!I11,2) -> 0 | K132: =ROUND(RDG!J11,2) -> 0
D133: RDG | E133: 2 | F133: =RDG!G12 -> 132 | G133: =IF(RDG!H12=0,"",RDG!H12) ->  | H133: 0 | I133: 0 | J133: =ROUND(RDG!I12,2) -> 0 | K133: =ROUND(RDG!J12,2) -> 0
D134: RDG | E134: 2 | F134: =RDG!G13 -> 133 | G134: =IF(RDG!H13=0,"",RDG!H13) ->  | H134: 9190332.292 | I134: 0 | J134: =ROUND(RDG!I13,2) -> 1876838.16 | K134: =ROUND(RDG!J13,2) -> 2516593.06
D135: RDG | E135: 2 | F135: =RDG!G14 -> 134 | G135: =IF(RDG!H14=0,"",RDG!H14) ->  | H135: 13887364.85 | I135: 0 | J135: =ROUND(RDG!I14,2) -> 3590896.11 | K135: =ROUND(RDG!J14,2) -> 3386404.5
D136: RDG | E136: 2 | F136: =RDG!G15 -> 135 | G136: =IF(RDG!H15=0,"",RDG!H15) ->  | H136: 0 | I136: 0 | J136: =ROUND(RDG!I15,2) -> 0 | K136: =ROUND(RDG!J15,2) -> 0
D137: RDG | E137: 2 | F137: =RDG!G16 -> 136 | G137: =IF(RDG!H16=0,"",RDG!H16) ->  | H137: 6878789.655 | I137: 0 | J137: =ROUND(RDG!I16,2) -> 2032806.65 | K137: =ROUND(RDG!J16,2) -> 1512563.46
D138: RDG | E138: 2 | F138: =RDG!G17 -> 137 | G138: =IF(RDG!H17=0,"",RDG!H17) ->  | H138: 1289684.682 | I138: 0 | J138: =ROUND(RDG!I17,2) -> 422993.64 | K138: =ROUND(RDG!J17,2) -> 259191.02
D139: RDG | E139: 2 | F139: =RDG!G18 -> 138 | G139: =IF(RDG!H18=0,"",RDG!H18) ->  | H139: 294127.2522 | I139: 0 | J139: =ROUND(RDG!I18,2) -> 52898.99 | K139: =ROUND(RDG!J18,2) -> 80118.35
D140: RDG | E140: 2 | F140: =RDG!G19 -> 139 | G140: =IF(RDG!H19=0,"",RDG!H19) ->  | H140: 5425756.858 | I140: 0 | J140: =ROUND(RDG!I19,2) -> 1556914.02 | K140: =ROUND(RDG!J19,2) -> 1173254.09
D141: RDG | E141: 2 | F141: =RDG!G20 -> 140 | G141: =IF(RDG!H20=0,"",RDG!H20) ->  | H141: 4302069.87 | I141: 0 | J141: =ROUND(RDG!I20,2) -> 838818.61 | K141: =ROUND(RDG!J20,2) -> 1117044.22
D142: RDG | E142: 2 | F142: =RDG!G21 -> 141 | G142: =IF(RDG!H21=0,"",RDG!H21) ->  | H142: 2771055.276 | I142: 0 | J142: =ROUND(RDG!I21,2) -> 533627.11 | K142: =ROUND(RDG!J21,2) -> 715830.16
D143: RDG | E143: 2 | F143: =RDG!G22 -> 142 | G143: =IF(RDG!H22=0,"",RDG!H22) ->  | H143: 1004109.051 | I143: 0 | J143: =ROUND(RDG!I22,2) -> 193377.05 | K143: =ROUND(RDG!J22,2) -> 256871
D144: RDG | E144: 2 | F144: =RDG!G23 -> 143 | G144: =IF(RDG!H23=0,"",RDG!H23) ->  | H144: 572715.8151 | I144: 0 | J144: =ROUND(RDG!I23,2) -> 111814.45 | K144: =ROUND(RDG!J23,2) -> 144343.06
D145: RDG | E145: 2 | F145: =RDG!G24 -> 144 | G145: =IF(RDG!H24=0,"",RDG!H24) ->  | H145: 1600104.859 | I145: 0 | J145: =ROUND(RDG!I24,2) -> 366921.41 | K145: =ROUND(RDG!J24,2) -> 372131.26
D146: RDG | E146: 2 | F146: =RDG!G25 -> 145 | G146: =IF(RDG!H25=0,"",RDG!H25) ->  | H146: 1209915.09 | I146: 0 | J146: =ROUND(RDG!I25,2) -> 249909.36 | K146: =ROUND(RDG!J25,2) -> 292257.42
D147: RDG | E147: 2 | F147: =RDG!G26 -> 146 | G147: =IF(RDG!H26=0,"",RDG!H26) ->  | H147: 0 | I147: 0 | J147: =ROUND(RDG!I26,2) -> 0 | K147: =ROUND(RDG!J26,2) -> 0
D148: RDG | E148: 2 | F148: =RDG!G27 -> 147 | G148: =IF(RDG!H27=0,"",RDG!H27) ->  | H148: 0 | I148: 0 | J148: =ROUND(RDG!I27,2) -> 0 | K148: =ROUND(RDG!J27,2) -> 0
D149: RDG | E149: 2 | F149: =RDG!G28 -> 148 | G149: =IF(RDG!H28=0,"",RDG!H28) ->  | H149: 0 | I149: 0 | J149: =ROUND(RDG!I28,2) -> 0 | K149: =ROUND(RDG!J28,2) -> 0
D150: RDG | E150: 2 | F150: =RDG!G29 -> 149 | G150: =IF(RDG!H29=0,"",RDG!H29) ->  | H150: 351207.0805 | I150: 0 | J150: =ROUND(RDG!I29,2) -> 65429.75 | K150: =ROUND(RDG!J29,2) -> 85139.85
D151: RDG | E151: 2 | F151: =RDG!G30 -> 150 | G151: =IF(RDG!H30=0,"",RDG!H30) ->  | H151: 0 | I151: 0 | J151: =ROUND(RDG!I30,2) -> 0 | K151: =ROUND(RDG!J30,2) -> 0
D152: RDG | E152: 2 | F152: =RDG!G31 -> 151 | G152: =IF(RDG!H31=0,"",RDG!H31) ->  | H152: 0 | I152: 0 | J152: =ROUND(RDG!I31,2) -> 0 | K152: =ROUND(RDG!J31,2) -> 0
D153: RDG | E153: 2 | F153: =RDG!G32 -> 152 | G153: =IF(RDG!H32=0,"",RDG!H32) ->  | H153: 0 | I153: 0 | J153: =ROUND(RDG!I32,2) -> 0 | K153: =ROUND(RDG!J32,2) -> 0
D154: RDG | E154: 2 | F154: =RDG!G33 -> 153 | G154: =IF(RDG!H33=0,"",RDG!H33) ->  | H154: 0 | I154: 0 | J154: =ROUND(RDG!I33,2) -> 0 | K154: =ROUND(RDG!J33,2) -> 0
D155: RDG | E155: 2 | F155: =RDG!G34 -> 154 | G155: =IF(RDG!H34=0,"",RDG!H34) ->  | H155: 0 | I155: 0 | J155: =ROUND(RDG!I34,2) -> 0 | K155: =ROUND(RDG!J34,2) -> 0
D156: RDG | E156: 2 | F156: =RDG!G35 -> 155 | G156: =IF(RDG!H35=0,"",RDG!H35) ->  | H156: 365349.6475 | I156: 0 | J156: =ROUND(RDG!I35,2) -> 65429.75 | K156: =ROUND(RDG!J35,2) -> 85139.85
D157: RDG | E157: 2 | F157: =RDG!G36 -> 156 | G157: =IF(RDG!H36=0,"",RDG!H36) ->  | H157: 80413.1796 | I157: 0 | J157: =ROUND(RDG!I36,2) -> 37010.33 | K157: =ROUND(RDG!J36,2) -> 7268.29
D158: RDG | E158: 2 | F158: =RDG!G37 -> 157 | G158: =IF(RDG!H37=0,"",RDG!H37) ->  | H158: 486.5744 | I158: 0 | J158: =ROUND(RDG!I37,2) -> 36.28 | K158: =ROUND(RDG!J37,2) -> 136.82
D159: RDG | E159: 2 | F159: =RDG!G38 -> 158 | G159: =IF(RDG!H38=0,"",RDG!H38) ->  | H159: 0 | I159: 0 | J159: =ROUND(RDG!I38,2) -> 0 | K159: =ROUND(RDG!J38,2) -> 0
D160: RDG | E160: 2 | F160: =RDG!G39 -> 159 | G160: =IF(RDG!H39=0,"",RDG!H39) ->  | H160: 0 | I160: 0 | J160: =ROUND(RDG!I39,2) -> 0 | K160: =ROUND(RDG!J39,2) -> 0
D161: RDG | E161: 2 | F161: =RDG!G40 -> 160 | G161: =IF(RDG!H40=0,"",RDG!H40) ->  | H161: 0 | I161: 0 | J161: =ROUND(RDG!I40,2) -> 0 | K161: =ROUND(RDG!J40,2) -> 0
D162: RDG | E162: 2 | F162: =RDG!G41 -> 161 | G162: =IF(RDG!H41=0,"",RDG!H41) ->  | H162: 0 | I162: 0 | J162: =ROUND(RDG!I41,2) -> 0 | K162: =ROUND(RDG!J41,2) -> 0
D163: RDG | E163: 2 | F163: =RDG!G42 -> 162 | G163: =IF(RDG!H42=0,"",RDG!H42) ->  | H163: 0 | I163: 0 | J163: =ROUND(RDG!I42,2) -> 0 | K163: =ROUND(RDG!J42,2) -> 0
D164: RDG | E164: 2 | F164: =RDG!G43 -> 163 | G164: =IF(RDG!H43=0,"",RDG!H43) ->  | H164: 0 | I164: 0 | J164: =ROUND(RDG!I43,2) -> 0 | K164: =ROUND(RDG!J43,2) -> 0
D165: RDG | E165: 2 | F165: =RDG!G44 -> 164 | G165: =IF(RDG!H44=0,"",RDG!H44) ->  | H165: 263.302 | I165: 0 | J165: =ROUND(RDG!I44,2) -> 28.71 | K165: =ROUND(RDG!J44,2) -> 65.92
D166: RDG | E166: 2 | F166: =RDG!G45 -> 165 | G166: =IF(RDG!H45=0,"",RDG!H45) ->  | H166: 246.4605 | I166: 0 | J166: =ROUND(RDG!I45,2) -> 7.57 | K166: =ROUND(RDG!J45,2) -> 70.9
D167: RDG | E167: 2 | F167: =RDG!G46 -> 166 | G167: =IF(RDG!H46=0,"",RDG!H46) ->  | H167: 0 | I167: 0 | J167: =ROUND(RDG!I46,2) -> 0 | K167: =ROUND(RDG!J46,2) -> 0
D168: RDG | E168: 2 | F168: =RDG!G47 -> 167 | G168: =IF(RDG!H47=0,"",RDG!H47) ->  | H168: 0 | I168: 0 | J168: =ROUND(RDG!I47,2) -> 0 | K168: =ROUND(RDG!J47,2) -> 0
D169: RDG | E169: 2 | F169: =RDG!G48 -> 168 | G169: =IF(RDG!H48=0,"",RDG!H48) ->  | H169: 459999.3888 | I169: 0 | J169: =ROUND(RDG!I48,2) -> 92376.66 | K169: =ROUND(RDG!J48,2) -> 90716.25
D170: RDG | E170: 2 | F170: =RDG!G49 -> 169 | G170: =IF(RDG!H49=0,"",RDG!H49) ->  | H170: 0 | I170: 0 | J170: =ROUND(RDG!I49,2) -> 0 | K170: =ROUND(RDG!J49,2) -> 0
D171: RDG | E171: 2 | F171: =RDG!G50 -> 170 | G171: =IF(RDG!H50=0,"",RDG!H50) ->  | H171: 0 | I171: 0 | J171: =ROUND(RDG!I50,2) -> 0 | K171: =ROUND(RDG!J50,2) -> 0
D172: RDG | E172: 2 | F172: =RDG!G51 -> 171 | G172: =IF(RDG!H51=0,"",RDG!H51) ->  | H172: 466556.5197 | I172: 0 | J172: =ROUND(RDG!I51,2) -> 92110.05 | K172: =ROUND(RDG!J51,2) -> 90365.01
D173: RDG | E173: 2 | F173: =RDG!G52 -> 172 | G173: =IF(RDG!H52=0,"",RDG!H52) ->  | H173: 1666.8348 | I173: 0 | J173: =ROUND(RDG!I52,2) -> 266.61 | K173: =ROUND(RDG!J52,2) -> 351.24
D174: RDG | E174: 2 | F174: =RDG!G53 -> 173 | G174: =IF(RDG!H53=0,"",RDG!H53) ->  | H174: 0 | I174: 0 | J174: =ROUND(RDG!I53,2) -> 0 | K174: =ROUND(RDG!J53,2) -> 0
D175: RDG | E175: 2 | F175: =RDG!G54 -> 174 | G175: =IF(RDG!H54=0,"",RDG!H54) ->  | H175: 0 | I175: 0 | J175: =ROUND(RDG!I54,2) -> 0 | K175: =ROUND(RDG!J54,2) -> 0
D176: RDG | E176: 2 | F176: =RDG!G55 -> 175 | G176: =IF(RDG!H55=0,"",RDG!H55) ->  | H176: 0 | I176: 0 | J176: =ROUND(RDG!I55,2) -> 0 | K176: =ROUND(RDG!J55,2) -> 0
D177: RDG | E177: 2 | F177: =RDG!G56 -> 176 | G177: =IF(RDG!H56=0,"",RDG!H56) ->  | H177: 0 | I177: 0 | J177: =ROUND(RDG!I56,2) -> 0 | K177: =ROUND(RDG!J56,2) -> 0
D178: RDG | E178: 2 | F178: =RDG!G57 -> 177 | G178: =IF(RDG!H57=0,"",RDG!H57) ->  | H178: 0 | I178: 0 | J178: =ROUND(RDG!I57,2) -> 0 | K178: =ROUND(RDG!J57,2) -> 0
D179: RDG | E179: 2 | F179: =RDG!G58 -> 178 | G179: =IF(RDG!H58=0,"",RDG!H58) ->  | H179: 0 | I179: 0 | J179: =ROUND(RDG!I58,2) -> 0 | K179: =ROUND(RDG!J58,2) -> 0
D180: RDG | E180: 2 | F180: =RDG!G59 -> 179 | G180: =IF(RDG!H59=0,"",RDG!H59) ->  | H180: 0 | I180: 0 | J180: =ROUND(RDG!I59,2) -> 0 | K180: =ROUND(RDG!J59,2) -> 0
D181: RDG | E181: 2 | F181: =RDG!G60 -> 180 | G181: =IF(RDG!H60=0,"",RDG!H60) ->  | H181: 19067382.23 | I181: 0 | J181: =ROUND(RDG!I60,2) -> 2963934.17 | K181: =ROUND(RDG!J60,2) -> 3814527.98
D182: RDG | E182: 2 | F182: =RDG!G61 -> 181 | G182: =IF(RDG!H61=0,"",RDG!H61) ->  | H182: 19253900.83 | I182: 0 | J182: =ROUND(RDG!I61,2) -> 3683272.77 | K182: =ROUND(RDG!J61,2) -> 3477120.75
D183: RDG | E183: 2 | F183: =RDG!G62 -> 182 | G183: =IF(RDG!H62=0,"",RDG!H62) ->  | H183: -81033.9348 | I183: 0 | J183: =ROUND(RDG!I62,2) -> -719338.6 | K183: =ROUND(RDG!J62,2) -> 337407.23
D184: RDG | E184: 2 | F184: =RDG!G63 -> 183 | G184: =IF(RDG!H63=0,"",RDG!H63) ->  | H184: 1234910.462 | I184: 0 | J184: =ROUND(RDG!I63,2) -> 0 | K184: =ROUND(RDG!J63,2) -> 337407.23
D185: RDG | E185: 2 | F185: =RDG!G64 -> 184 | G185: =IF(RDG!H64=0,"",RDG!H64) ->  | H185: 1323583.024 | I185: 0 | J185: =ROUND(RDG!I64,2) -> 719338.6 | K185: =ROUND(RDG!J64,2) -> 0
D186: RDG | E186: 2 | F186: =RDG!G65 -> 185 | G186: =IF(RDG!H65=0,"",RDG!H65) ->  | H186: 0 | I186: 0 | J186: =ROUND(RDG!I65,2) -> 0 | K186: =ROUND(RDG!J65,2) -> 0
D187: RDG | E187: 2 | F187: =RDG!G66 -> 186 | G187: =IF(RDG!H66=0,"",RDG!H66) ->  | H187: -82814.9004 | I187: 0 | J187: =ROUND(RDG!I66,2) -> -719338.6 | K187: =ROUND(RDG!J66,2) -> 337407.23
D188: RDG | E188: 2 | F188: =RDG!G67 -> 187 | G188: =IF(RDG!H67=0,"",RDG!H67) ->  | H188: 1261903.04 | I188: 0 | J188: =ROUND(RDG!I67,2) -> 0 | K188: =ROUND(RDG!J67,2) -> 337407.23
D189: RDG | E189: 2 | F189: =RDG!G68 -> 188 | G189: =IF(RDG!H68=0,"",RDG!H68) ->  | H189: 1352356.568 | I189: 0 | J189: =ROUND(RDG!I68,2) -> 719338.6 | K189: =ROUND(RDG!J68,2) -> 0
D190: RDG | E190: 2 | F190: =RDG!G70 -> 189 | G190: =IF(RDG!H70=0,"",RDG!H70) ->  | H190: 0 | I190: 0 | J190: =ROUND(RDG!I70,2) -> 0 | K190: =ROUND(RDG!J70,2) -> 0
D191: RDG | E191: 2 | F191: =RDG!G71 -> 190 | G191: =IF(RDG!H71=0,"",RDG!H71) ->  | H191: 0 | I191: 0 | J191: =ROUND(RDG!I71,2) -> 0 | K191: =ROUND(RDG!J71,2) -> 0
D192: RDG | E192: 2 | F192: =RDG!G72 -> 191 | G192: =IF(RDG!H72=0,"",RDG!H72) ->  | H192: 0 | I192: 0 | J192: =ROUND(RDG!I72,2) -> 0 | K192: =ROUND(RDG!J72,2) -> 0
D193: RDG | E193: 2 | F193: =RDG!G73 -> 192 | G193: =IF(RDG!H73=0,"",RDG!H73) ->  | H193: 0 | I193: 0 | J193: =ROUND(RDG!I73,2) -> 0 | K193: =ROUND(RDG!J73,2) -> 0
D194: RDG | E194: 2 | F194: =RDG!G74 -> 193 | G194: =IF(RDG!H74=0,"",RDG!H74) ->  | H194: =J194/100*F194+2*K194/100*F194 -> 0 | I194: 0 | J194: =ROUND(RDG!I74,2) -> 0 | K194: =ROUND(RDG!J74,2) -> 0
D195: RDG | E195: 2 | F195: =RDG!G75 -> 194 | G195: =IF(RDG!H75=0,"",RDG!H75) ->  | H195: 0 | I195: 0 | J195: =ROUND(RDG!I75,2) -> 0 | K195: =ROUND(RDG!J75,2) -> 0
D196: RDG | E196: 2 | F196: =RDG!G77 -> 195 | G196: =IF(RDG!H77=0,"",RDG!H77) ->  | H196: 0 | I196: 0 | J196: =ROUND(RDG!I77,2) -> 0 | K196: =ROUND(RDG!J77,2) -> 0
D197: RDG | E197: 2 | F197: =RDG!G78 -> 196 | G197: =IF(RDG!H78=0,"",RDG!H78) ->  | H197: 0 | I197: 0 | J197: =ROUND(RDG!I78,2) -> 0 | K197: =ROUND(RDG!J78,2) -> 0
D198: RDG | E198: 2 | F198: =RDG!G79 -> 197 | G198: =IF(RDG!H79=0,"",RDG!H79) ->  | H198: 0 | I198: 0 | J198: =ROUND(RDG!I79,2) -> 0 | K198: =ROUND(RDG!J79,2) -> 0
D199: RDG | E199: 2 | F199: =RDG!G80 -> 198 | G199: =IF(RDG!H80=0,"",RDG!H80) ->  | H199: 0 | I199: 0 | J199: =ROUND(RDG!I80,2) -> 0 | K199: =ROUND(RDG!J80,2) -> 0
D200: RDG | E200: 2 | F200: =RDG!G81 -> 199 | G200: =IF(RDG!H81=0,"",RDG!H81) ->  | H200: 0 | I200: 0 | J200: =ROUND(RDG!I81,2) -> 0 | K200: =ROUND(RDG!J81,2) -> 0
... 248 more rows

Sheet Naslovna
A1: Navigacija | B1: Naslovna | C1: RefStr | D1: Bilanca | E1: RDG | F1: Dodatni | G1: NT_I | H1: NT_D | I1: PK | J1: Kont
A2: Od 2024. godine izmijenjeni su struktura i sadržaj godišnjih financijskih izvještaja. Dodana je pozicija u Bilancu,RDG te kolona u PK. Obrazac Dodatni podaci je ostao neizmijenjen s time da su se promijenili samo brojevi AOP pozicija. Navigacija između radnih listova i dalje je omogućena kao i u prijašnjim Excel datotekama.
A3: Link na stranicu obrasca i uputa: | D3: http://www.fina.hr/Default.aspx?sec=915
A4: U nastavku će biti navedene sve ispravke i promjene u odnosu na Inicijalnu verziju Excel datoteke 5.0.0.
A5: Verzija | B5: Promjene po verzijama
A6: 3.0.0. | B6: Prva verzija obrasca za 2016. godinu
A7: 3.0.1. | B7: Ispravke izgleda obrazaca: OIB se sa Referentne stranice prenosi na sve ostale radne listove pojedinačnih obrazaca, omogućen je odabir i oznake vlasništva 11, omogućen je i upis početnog datuma razdoblja prije 1.1.2016 (zbog obveznika koji predaju vrstu izvještaja 11 u svrhu javne objave), korigirane su i kontrole 42 i 43 (pravila vrijede samo za oznakuk autonomnosti 1, ne više i za 10), kontrola 56 (oznaka primjene MSFI-a obvezna samo za velike pojedinačne, ne više i konsolidirane izvještaje), izvještaji koji imaju udio stranog kapitala veći od nule neće više javljati pogrešku kod učitavanja.
A8: 3.0.2. | B8: Ispravljena je pogreška zbog koje se naziv knjigovodstvenog servisa i prezime i ime osobe za kontaktiranje nisu se učitavali u aplikaciju.Dodana kontrola na duljinu OIB-a revizora.
A9: 3.0.3. | B9: Ukinuta kontrola na vezu AOP-a 023 i 030 u PK obrascu. Ispravljen opis kontrola 89 do 92. Omogućen unos negativnih stavaka na AOP-ima 270 do 270 u Dodatnim podacima, te vezano s tim, promijenjena kontrola na negativne AOP-e u Dodatnim podacima. Ispravljena kontrola 63 i 90. Omogućen unos matičnog broja s početnim brojem 9 za trgovce pojedince. Izvještaj više ne javlja pogrešku kada se odabere oznaka vlasništva 13.
A10: 3.0.4. | B10: Omogućen unos oznake obveznosti nefinancijskog izvjećša, dorađena kontrola u vezi njega. Omogućen unos "datuma od" razdoblja od 2005. godine nadalje zbog dugotrajnih likvidacija, broj mjeseci u likvidaciji omogućen najviše 132 umjesto dosadašnjih 60. Dorađeni opisi nekih AOP pozicija u Dodatnim podacima (smisao ostao isti, samo su opisi prošireni). Prosjek broja zaposlenih krajem razdoblja preimenovan u Prosjek broja zaposlenih tijekom razdoblja. Smisao broja zaposlenih i dalje isti, računa se kao prosjek stanja na datume: 1.1., 31.3., 30.6., 30.9. i 31.12.
A11: 4.0.0. | B11: Nova izmijenjena verzija obrasca za 2021. godinu
A12: 4.0.1. | B12: Ispravljena formula na AOP poziciji 223 koja je pogrešno zbrajala AOP oznaku 205 umjesto 206.
A13: 4.0.2. | B13: Ispravljene formule na obrascu Promjene kapitala od stupca s oznakom 4 do 9 - formula nije uključivala oznaku primjene računovodstvenog standarda kod popunjavanja podataka u dodatku o Sveobuhvatnoj dobiti i u podacima za prethodnu i u podacima za tekuću godinu. U kontroli 34 ukinuo je pravilo da zadržana dobit i preneseni gubitak ne mogu biti popunjeni istovremeno.
A14: 4.0.3. | B14: Omogućen unos u obrazac PK - AOP 016 i 033 stupac 15. Omogućeno predaja financijskog izvještaja i u EUR-ima i u kunama. Svaki financijski izvještaj čiji je datum kraja bilance 1. siječnja 2023. i kasnije mora biti u EUR-ima, a oni koji su predani za razdoblja prije 1. 1. 2023. u kunama.
A15: 4.0.4. | B15: Kod popunjavanja podataka u EUR-ima sa centima povremeno Excel pokazuje pogrešku na zaokruživanju iznosa na zbrojnim pozicijama obrasca. U ovoj verziji je ta pogreška ispravljena.
A16: 4.0.5. | B16: Problem sa zaokruživanjem brojeva popravljen na nekoliko novih mjesta. Ispravljene validacije nekih ćelija. Dodana opcija označavanja da se tvrtka briše sa zadnjim danom razdoblja izvještavanja kako kontrola ne bi javljala pogrešku ako je bilanca svedena na nulu kod postupka brisanja društva bez likvidacijskog postupka. Dodana oznaka neaktivnosti subjekta u stupcu prethodne godine kako kontrole ne bi javljale pogreške gdje ih iznimno ne bi trebalo biti. U kasnijim verzijama će se neke kontrole dorađivati prema ovim oznakama, trenutno nisu sve aplikacijski podržane.
A17: 4.0.6. | B17: Dorađena kontrola ako je tvrtka bila poslovno neaktivna u prethodnoj godini (tj. ima popunjenu Bilancu, ali nije imala prihoda i rashoda pa nema podataka u računu dobiti i gubitka i u Dodatnim podacima). Kako bi se olakšala kontrola koja pozicija može, a koja ne može biti negativna AOP oznake pozicija koje mogu biti i negativne ili samo negativne obojane su drugom bojom. Značenje boja dano je u komentaru naslova "AOP oznaka". Dorada kontrole 63, dopušteno odstupanje je ostalo 1€ umjesto 1kn/0,14€. Ispravak kontrole 45, greškom nije bio dopušten minus na AOP oznakama 071 do 075.
A18: 5.0.0. | B18: Nova izmijenjena verzija obrasca za 2024. godinu
A19: 5.0.1. | B19: Ispravak pogreške na radnom listu skriveni. Promijenjeni kriteriji za obveznost revizije prema novom Zakonu.

Sheet RefStr
A1: Navigacija | B1: Naslovna | C1: RefStr | D1: Bilanca | E1: RDG | F1: Dodatni | G1: NT_I | H1: NT_D | I1: PK | J1: Kont | Q1: =IF(C4<>"",IF(YEAR(C4)<2021,2021,YEAR(C4)),"") -> 2024
A2: Razdoblje izvještavanja i vrsta poslovnog subjekta nisu dio standardnog obrasca GFI-POD izvještaja, ali ispunjavanjem ovih podataka osigurat ćete da Vas Excel datoteka preko kontrola upozori koju popratnu (nestandardnu) dokumentaciju ste dužni predati prilikom predaje GFI-POD izvještaja te će neke specifične kontrole raditi ispravno. Odaberete li krivu vrstu poslovnog subjekta, moguće je da obrazac - iako točan u Excelu - ne bude točan i potpun nakon učitavanja. | Q2: =IF(F4<>"", YEAR(F4), "") -> 2024
A3: =IF(ISERROR(Kont!J4),"Postoje neke pogreške u Excel datoteci, takva neće moći biti učitana!!!",IF(Kont!J4>0, "Obrazac nije popunjen ili sadrži neke pogreške! Ako ste završili s popunjavanjem, provjerite radni list Kont. Broj pogreški: " & Kont!J4,"Sve kontrole su zadovoljene, obrazac je ispravan")) -> Sve kontrole su zadovoljene, obrazac je ispravan
A4: Razdoblje izvještavanja: | C4: 2024-01-01 | E4: do | F4: 2024-12-31 | H4: (završni dan razdoblja je ujedno i datum stanja u Bilanci)
A6: Subjekt se briše sa zadnjim danom razdoblja izvještavanja: | G6: NE | M6: Poslovna aktivnost u razdoblju izvještavanja: | N6: DA
A7: Vrsta poslovnog subjekta: | C7: 1 | D7: =IF(C7="","Vrsta poslovnog subjekta nije upisana",IF(ISNA(LOOKUP(C7,A91:A107,A91:A107)),"Upisana je nepostojeća ili neprepoznatljiva vrsta poslovnog subjekta",IF(LOOKUP(C7,A91:A107,A91:A107)<>C7,"Upisana je nepostojeća ili neprepoznatljiva vrsta poslovnog subjekta",LOOKUP(C7,A91:A107,B91:B107)))) -> Javno trgovačko društvo | M7: Poslovna aktivnost u prethodnoj godini: | N7: DA
P9: DatOd | Q9: =IF(C4<>"",YEAR(C4)/100+MONTH(C4)/2+DAY(C4),0) -> 21.74
A10: Referentna stranica | K10: Vrsta posla: 777 | P10: DatDo | Q10: =IF(F4<>"",YEAR(F4)/100+MONTH(F4)/2+DAY(F4),0) -> 57.24
A11: GODIŠNJI FINANCIJSKI IZVJEŠTAJ PODUZETNIKA | P11: VI | Q11: =INT(VALUE(C17)) -> 10
E12: za | F12: 2024 | H12: . godinu | P12: MBS | Q12: =INT(VALUE(H27))/10 -> 336172.1
P13: MBS | Q13: =INT(VALUE(M27))/50 -> 600531.58
A14: Kontrolni broj | J14: Evidencijski broj (popunjava Registar) | P14: OIB | Q14: =INT(VALUE(C27))/100 -> 481884200.1
A15: =Skriveni!B59 ->  | P15: Naz | Q15: =LEN(Skriveni!B9) -> 25
P16: Posta | Q16: =INT(VALUE(C31))/100 -> 312.07
A17: Vrsta izvještaja: | C17: 10 | D17: =IF(C17="","Upišite vrstu izvještaja",IF(ISNA(LOOKUP(C17,A142:A149,A142:A149)),"Upisana je nepostojeća ili neprepoznatljiva vrsta izvještaja",IF(LOOKUP(C17,A142:A149,A142:A149)<>C17,"Upisana je nepostojeća ili neprepoznatljiva vrsta izvještaja",LOOKUP(C17,A142:A149,B142:B149)))) -> Izvještaj kojeg ispunjava obveznik kome je kalendarska godina jednaka poslovnoj godini i kod kojeg u godini za koju se izvještaj podnosi nije bilo statusnih promjena, stečaja ili likvidacije. | P17: MJ | Q17: =LEN(Skriveni!B11) -> 5
A19: Šifra svrhe predaje: | C19: 2 | D19: =IF(C19="","Upišite svrhu predaje",IF(ISNA(LOOKUP(C19,A118:A120,A118:A120)),"Nepostojeća ili neprepoznatljiva svrha predaje",IF(LOOKUP(C19,A118:A120,A118:A120)<>C19,"Nepostojeća ili neprepoznatljiva svrha predaje",LOOKUP(C19,A118:A120,B118:B120)))) -> Predaja samo u svrhu javne objave | I19: Primjena računovodstvenih standarda: | N19: MSFI | P19: ADR | Q19: =LEN(Skriveni!B12) -> 19
A21: Izvještaj je konsolidiran: | C21: NE | D21: (DA/NE) | E21: Izvještaj je revidiran (DA/NE): | I21: DA | J21: OIB revizora: | L21: 39806187636 | P21: OPC | Q21: =INT(VALUE(C39)) -> 312
A23: Obveznost predaje nefinancijskog izvješća: | C23: 1 | D23: =IF(C23="","Upišite šifru obveznosti predaje nefinancijskog izvješća",IF(ISNA(LOOKUP(C23,A111:A114,A111:A114)),"Upisana je nepostojeća ili neprepoznatljiva šifra obveznosti",IF(LOOKUP(C23,A111:A114,A111:A114)<>C23,"Upisana je nepostojeća ili neprepoznatljiva šifra obveznosti",LOOKUP(C23,A111:A114,B111:B114)))) -> Poduzetnik nije obveznik izrade nefinancijskog izvješća | P23: NKD | Q23: =INT(VALUE(C42)) -> 5223
A27: OIB subjekta: | C27: 48188420009 | F27: Matični broj (MB): | H27: 03361721 | J27: Matični broj subjekta (MBS): | M27: 030026579 | P27: Kons | Q27: =IF(C21="DA", 1, 0) -> 0
F28: (dodijeljen od DZS-a) | J28: (dodijeljen od nadležnog Trgovačkog suda)
A29: Naziv obveznika: | C29: Zračna luka Osijek d.o.o. | P29: Reviz | Q29: =IF(I21="DA",1,0) -> 1
A31: Poštanski broj: | C31: 31207 | D31: Naziv naselja: | F31: Klisa | P31: Svrha | Q31: =INT(VALUE(C19)) -> 2
A33: Ulica i kućni broj: | C33: Vukovarska ulica 67 | P33: VEL | Q33: =INT(VALUE(Skriveni!B21)) -> 1
A35: Adresa e-pošte obveznika: | C35: info@osijek-airport.hr | J35: Telefon: | L35: 031/514-402 | P35: VLAST | Q35: =INT(VALUE(C52)) -> 11
A37: Internet adresa: | C37: www.osijek-airport.hr | P37: POR_KAP | Q37: =C54*2+F54 -> 200
A39: Šifra grada/općine: | C39: 312 | D39: =IF(C39="","Upišite šifru grada/općine",IF(ISNA(LOOKUP(C39,A177:A732,A177:A732)),"Šifra grada/općine ne postoji",IF(LOOKUP(C39,A177:A732,A177:A732)<>C39,"Šifra grada/općine ne postoji",LOOKUP(C39,A177:A732,B177:B732)))) -> Osijek | H39: Županija: | J39: =IF(C39>0,LOOKUP(C39,A177:A732,C177:C732),"") -> 14 | K39: =IF(J39="","Upišite šifru grada/općine",LOOKUP(J39,A153:A173,B153:B173)) -> OSIJEČKO-BARANJSKA | P39: ZAP | Q39: =C56+2*F56+3*C58+4*F58 -> 531
A42: Šifra NKD-a: | C42: 5223 | D42: =IF(C42="","Upišite šifru razreda glavne djelatnosti",IF(ISNA(LOOKUP(C42,A736:A1351,A736:A1351)),"Šifra NKD-a ne postoji",IF(LOOKUP(C42,A736:A1351,A736:A1351)<>C42,"Šifra NKD-a ne postoji",LOOKUP(C42,A736:A1351,B736:B1351)))) -> Uslužne djelatnosti u vezi sa zračnim ... | P42: MJESECI | Q42: =C60*2+F60 -> 36
A44: Status autonomnosti: | C44: 1 | D44: =IF(C44="","Upišite šifru statusa autonomnosti",IF(ISNA(LOOKUP(C44,A131:A138,A131:A138)),"Upisana je nepostojeća ili neprepoznatljiva šifra statusa autonomnosti",IF(LOOKUP(C44,A131:A138,A131:A138)<>C44,"Upisana je nepostojeća ili neprepoznatljiva šifra statusa autonomnosti",LOOKUP(C44,A131:A138,B131:B138)))) -> Autonomno društvo, nije bilo član grupe u izvještajnom razdoblju | P44: OVL_OSOBA | Q44: =LEN(Skriveni!B43) -> 8
A46: Zemlja sjedišta nadređenog matičnog društva: | D46: =IF(C46="","",IF(ISNA(LOOKUP(C46,A1355:A1603,A1355:A1603)),"Šifra države nepostojeća",IF(LOOKUP(C46,A1355:A1603,A1355:A1603)<>C46,"Šifra države nepostojeća",LOOKUP(C46,A1355:A1603,B1355:B1603)))) ->  | J46: Matični broj nadređenog matičnog društva: | P46: OIB_REV | Q46: =INT(VALUE(L21))/100 -> 398061876.4
A50: Oznaka veličine: | C50: 2 | D50: =IF(C50="","Upišite oznaku veličine",IF(ISNA(LOOKUP(C50,A124:A127,A124:A127)),"Nepostojeća oznaka veličine",IF(LOOKUP(C50,A124:A127,A124:A127)<>C50,"Nepostojeća oznaka veličine",LOOKUP(C50,A124:A127,B124:B127)))) -> Mali poduzetnik | I50: Popis dokumentacije | P50: POSL_AKT | Q50: =IF(N6="DA",1/10,IF(N6="NE",2/10,0)) -> 0.1
A52: Oznaka vlasništva: | C52: 11 | D52: =IF(C52="","Upišite oznaku vlasništva",IF(ISNA(LOOKUP(C52,A80:A87,A80:A87)),"Nepostojeća oznaka vlasništva",IF(LOOKUP(C52,A80:A87,A80:A87)<>C52,"Nepostojeća oznaka vlasništva",LOOKUP(C52,A80:A87,B80:B87)))) -> Državno vlasništvo (javno, komunalno i slično) | I52: =IF(OR(Bilanca!Q1=1,RDG!Q1=1,N6="NE"),"DA","NE") -> DA | J52: Bilanca i Račun dobiti i gubitka | P52: STAND | Q52: =IF(N19="HSFI",1+1/10,IF(N19="MSFI",1+2/10,0)) -> 1.2
A54: Porijeklo kapitala (%): | C54: 100 | D54: (domaći) | F54: 0 | G54: (strani) | I54: =IF(OR(Dodatni!Q1=1,AND(N6="NE",C19<>2)),"DA","NE") -> NE | J54: Dodatni podaci | P54: AUTONOM | Q54: =C44/10 -> 0.1
A55: Prosjek broja zaposlenih tijekom razdoblja:
C56: 50 | D56: (prethodna godina) | F56: 57 | G56: (tekuća godina) | I56: DA | J56: Bilješke uz financijske izvještaje | P56: ZEMLJA | Q56: =C46/20 -> 0
A58: Broj zaposlenih prema satima rada: | C58: 49 | D58: (prethodna godina) | F58: 55 | G58: (tekuća godina) | I58: =IF(OR(NT_I!Q1<>0,NT_D!Q1<>0),"DA", "NE") -> NE | J58: Izvještaj o novčanim tokovima | P58: MB_NADR | Q58: =IF(ISERROR(INT(M46)),LEN(TRIM(M46)),INT(M46)/100) -> 0
A60: Broj mjeseci poslovanja: | C60: 12 | D60: (prethodna godina) | F60: 12 | G60: (tekuća godina) | I60: =IF(PK!AD1=1,"DA","NE") -> NE | J60: Izvještaj o promjenama kapitala | P60: NEFIN | Q60: =C23/50 -> 0.02
A62: Knjigovodstveni servis/kontakt osoba: | I62: DA | J62: Revizorsko izvješće
A64: Matični broj: | C64: (matični broj servisa dodijeljen od DZS-a) | I64: NE | J64: Godišnje izvješće
A66: Naziv | I66: DA | J66: Odluka o prijedlogu raspodjele dobiti ili pokriću gubitka
A68: Osoba za kontaktiranje: | C68: Katarina Jelečević | I68: DA | J68: Odluka o utvrđivanju godišnjeg financijskog izvještaja
C69: (unosi se ime i prezime osobe za kontakt)
A70: Telefon za kontaktiranje: | C70: 031/512-402
C71: (unosi se broj telefona/mobitela osobe za kontaktiranje)
A72: Adresa e-pošte: | C72: katarina.jelecevic@osijek-airport.hr | N72: ="Verzija Excel datoteke: " & MID(Skriveni!B4,1,1) & "." & MID(Skriveni!B4,2,1) & "." & MID(Skriveni!B4,3,1) & "." -> Verzija Excel datoteke: 5.0.1.
C73: (unosi se adresa e-pošte osobe za kontaktiranje)
A75: KOS IVAN
A76: (Prezime i ime ovlaštene osobe) | J76: (potpis ovlaštene osobe)
A78: =IF(ISERROR(Kont!J4),"Postoje neke pogreške u Excel datoteci, takva neće moći biti učitana!!!",IF(Kont!J4>0, "Obrazac nije popunjen ili sadrži neke pogreške! Broj pogreški: " & Kont!J4,"")) -> 
A80: 11 | B80: Državno vlasništvo (javno, komunalno i slično)
A81: 12 | B81: Državno u procesu pretvorbe
A82: 13 | B82: Državno, pretvorba još nije započela
A83: 21 | B83: Privatno od osnivanja
A84: 22 | B84: Privatno nakon pretvorbe
A85: 31 | B85: Zadružno vlasništvo (zadruge)
A86: 41 | B86: Mješovito vlasništvo s preko 50% privatnog kapitala
A87: 42 | B87: Mješovito vlasništvo s preko 50% državnog kapitala
A91: 1 | B91: Javno trgovačko društvo
A92: 2 | B92: Komanditno društvo
A93: 3 | B93: Gospodarsko interesno udruženje
A94: 4 | B94: Dioničko društvo
A95: 5 | B95: Društvo s ograničenom odgovornošću
A96: 6 | B96: Jednostavno društvo s ograničenom odgovornošću
A97: 7 | B97: Trgovac pojedinac
A98: 8 | B98: Ustanova
A99: 9 | B99: Zajednica ustanova
A100: 10 | B100: Zadruga
A101: 11 | B101: Druga osoba za koje je upis propisan zakonom
A102: 12 | B102: Inozemni osnivač
A103: 13 | B103: Obrtnik, obveznik poreza na dobit
A104: 14 | B104: Slobodno zanimanje
A105: 15 | B105: Obiteljsko gospodarstvo
A106: 16 | B106: Privatna osoba, obveznik poreza na dobit
A107: 99 | B107: Ostali nespomenuti obveznici poreza na dobit
A111: 1 | B111: =IF(F12=2016,"Obveza predaje nefinancijskog izvješća u primjeni tek od 2017. godine", "Poduzetnik nije obveznik izrade nefinancijskog izvješća") -> Poduzetnik nije obveznik izrade nefinancijskog izvješća
A112: 2 | B112: Poduzetnik je obveznik izrade nefinancijskog izvješća - sastavni je dio izvješća poslovodstva
A113: 3 | B113: Poduzetnik je obveznik izrade nefinancijskog izvješća - predaje ga kao prilog izvješću poslovodstva
A114: 4 | B114: Poduzetnik je obveznik izrade nefinancijskog izvješća - kreirano je kao poseban dokument i objavljeno na mrežnoj stranici poduzetnika
A118: 1 | B118: Predaja samo u statističke svrhe
A119: 2 | B119: Predaja samo u svrhu javne objave
A120: 3 | B120: Predaja i za statističke svrhe i za javnu objavu
A124: 1 | B124: Mikro poduzetnik
A125: 2 | B125: Mali poduzetnik
A126: 3 | B126: Srednji poduzetnik
A127: 4 | B127: Veliki poduzetnik
A131: 1 | B131: Autonomno društvo, nije bilo član grupe u izvještajnom razdoblju
A132: 2 | B132: Ovisno društvo (nema kontrolu nad drugim društvima), sa maticom u RH
A133: 3 | B133: Ovisno društvo (nema kontrolu nad drugim društvima), sa maticom izvan RH
A134: 5 | B134: Matično društvo, i samo pod kontrolom nadređenog društva iz RH
A135: 6 | B135: Matično društvo, i samo pod kontrolom nadređenog društva izvan RH
A136: 7 | B136: Krajnje matično društvo u grupi (nema nadređeno društvo)
A137: 9 | B137: Autonomno društvo, bilo je u sastavu grupe u dijelu izvještajnog razdoblja
A138: 10 | B138: Ostali obveznici poreza na dobit
A142: 10 | B142: Izvještaj kojeg ispunjava obveznik kome je kalendarska godina jednaka poslovnoj godini i kod kojeg u godini za koju se izvještaj podnosi nije bilo statusnih promjena, stečaja ili likvidacije.
A143: 11 | B143: Izvještaj kojeg ispunjava obveznik kome se poslovna godina razlikuje od kalendarske.
A144: 20 | B144: Izvještaj kojeg ispunjava obveznik u stečaju.
A145: 21 | B145: Izvještaj kojeg sastavlja obveznik za razdoblje od početka godine do dana koji prethodi danu otvaranja stečajnog postupka.
A146: 30 | B146: Izvještaj kojeg ispunjava obveznik u likvidaciji.
A147: 31 | B147: Izvještaj kojeg sastavlja obveznik za razdoblje od početka godine do dana koji prethodi danu otvaranja likvidacijskog postupka.
A148: 40 | B148: Izvještaj kojeg sastavlja obveznik koji zbog statusnih promjena gubi pravnu osobnost.
A149: 50 | B149: Izvještaj kojeg sastavlja obveznik u godini kada mijenja datum početka i kraja poslovne godine, a za razdoblje od kraja stare poslovne godine do datuma koji prethodi početku nove poslovne godine.
A153: 1 | B153: ZAGREBAČKA
A154: 2 | B154: KRAPINSKO-ZAGORSKA
A155: 3 | B155: SISAČKO-MOSLAVAČKA
A156: 4 | B156: KARLOVAČKA
A157: 5 | B157: VARAŽDINSKA
A158: 6 | B158: KOPRIVNIČKO-KRIŽEVAČKA
A159: 7 | B159: BJELOVARSKO-BILOGORSKA
A160: 8 | B160: PRIMORSKO-GORANSKA
A161: 9 | B161: LIČKO-SENJSKA
A162: 10 | B162: VIROVITIČKO-PODRAVSKA
A163: 11 | B163: POŽEŠKO-SLAVONSKA
A164: 12 | B164: BRODSKO-POSAVSKA
A165: 13 | B165: ZADARSKA
A166: 14 | B166: OSIJEČKO-BARANJSKA
A167: 15 | B167: ŠIBENSKO-KNINSKA
A168: 16 | B168: VUKOVARSKO-SRIJEMSKA
A169: 17 | B169: SPLITSKO-DALMATINSKA
A170: 18 | B170: ISTARSKA
A171: 19 | B171: DUBROVAČKO-NERETVANSKA
A172: 20 | B172: MEĐIMURSKA
A173: 21 | B173: GRAD ZAGREB
A177: 1 | B177: Andrijaševci | C177: 16
A178: 2 | B178: Antunovac | C178: 14
A179: 3 | B179: Babina Greda | C179: 16
A180: 4 | B180: Bakar | C180: 8
A181: 5 | B181: Bale | C181: 18
A182: 6 | B182: Barban | C182: 18
A183: 7 | B183: Barilovići | C183: 4
A184: 8 | B184: Baška | C184: 8
A185: 9 | B185: Baška Voda | C185: 17
A186: 10 | B186: Bebrina | C186: 12
A187: 11 | B187: Bedekovčina | C187: 2
A188: 12 | B188: Bednja | C188: 5
A189: 13 | B189: Beli Manastir | C189: 14
A190: 15 | B190: Belica | C190: 20
A191: 16 | B191: Belišće | C191: 14
A192: 17 | B192: Benkovac | C192: 13
A193: 18 | B193: Berek | C193: 7
A194: 19 | B194: Beretinec | C194: 5
A195: 20 | B195: Bibinje | C195: 13
A196: 21 | B196: Bilje | C196: 14
A197: 22 | B197: Biograd na Moru | C197: 13
A198: 23 | B198: Bizovac | C198: 14
A199: 24 | B199: Bjelovar | C199: 7
A200: 25 | B200: Blato | C200: 19
A201: 26 | B201: Bogdanovci | C201: 16
A202: 27 | B202: Bol | C202: 17
A203: 29 | B203: Borovo | C203: 16
A204: 30 | B204: Bosiljevo | C204: 4
A205: 32 | B205: Bošnjaci | C205: 16
A206: 33 | B206: Brckovljani | C206: 1
A207: 34 | B207: Brdovec | C207: 1
A208: 35 | B208: Brestovac | C208: 11
A209: 36 | B209: Breznica | C209: 5
A210: 37 | B210: Brinje | C210: 9
A211: 38 | B211: Brod Moravice | C211: 8
A212: 39 | B212: Brodski Stupnik | C212: 12
A213: 40 | B213: Brtonigla | C213: 18
A214: 41 | B214: Budinščina | C214: 2
A215: 42 | B215: Buje | C215: 18
A216: 43 | B216: Buzet | C216: 18
A217: 44 | B217: Cerna | C217: 16
A218: 46 | B218: Cernik | C218: 12
A219: 47 | B219: Cerovlje | C219: 18
A220: 48 | B220: Cestica | C220: 5
A221: 49 | B221: Cetingrad | C221: 4
A222: 50 | B222: Cista Provo | C222: 17
A223: 51 | B223: Civljane | C223: 15
A224: 52 | B224: Cres | C224: 8
A225: 53 | B225: Crikvenica | C225: 8
A226: 54 | B226: Crnac | C226: 10
A227: 55 | B227: Čabar | C227: 8
A228: 56 | B228: Čačinci | C228: 10
A229: 57 | B229: Čađavica | C229: 10
A230: 58 | B230: Čaglin | C230: 11
A231: 60 | B231: Čakovec | C231: 20
A232: 61 | B232: Čavle | C232: 8
A233: 63 | B233: Čazma | C233: 7
A234: 64 | B234: Čeminac | C234: 14
A235: 65 | B235: Čepin | C235: 14
A236: 66 | B236: Darda | C236: 14
A237: 67 | B237: Daruvar | C237: 7
A238: 68 | B238: Davor | C238: 12
A239: 69 | B239: Delnice | C239: 8
A240: 70 | B240: Desinić | C240: 2
A241: 71 | B241: Dežanovac | C241: 7
A242: 72 | B242: Dicmo | C242: 17
A243: 74 | B243: Dobrinj | C243: 8
A244: 75 | B244: Domašinec | C244: 20
A245: 77 | B245: Brela | C245: 17
A246: 78 | B246: Donja Dubrava | C246: 20
A247: 79 | B247: Donja Stubica | C247: 2
A248: 80 | B248: Donja Voća | C248: 5
A249: 81 | B249: Donji Andrijevci | C249: 12
A250: 82 | B250: Donji Kraljevec | C250: 20
A251: 83 | B251: Donji Kukuruzari | C251: 3
A252: 84 | B252: Donji Lapac | C252: 9
A253: 85 | B253: Martijanec | C253: 5
A254: 86 | B254: Donji Miholjac | C254: 14
A255: 87 | B255: Muć | C255: 17
... 1342 more rows

Sheet Bilanca
A1: Navigacija | B1: Naslovna | C1: RefStr | D1: Bilanca | E1: RDG | F1: Dodatni | G1: NT_I | H1: NT_D | I1: PK | J1: Kont | Q1: =MAX(Q2:Q3) -> 1 | R1: - ako je bilo koji AOP različit od nule 1 u suprotnom 0
A2: BILANCA | J2: Obrazac POD-BIL | Q2: =IF(OR(MIN(I9:I136)<0,MAX(I9:I136)>0),1,0) -> 1 | R2: - ako je upisan bilo koji AOP u koloni prethodne godine, 1 u suprotnom 0
A3: ="stanje na dan " & IF(RefStr!F4<>"", TEXT(RefStr!F4, "DD.MM.YYYY."),"__.__.____.") -> stanje na dan 31.12.2024. | Q3: =IF(OR(MIN(J9:J136)<0,MAX(J9:J136)>0),1,0) -> 1 | R3: - ako je upisan bilo koji AOP u koloni tekuće godine 1 u suprotnom 0
A5: ="Obveznik: "&IF(RefStr!C27<>"",RefStr!C27,"________") & "; " & IF(RefStr!C29<>"",RefStr!C29,"_________________"&"; "&IF(RefStr!F31<>"",RefStr!F31,"_______________")) -> Obveznik: 48188420009; Zračna luka Osijek d.o.o. | I5: Iznosi u eurima i centima | Q5: =IF(I99<>0,1,0) -> 0 | R5: - ako je bilo što upisano u konsolidirana polja u kolonu prethodne godine 1, u suprotnom nula
A6: Naziv pozicije | G6: AOP oznaka | H6: Rbr. bilješke | I6: Prethodna godina (neto) | J6: Tekuća godina (neto) | Q6: =IF(J99<>0,1,0) -> 0 | R6: - ako je bilo što upisano u konsolidirana polja u kolonu tekuće godine 1, u suprotnom nula
A7: 1 | G7: 2 | H7: 3 | I7: 4 | J7: 5
A8: AKTIVA
A9: A) POTRAŽIVANJA ZA UPISANI A NEUPLAĆENI KAPITAL | G9: 1 | L9: +
A10: B) DUGOTRAJNA IMOVINA (AOP 003+010+020+031+036) | G10: 2 | I10: =ROUND(I11+I18+I28+I39+I44,2) -> 13185733.12 | J10: =ROUND(J11+J18+J28+J39+J44,2) -> 13933876.75 | L10: +
A11: I. NEMATERIJALNA IMOVINA (AOP 004 do 009) | G11: 3 | I11: =ROUND(SUM(I12:I17),2) -> 213753.07 | J11: =ROUND(SUM(J12:J17),2) -> 161966.67 | L11: +
A12: 1. Izdaci za razvoj | G12: 4 | L12: +
A13: 2. Koncesije, patenti, licencije, robne i uslužne marke, softver i ostala prava | G13: 5 | I13: 213753.07 | J13: 161966.67 | L13: +
A14: 3. Goodwill | G14: 6 | L14: +
A15: 4. Predujmovi za nabavu nematerijalne imovine | G15: 7 | L15: +
A16: 5. Nematerijalna imovina u pripremi | G16: 8 | L16: +
A17: 6. Ostala nematerijalna imovina | G17: 9 | L17: +
A18: II. MATERIJALNA IMOVINA (AOP 011 do 019) | G18: 10 | I18: =ROUND(SUM(I19:I27),2) -> 12957889.09 | J18: =ROUND(SUM(J19:J27),2) -> 13757819.12 | L18: +
A19: 1. Zemljište | G19: 11 | I19: 2033855.94 | J19: 2033675.41 | L19: +
A20: 2. Građevinski objekti | G20: 12 | I20: 8124824.68 | J20: 8177749.5 | L20: +
A21: 3. Postrojenja i oprema | G21: 13 | I21: 671411.7 | J21: 653630.99 | L21: +
A22: 4. Alati, pogonski inventar i transportna imovina | G22: 14 | I22: 419900.94 | J22: 364871.63 | L22: +
A23: 5. Biološka imovina | G23: 15 | L23: +
A24: 6. Predujmovi za materijalnu imovinu | G24: 16 | I24: 905945 | J24: 796417.62 | L24: +
A25: 7. Materijalna imovina u pripremi | G25: 17 | I25: 784552.17 | J25: 1714142.95 | L25: +
A26: 8. Ostala materijalna imovina | G26: 18 | I26: 17398.66 | J26: 17331.02 | L26: +
A27: 9. Ulaganje u nekretnine | G27: 19 | L27: +
A28: III. DUGOTRAJNA FINANCIJSKA IMOVINA (AOP 021 do 030) | G28: 20 | I28: =ROUND(SUM(I29:I38),2) -> 14090.96 | J28: =ROUND(SUM(J29:J38),2) -> 14090.96 | L28: +
A29: 1. Ulaganja u udjele (dionice) poduzetnika unutar grupe | G29: 21 | L29: +
A30: 2. Ulaganja u ostale vrijednosne papire poduzetnika unutar grupe | G30: 22 | L30: +
A31: 3. Dani zajmovi, depoziti i slično poduzetnicima unutar grupe | G31: 23 | L31: +
A32: 4.Ulaganja u udjele (dionice) društava povezanih sudjelujućim interesom | G32: 24 | L32: +
A33: 5. Ulaganja u ostale vrijednosne papire društava povezanih sudjelujućim interesom | G33: 25 | I33: 9210.96 | J33: 9210.96 | L33: +
A34: 6. Dani zajmovi, depoziti i slično društvima povezanim sudjelujućim interesom | G34: 26 | L34: +
A35: 7. Ulaganja u vrijednosne papire | G35: 27 | L35: +
A36: 8. Dani zajmovi, depoziti i slično | G36: 28 | I36: 4880 | J36: 4880 | L36: +
A37: 9. Ostala ulaganja koja se obračunavaju metodom udjela | G37: 29 | L37: +
A38: 10. Ostala dugotrajna financijska imovina | G38: 30 | L38: +
A39: IV. POTRAŽIVANJA (AOP 032 do 035) | G39: 31 | I39: =ROUND(SUM(I40:I43),2) -> 0 | J39: =ROUND(SUM(J40:J43),2) -> 0 | L39: +
A40: 1. Potraživanja od poduzetnika unutar grupe | G40: 32 | L40: +
A41: 2. Potraživanja od društava povezanih sudjelujućim interesom | G41: 33 | L41: +
A42: 3. Potraživanja od kupaca | G42: 34 | L42: +
A43: 4. Ostala potraživanja | G43: 35 | L43: +
A44: V. ODGOĐENA POREZNA IMOVINA | G44: 36 | L44: +
A45: C) KRATKOTRAJNA IMOVINA (AOP 038+046+053+063) | G45: 37 | I45: =ROUND(I46+I54+I61+I71,2) -> 309542.53 | J45: =ROUND(J46+J54+J61+J71,2) -> 707761.76 | L45: +
A46: I. ZALIHE (AOP 039 do 045) | G46: 38 | I46: =ROUND(SUM(I47:I53),2) -> 25755.93 | J46: =ROUND(SUM(J47:J53),2) -> 33484.17 | L46: +
A47: 1. Sirovine i materijal | G47: 39 | I47: 20129 | J47: 22377.86 | L47: +
A48: 2. Proizvodnja u tijeku | G48: 40 | L48: +
A49: 3. Gotovi proizvodi | G49: 41 | L49: +
A50: 4. Trgovačka roba | G50: 42 | I50: 5626.93 | J50: 11106.31 | L50: +
A51: 5. Predujmovi za zalihe | G51: 43 | L51: +
A52: 6. Dugotrajna imovina namijenjena prodaji | G52: 44 | L52: +
A53: 7. Biološka imovina | G53: 45 | L53: +
A54: II. POTRAŽIVANJA (AOP 047 do 052) | G54: 46 | I54: =ROUND(SUM(I55:I60),2) -> 232882.22 | J54: =ROUND(SUM(J55:J60),2) -> 314734.91 | L54: +
A55: 1. Potraživanja od poduzetnika unutar grupe | G55: 47 | L55: +
A56: 2. Potraživanja od društava povezanih sudjelujućim interesom | G56: 48 | L56: +
A57: 3. Potraživanja od kupaca | G57: 49 | I57: 189519.47 | J57: 257518.11 | L57: +
A58: 4. Potraživanja od zaposlenika i članova poduzetnika | G58: 50 | L58: +
A59: 5. Potraživanja od države i drugih institucija | G59: 51 | I59: 37092.46 | J59: 47020.05 | L59: +
A60: 6. Ostala potraživanja | G60: 52 | I60: 6270.29 | J60: 10196.75 | L60: +
A61: III. KRATKOTRAJNA FINANCIJSKA IMOVINA (AOP 054 do 062) | G61: 53 | I61: =ROUND(SUM(I62:I70),2) -> 0 | J61: =ROUND(SUM(J62:J70),2) -> 0 | L61: +
A62: 1. Ulaganja u udjele (dionice) poduzetnika unutar grupe | G62: 54 | L62: +
A63: 2. Ulaganja u ostale vrijednosne papire poduzetnika unutar grupe | G63: 55 | L63: +
A64: 3. Dani zajmovi, depoziti i slično poduzetnicima unutar grupe | G64: 56 | L64: +
A65: 4. Ulaganja u udjele (dionice) društava povezanih sudjelujućim interesom | G65: 57 | L65: +
A66: 5. Ulaganja u ostale vrijednosne papire društava povezanih sudjelujućim interesom | G66: 58 | L66: +
A67: 6. Dani zajmovi, depoziti i slično društvima povezanim sudjelujućim interesom | G67: 59 | L67: +
A68: 7. Ulaganja u vrijednosne papire | G68: 60 | L68: +
A69: 8. Dani zajmovi, depoziti i slično | G69: 61 | L69: +
A70: 9. Ostala financijska imovina | G70: 62 | L70: +
A71: IV. NOVAC U BANCI I BLAGAJNI | G71: 63 | I71: 50904.38 | J71: 359542.68 | L71: +
A72: D) PLAĆENI TROŠKOVI BUDUĆEG RAZDOBLJA I OBRAČUNATI PRIHODI | G72: 64 | I72: 104844.53 | J72: 26109.43 | L72: +
A73: E) UKUPNO AKTIVA (AOP 001+002+037+064) | G73: 65 | I73: =ROUND(I9+I10+I45+I72,2) -> 13600120.18 | J73: =ROUND(J9+J10+J45+J72,2) -> 14667747.94 | L73: +
A74: F) IZVANBILANČNI ZAPISI | G74: 66 | L74: +
A75: PASIVA
A76: A) KAPITAL I REZERVE (AOP 068 do 070+076+077+084+087+090) | G76: 67 | I76: =ROUND(I77+I78+I79+I85+I86+I93+I96+I99,2) -> 812816.6 | J76: =ROUND(J77+J78+J79+J85+J86+J93+J96+J99,2) -> 1150223.83 | L76: =
A77: I. TEMELJNI (UPISANI) KAPITAL | G77: 68 | I77: 3478000 | J77: 3478000 | L77: +
A78: II. KAPITALNE REZERVE | G78: 69 | L78: =
A79: III. REZERVE IZ DOBITI (AOP 071+072-073+074+075) | G79: 70 | I79: =ROUND(I80+I81-I82+I83+I84,2) -> 0 | J79: =ROUND(J80+J81-J82+J83+J84,2) -> 0 | L79: =
A80: 1. Zakonske rezerve | G80: 71 | L80: =
A81: 2. Rezerve za vlastite dionice | G81: 72 | L81: =
A82: 3. Vlastite dionice i udjeli (odbitna stavka) | G82: 73 | L82: =
A83: 4. Statutarne rezerve | G83: 74 | L83: =
A84: 5. Ostale rezerve | G84: 75 | L84: =
A85: IV. REVALORIZACIJSKE REZERVE | G85: 76 | L85: =
A86: V. REZERVE FER VRIJEDNOSTI I OSTALO (AOP 078 do 083) | G86: 77 | I86: =ROUND(SUM(I87:I92),2) -> 0 | J86: =ROUND(SUM(J87:J92),2) -> 0 | L86: =
A87: 1. Fer vrijednost financijske imovine kroz ostalu sveobuhvatnu dobit (odnosno raspoložive za prodaju) | G87: 78 | L87: =
A88: 2. Učinkoviti dio zaštite novčanih tokova | G88: 79 | L88: =
A89: 3. Učinkoviti dio zaštite neto ulaganja u inozemstvu | G89: 80 | L89: =
A90: 4. Ostale rezerve fer vrijednosti | G90: 81 | L90: =
A91: 5. Tečajne razlike iz preračuna inozemnog poslovanja (konsolidacija) | G91: 82 | L91: =
A92: 6. Tečajne razlike zbog preračuna u prezentacijsku valutu | G92: 83 | L92: =
A93: VI. ZADRŽANA DOBIT ILI PRENESENI GUBITAK (AOP 085-086) | G93: 84 | I93: =ROUND(I94-I95,2) -> -1945844.8 | J93: =ROUND(J94-J95,2) -> -2665183.4 | L93: =
A94: 1. Zadržana dobit | G94: 85 | L94: +
A95: 2. Preneseni gubitak | G95: 86 | I95: 1945844.8 | J95: 2665183.4 | L95: +
A96: VII. DOBIT ILI GUBITAK POSLOVNE GODINE (AOP 088-089) | G96: 87 | I96: =ROUND(I97-I98,2) -> -719338.6 | J96: =ROUND(J97-J98,2) -> 337407.23 | L96: =
A97: 1. Dobit poslovne godine | G97: 88 | J97: 337407.23 | L97: +
A98: 2. Gubitak poslovne godine | G98: 89 | I98: 719338.6 | L98: +
A99: VIII. MANJINSKI (NEKONTROLIRAJUĆI) INTERES | G99: 90 | I99: 0 | L99: =
A100: B) REZERVIRANJA (AOP 092 do 097) | G100: 91 | I100: =ROUND(SUM(I101:I106),2) -> 22102.96 | J100: =ROUND(SUM(J101:J106),2) -> 21650.41 | L100: +
A101: 1. Rezerviranja za mirovine, otpremnine i slične obveze | G101: 92 | L101: +
A102: 2. Rezerviranja za porezne obveze | G102: 93 | L102: +
A103: 3. Rezerviranja za započete sudske sporove | G103: 94 | I103: 22102.96 | J103: 21650.41 | L103: +
A104: 4. Rezerviranja za troškove obnavljanja prirodnih bogatstava | G104: 95 | L104: +
A105: 5. Rezerviranja za troškove u jamstvenim rokovima | G105: 96 | L105: +
A106: 6. Druga rezerviranja | G106: 97 | L106: +
A107: C) DUGOROČNE OBVEZE (AOP 099 do 109) | G107: 98 | I107: =ROUND(SUM(I108:I118),2) -> 2959653.22 | J107: =ROUND(SUM(J108:J118),2) -> 2722386.1 | L107: +
A108: 1. Obveze prema poduzetnicima unutar grupe | G108: 99 | L108: +
A109: 2. Obveze za zajmove, depozite i slično poduzetnika unutar grupe | G109: 100 | L109: +
A110: 3. Obveze prema društvima povezanim sudjelujućim interesom | G110: 101 | L110: +
A111: 4. Obveze za zajmove, depozite i slično društava povezanih sudjelujućim interesom | G111: 102 | L111: +
A112: 5. Obveze za zajmove, depozite i slično | G112: 103 | L112: +
A113: 6. Obveze prema bankama i drugim financijskim institucijama | G113: 104 | I113: 2936317.59 | J113: 2710718.29 | L113: +
A114: 7. Obveze za predujmove | G114: 105 | L114: +
A115: 8. Obveze prema dobavljačima | G115: 106 | L115: +
A116: 9. Obveze po vrijednosnim papirima | G116: 107 | L116: +
A117: 10. Ostale dugoročne obveze | G117: 108 | I117: 23335.63 | J117: 11667.81 | L117: +
A118: 11. Odgođena porezna obveza | G118: 109 | L118: +
A119: D) KRATKOROČNE OBVEZE (AOP 111 do 124) | G119: 110 | I119: =ROUND(SUM(I120:I133),2) -> 417850.17 | J119: =ROUND(SUM(J120:J133),2) -> 673692.45 | L119: +
A120: 1. Obveze prema poduzetnicima unutar grupe | G120: 111 | L120: +
A121: 2. Obveze za zajmove, depozite i slično poduzetnika unutar grupe | G121: 112 | L121: +
A122: 3. Obveze prema društvima povezanim sudjelujućim interesom | G122: 113 | L122: +
A123: 4. Obveze za zajmove, depozite i slično društava povezanih sudjelujućim interesom | G123: 114 | L123: +
A124: 5. Obveze za zajmove, depozite i slično | G124: 115 | L124: +
A125: 6. Obveze prema bankama i drugim financijskim institucijama | G125: 116 | I125: 38792.22 | J125: 244295.76 | L125: +
A126: 7. Obveze za predujmove | G126: 117 | I126: 8623.52 | J126: 11748.85 | L126: +
A127: 8. Obveze prema dobavljačima | G127: 118 | I127: 129118.78 | J127: 133656.24 | L127: +
A128: 9. Obveze po vrijednosnim papirima | G128: 119 | L128: +
A129: 10. Obveze prema zaposlenicima | G129: 120 | I129: 52081.83 | J129: 76820.88 | L129: +
A130: 11. Obveze za poreze, doprinose i slična davanja | G130: 121 | I130: 28200.06 | J130: 36733.77 | L130: +
A131: 12. Obveze s osnove udjela u rezultatu | G131: 122 | L131: +
A132: 13. Obveze po osnovi dugotrajne imovine namijenjene prodaji | G132: 123 | L132: +
A133: 14. Ostale kratkoročne obveze | G133: 124 | I133: 161033.76 | J133: 170436.95 | L133: +
A134: E) ODGOĐENO PLAĆANJE TROŠKOVA I PRIHOD BUDUĆEGA RAZDOBLJA | G134: 125 | I134: 9387697.23 | J134: 10099795.15 | L134: +
A135: F) UKUPNO – PASIVA (AOP 067+091+098+110+125) | G135: 126 | I135: =ROUND(I76+I100+I107+I119+I134,2) -> 13600120.18 | J135: =ROUND(J76+J100+J107+J119+J134,2) -> 14667747.94 | L135: +
A136: G) IZVANBILANČNI ZAPISI | G136: 127 | L136: +

Sheet RDG
A1: Navigacija | B1: Naslovna | C1: RefStr | D1: Bilanca | E1: RDG | F1: Dodatni | G1: NT_I | H1: NT_D | I1: PK | J1: Kont | Q1: =MAX(Q2:Q3) -> 1 | R1: - ako je bilo koji AOP različit od nule 1 u suprotnom 0
A2: RAČUN DOBITI I GUBITKA | J2: Obrazac POD-RDG | Q2: =IF(OR(MIN(I8:I114)<0,MAX(I8:I114)>0),1,0) -> 1 | R2: - ako je upisan bilo koji AOP u koloni prethodne godine, 1 u suprotnom 0
A3: ="za razdoblje " & IF(RefStr!C4<>"", TEXT(RefStr!C4, "DD.MM.YYYY."), "__.__.____.") & " do " & IF(RefStr!F4<>"", TEXT(RefStr!F4, "DD.MM.YYYY."),"__.__.____.") -> za razdoblje 01.01.2024. do 31.12.2024. | Q3: =IF(OR(MIN(J8:J114)<0,MAX(J8:J114)>0),1,0) -> 1 | R3: - ako je upisan bilo koji AOP u koloni tekuće godine 1 u suprotnom 0
A5: ="Obveznik: "&IF(RefStr!C27<>"",RefStr!C27,"________") & "; " & IF(RefStr!C29<>"",RefStr!C29,"_________________"&"; "&IF(RefStr!F31<>"",RefStr!F31,"_______________")) -> Obveznik: 48188420009; Zračna luka Osijek d.o.o. | I5: Iznosi u eurima i centima | Q5: =IF(OR(MIN(I85:I87,I112:I114)<0,MAX(I85:I87,I112:I114)>0),1,0) -> 0 | R5: - ako je bilo što upisano u konsolidirana polja u kolonu prethodne godine 1, u suprotnom nula
A6: Naziv pozicije | G6: AOP oznaka | H6: Rbr. bilješke | I6: Prethodna godina | J6: Tekuća godina | Q6: =IF(OR(MIN(J85:J87,J112:J114)<0,MAX(J85:J87,J112:J114)>0),1,0) -> 0 | R6: - ako je bilo što upisano u konsolidirana polja u kolonu tekuće godine 1, u suprotnom nula
A7: 1 | G7: 2 | H7: 3 | I7: 4 | J7: 5 | Q7: =IF(OR(MIN(RDG!I89:J110)<0,MAX(RDG!I89:J110)>0),1,0) -> 1 | R7: - ako je bilo što upisano u izvještaj o sveobuhvatnoj dobiti 1, u suprotnom 0
A8: I. POSLOVNI PRIHODI (AOP 129 do 133) | G8: 128 | I8: =ROUND(SUM(I9:I13),2) -> 2963897.89 | J8: =ROUND(SUM(J9:J13),2) -> 3814391.16 | L8: + | Q8: =IF(OR(MIN(I70:J75)<>0,MAX(I70:J75)<>0),1,0) -> 0 | R8: - ako je bilo što upisano u prekinuto poslovanje 1, u suprotnom 0
A9: 1. Prihodi od prodaje s poduzetnicima unutar grupe | G9: 129 | L9: +
A10: 2. Prihodi od prodaje (izvan grupe) | G10: 130 | I10: 1087059.73 | J10: 1297798.1 | L10: +
A11: 3. Prihodi na temelju upotrebe vlastitih proizvoda, robe i usluga | G11: 131 | L11: +
A12: 4. Ostali poslovni prihodi s poduzetnicima unutar grupe | G12: 132 | L12: +
A13: 5. Ostali poslovni prihodi (izvan grupe) | G13: 133 | I13: 1876838.16 | J13: 2516593.06 | L13: +
A14: II. POSLOVNI RASHODI (AOP 135+136+140+144 do 146+149+156) | G14: 134 | I14: =ROUND(I15+I16+I20+I24+I25+I26+I29+I36,2) -> 3590896.11 | J14: =ROUND(J15+J16+J20+J24+J25+J26+J29+J36,2) -> 3386404.5 | L14: +
A15: 1. Promjene vrijednosti zaliha proizvodnje u tijeku i gotovih proizvoda | G15: 135 | L15: =
A16: 2. Materijalni troškovi (AOP 137 do 139) | G16: 136 | I16: =ROUND(SUM(I17:I19),2) -> 2032806.65 | J16: =ROUND(SUM(J17:J19),2) -> 1512563.46 | L16: +
A17: a) Troškovi sirovina i materijala | G17: 137 | I17: 422993.64 | J17: 259191.02 | L17: +
A18: b) Troškovi prodane robe | G18: 138 | I18: 52898.99 | J18: 80118.35 | L18: +
A19: c) Ostali vanjski troškovi | G19: 139 | I19: 1556914.02 | J19: 1173254.09 | L19: +
A20: 3. Troškovi osoblja (AOP 141 do 143) | G20: 140 | I20: =ROUND(SUM(I21:I23),2) -> 838818.61 | J20: =ROUND(SUM(J21:J23),2) -> 1117044.22 | L20: +
A21: a) Neto plaće i nadnice | G21: 141 | I21: 533627.11 | J21: 715830.16 | L21: +
A22: b) Troškovi poreza i doprinosa iz plaća | G22: 142 | I22: 193377.05 | J22: 256871 | L22: +
A23: c) Doprinosi na plaće | G23: 143 | I23: 111814.45 | J23: 144343.06 | L23: +
A24: 4. Amortizacija | G24: 144 | I24: 366921.41 | J24: 372131.26 | L24: +
A25: 5. Ostali troškovi | G25: 145 | I25: 249909.36 | J25: 292257.42 | L25: +
A26: 6. Vrijednosna usklađenja (AOP 147+148) | G26: 146 | I26: =ROUND(SUM(I27:I28),2) -> 0 | J26: =ROUND(SUM(J27:J28),2) -> 0 | L26: =
A27: a) dugotrajne imovine osim financijske imovine | G27: 147 | L27: =
A28: b) kratkotrajne imovine osim financijske imovine | G28: 148 | L28: =
A29: 7. Rezerviranja (AOP 150 do 155) | G29: 149 | I29: =ROUND(SUM(I30:I35),2) -> 65429.75 | J29: =ROUND(SUM(J30:J35),2) -> 85139.85 | L29: =
A30: a) Rezerviranja za mirovine, otpremnine i slične obveze | G30: 150 | L30: =
A31: b) Rezerviranja za porezne obveze | G31: 151 | L31: =
A32: c) Rezerviranja za započete sudske sporove | G32: 152 | L32: =
A33: d) Rezerviranja za troškove obnavljanja prirodnih bogatstava | G33: 153 | L33: =
A34: e) Rezerviranja za troškove u jamstvenim rokovima | G34: 154 | L34: =
A35: f) Druga rezerviranja | G35: 155 | I35: 65429.75 | J35: 85139.85 | L35: =
A36: 8. Ostali poslovni rashodi | G36: 156 | I36: 37010.33 | J36: 7268.29 | L36: +
A37: III. FINANCIJSKI PRIHODI (AOP 158 do 167) | G37: 157 | I37: =ROUND(SUM(I38:I47),2) -> 36.28 | J37: =ROUND(SUM(J38:J47),2) -> 136.82 | L37: +
A38: 1. Prihodi od ulaganja u udjele (dionice) poduzetnika unutar grupe | G38: 158 | L38: +
A39: 2. Prihodi od ulaganja u udjele (dionice) društava povezanih sudjelujućim interesima | G39: 159 | L39: +
A40: 3. Prihodi od ostalih dugotrajnih financijskih ulaganja i zajmova poduzetnicima unutar grupe | G40: 160 | L40: +
A41: 4. Ostali prihodi s osnove kamata iz odnosa s poduzetnicima unutar grupe | G41: 161 | L41: +
A42: 5. Tečajne razlike i ostali financijski prihodi iz odnosa s poduzetnicima unutar grupe | G42: 162 | L42: +
A43: 6. Prihodi od ostalih dugotrajnih financijskih ulaganja i zajmova | G43: 163 | L43: +
A44: 7. Ostali prihodi s osnove kamata | G44: 164 | I44: 28.71 | J44: 65.92 | L44: +
A45: 8. Tečajne razlike i ostali financijski prihodi | G45: 165 | I45: 7.57 | J45: 70.9 | L45: +
A46: 9. Nerealizirani dobici (prihodi) od financijske imovine | G46: 166 | L46: +
A47: 10. Ostali financijski prihodi | G47: 167 | L47: +
A48: IV. FINANCIJSKI RASHODI (AOP 169 do 175) | G48: 168 | I48: =ROUND(SUM(I49:I55),2) -> 92376.66 | J48: =ROUND(SUM(J49:J55),2) -> 90716.25 | L48: +
A49: 1. Rashodi s osnove kamata i slični rashodi s poduzetnicima unutar grupe | G49: 169 | L49: +
A50: 2. Tečajne razlike i drugi rashodi s poduzetnicima unutar grupe | G50: 170 | L50: +
A51: 3. Rashodi s osnove kamata i slični rashodi | G51: 171 | I51: 92110.05 | J51: 90365.01 | L51: +
A52: 4. Tečajne razlike i drugi rashodi | G52: 172 | I52: 266.61 | J52: 351.24 | L52: +
A53: 5. Nerealizirani gubici (rashodi) od financijske imovine | G53: 173 | L53: +
A54: 6. Vrijednosna usklađenja financijske imovine (neto) | G54: 174 | L54: =
A55: 7. Ostali financijski rashodi | G55: 175 | L55: +
A56: V. UDIO U DOBITI OD DRUŠTAVA POVEZANIH SUDJELUJUĆIM INTERESOM | G56: 176 | L56: +
A57: VI. UDIO U DOBITI OD ZAJEDNIČKIH POTHVATA | G57: 177 | L57: +
A58: VII. UDIO U GUBITKU OD DRUŠTAVA POVEZANIH SUDJELUJUĆIM INTERESOM | G58: 178 | L58: +
A59: VIII. UDIO U GUBITKU OD ZAJEDNIČKIH POTHVATA | G59: 179 | L59: +
A60: IX. UKUPNI PRIHODI (AOP 128+157+176 + 177) | G60: 180 | I60: =ROUND(I8+I37+I56+I57,2) -> 2963934.17 | J60: =ROUND(J8+J37+J56+J57,2) -> 3814527.98 | L60: +
A61: X. UKUPNI RASHODI (AOP 134+168+178 + 179) | G61: 181 | I61: =ROUND(I14+I48+I58+I59,2) -> 3683272.77 | J61: =ROUND(J14+J48+J58+J59,2) -> 3477120.75 | L61: +
A62: XI. DOBIT ILI GUBITAK PRIJE OPOREZIVANJA (AOP 180-181) | G62: 182 | I62: =ROUND(I60-I61,2) -> -719338.6 | J62: =ROUND(J60-J61,2) -> 337407.23 | L62: =
A63: 1. Dobit prije oporezivanja (AOP 180-181) | G63: 183 | I63: =IF(I60>I61,ROUND(I60-I61,2),0) -> 0 | J63: =IF(J60>J61,ROUND(J60-J61,2),0) -> 337407.23 | L63: +
A64: 2. Gubitak prije oporezivanja (AOP 181-180) | G64: 184 | I64: =IF(I61>I60,ROUND(I61-I60,2),0) -> 719338.6 | J64: =IF(J61>J60,ROUND(J61-J60,2),0) -> 0 | L64: +
A65: XII. POREZ NA DOBIT | G65: 185 | L65: =
A66: XIII. DOBIT ILI GUBITAK RAZDOBLJA (AOP 182-185) | G66: 186 | I66: =ROUND(I62-I65,2) -> -719338.6 | J66: =ROUND(J62-J65,2) -> 337407.23 | L66: =
A67: 1. Dobit razdoblja (AOP 182-185) | G67: 187 | I67: =IF(I66>0,ROUND(I66,2),0) -> 0 | J67: =IF(J66>0,ROUND(J66,2),0) -> 337407.23 | L67: +
A68: 2. Gubitak razdoblja (AOP 185-182) | G68: 188 | I68: =IF(I66<0,ROUND(-I66,2),0) -> 719338.6 | J68: =IF(J66<0,ROUND(-J66,2),0) -> 0 | L68: +
A69: PREKINUTO POSLOVANJE (popunjava poduzetnik obveznika MSFI-a samo ako ima prekinuto poslovanje)
A70: XIV. DOBIT ILI GUBITAK PREKINUTOG POSLOVANJA PRIJE OPOREZIVANJA (AOP 190-191) | G70: 189 | I70: =ROUND(I71-I72,2) -> 0 | J70: =ROUND(J71-J72,2) -> 0 | L70: =
A71: 1. Dobit prekinutog poslovanja prije oporezivanja | G71: 190 | L71: +
A72: 2. Gubitak prekinutog poslovanja prije oporezivanja | G72: 191 | L72: +
A73: XV. POREZ NA DOBIT PREKINUTOG POSLOVANJA | G73: 192 | L73: =
A74: 1. Dobit prekinutog poslovanja za razdoblje (AOP 189-192) | G74: 193 | I74: =IF(I70-I73>0,ROUND(I70-I73,2),0) -> 0 | J74: =IF(J70-J73>0,ROUND(J70-J73,2),0) -> 0 | L74: +
A75: 2. Gubitak prekinutog poslovanja za razdoblje (AOP 192-189) | G75: 194 | I75: =IF(I73-I70>0,ROUND(I73-I70,2),0) -> 0 | J75: =IF(J73-J70>0,ROUND(J73-J70,2),0) -> 0 | L75: +
A76: UKUPNO POSLOVANJE (popunjava samo poduzetnik obveznik MSFI-a koji ima prekinuto poslovanje)
A77: XVI. DOBIT ILI GUBITAK PRIJE OPOREZIVANJA (AOP 182+189) | G77: 195 | I77: =ROUND((I62+I70)*$Q$8,2) -> 0 | J77: =ROUND((J62+J70)*$Q$8,2) -> 0 | L77: =
A78: 1. Dobit prije oporezivanja (AOP 195) | G78: 196 | I78: =IF(I77>0,ROUND(I77,2),0) -> 0 | J78: =IF(J77>0,ROUND(J77,2),0) -> 0 | L78: +
A79: 2. Gubitak prije oporezivanja (AOP 195) | G79: 197 | I79: =IF(I77<0,ROUND(-I77,2),0) -> 0 | J79: =IF(J77<0,ROUND(-J77,2),0) -> 0 | L79: +
A80: XVII. POREZ NA DOBIT (AOP 185+192) | G80: 198 | I80: =ROUND((I73+I65)*$Q$8,2) -> 0 | J80: =ROUND((J73+J65)*$Q$8,2) -> 0 | L80: =
A81: XVIII. DOBIT ILI GUBITAK RAZDOBLJA (AOP 195-198) | G81: 199 | I81: =ROUND(I82-I83,2) -> 0 | J81: =ROUND(J82-J83,2) -> 0 | L81: =
A82: 1. Dobit razdoblja (AOP 195-198) | G82: 200 | I82: =IF(I77-I80>0,ROUND(I77-I80,2),0) -> 0 | J82: =IF(J77-J80>0,ROUND(J77-J80,2),0) -> 0 | L82: +
A83: 2. Gubitak razdoblja (AOP 198-195) | G83: 201 | I83: =IF(I77-I80<0,ROUND(I80-I77,2),0) -> 0 | J83: =IF(J77-J80<0,ROUND(J80-J77,2),0) -> 0 | L83: +
A84: DODATAK RDG-u (popunjava poduzetnik koji sastavlja konsolidirani godišnji financijski izvještaj)
A85: XIX. DOBIT ILI GUBITAK RAZDOBLJA (AOP 203+204) | G85: 202 | I85: =ROUND(SUM(I86:I87),2) -> 0 | J85: =ROUND(SUM(J86:J87),2) -> 0 | L85: =
A86: 1. Pripisana imateljima kapitala matice | G86: 203 | L86: =
A87: 2. Pripisana manjinskom (nekontrolirajućem) interesu | G87: 204 | L87: =
A88: IZVJEŠTAJ O OSTALOJ SVEOBUHVATNOJ DOBITI (popunjava poduzetnik obveznik primjene MSFI-a)
A89: I. Dobit ili gubitak razdoblja | G89: 205 | I89: -719338.6 | J89: 337407.23 | L89: =
A90: II. Ostala sveobuhvatna dobit / gubitak prije poreza (AOP 208 do 212 + 215 do 223) | G90: 206 | I90: =ROUND(SUM(I92:I96)+SUM(I99:I107),2) -> 0 | J90: =ROUND(SUM(J92:J96)+SUM(J99:J107),2) -> 0 | L90: =
A91: III. Stavke koje neće biti reklasificirane u dobit ili gubitak (AOP 208 do 213) | G91: 207 | I91: =ROUND(SUM(I92:I97),2) -> 0 | J91: =ROUND(SUM(J92:J97),2) -> 0 | L91: =
A92: 1. Promjene revalorizacijskih rezervi dugotrajne materijalne i nematerijalne imovine | G92: 208 | L92: =
A93: 2. Dobitak ili gubitak s osnove naknadnog vrednovanja vlasničkih vrijednosnih papira po fer vrijednosti kroz ostalu sveobuhvatnu dobit | G93: 209 | L93: =
A94: 3. Promjene fer vrijednosti financijske obveze po fer vrijednosti kroz račun dobiti i gubitka koja se može pripisati promjenama kreditnog rizika obveze | G94: 210 | L94: =
A95: 4. Aktuarski dobici/gubici po planovima definiranih primanja | G95: 211 | L95: =
A96: 5. Ostale stavke koje neće biti reklasificirane | G96: 212 | L96: =
A97: 6. Porez na dobit koji se odnosi na stavke koje neće biti reklasificirane | G97: 213 | L97: =
A98: IV. Stavke koje je moguće reklasificirati u dobit ili gubitak (AOP 215 do 224) | G98: 214 | I98: =ROUND(SUM(I99:I108),2) -> 0 | J98: =ROUND(SUM(J99:J108),2) -> 0 | L98: =
A99: 1. Tečajne razlike iz preračuna inozemnog poslovanja | G99: 215 | L99: =
A100: 2. Tečajne razlike zbog preračuna u prezentacijsku valutu | G100: 216 | L100: =
A101: 3. Dobitak ili gubitak s osnove naknadnog vrednovanja dužničkih vrijednosnih papira po fer vrijednosti kroz ostalu sveobuhvatnu dobit | G101: 217 | L101: =
A102: 4. Dobit ili gubitak s osnove učinkovite zaštite novčanih tokova | G102: 218 | L102: =
A103: 5. Dobit ili gubitak s osnove učinkovite zaštite neto ulaganja u inozemstvu | G103: 219 | L103: =
A104: 6. Udio u ostaloj sveobuhvatnoj dobiti/gubitku društava povezanih sudjelujućim interesom | G104: 220 | L104: =
A105: 7. Promjene fer vrijednosti vremenske vrijednosti opcije | G105: 221 | L105: =
A106: 8. Promjene fer vrijednosti terminskih elemenata terminskih ugovora | G106: 222 | L106: =
A107: 9. Ostale stavke koje je moguće reklasificirati u dobit ili gubitak | G107: 223 | L107: =
A108: 10. Porez na dobit koji se odnosi na stavke koje je moguće reklasificirati u dobit ili gubitak | G108: 224 | L108: =
A109: V. Neto ostala sveobuhvatna dobit ili gubitak (AOP 207+214) | G109: 225 | I109: =ROUND(SUM(I91+I98),2) -> 0 | J109: =ROUND(SUM(J91+J98),2) -> 0 | L109: =
A110: VI. Ukupna sveobuhvatna dobit ili gubitak razdoblja (AOP 205+225) | G110: 226 | I110: =ROUND(SUM(I89+I109),2) -> -719338.6 | J110: =ROUND(SUM(J89+J109),2) -> 337407.23 | L110: =
A111: DODATAK Izvještaju o ostaloj sveobuhvatnoj dobiti (popunjava poduzetnik koji sastavlja konsolidirani izvještaj)
A112: VI. Sveobuhvatna dobit ili gubitak razdoblja (AOP 228+229) | G112: 227 | I112: =ROUND(SUM(I113:I114),2) -> 0 | J112: =ROUND(SUM(J113:J114),2) -> 0 | L112: =
A113: 1. Pripisana imateljima kapitala matice | G113: 228 | L113: =
A114: 2. Pripisana manjinskom (nekontrolirajućem) interesu | G114: 229 | L114: =

Sheet Dodatni
A1: Navigacija | B1: Naslovna | C1: RefStr | D1: Bilanca | E1: RDG | F1: Dodatni | G1: NT_I | H1: NT_D | I1: PK | J1: Kont | Q1: =MAX(Q2:Q3) -> 0 | R1: - ako je bilo koji AOP različit od nule 1 u suprotnom 0
A2: DODATNI PODACI | J2: Obrazac POD-DOP | Q2: =IF(MAX(I9:I88)>0,1,0) -> 0 | R2: - ako je upisan bilo koji AOP u koloni prethodne godine, 1 u suprotnom 0
A3: ="za razdoblje " & IF(RefStr!C4<>"", TEXT(RefStr!C4, "DD.MM.YYYY."), "__.__.____.") & " do " & IF(RefStr!F4<>"", TEXT(RefStr!F4, "DD.MM.YYYY."),"__.__.____.") -> za razdoblje 01.01.2024. do 31.12.2024. | Q3: =IF(MAX(J9:J88)>0,1,0) -> 0 | R3: - ako je upisan bilo koji AOP u koloni tekuće godine 1 u suprotnom 0
A5: ="Obveznik: "&IF(RefStr!C27<>"",RefStr!C27,"________") & "; " & IF(RefStr!C29<>"",RefStr!C29,"_________________"&"; "&IF(RefStr!F31<>"",RefStr!F31,"_______________")) -> Obveznik: 48188420009; Zračna luka Osijek d.o.o. | I5: Iznosi u eurima i centima
A6: Naziv pozicije | H6: AOP oznaka | I6: Prethodna godina | J6: Tekuća godina
A7: 1 | H7: 2 | I7: 3 | J7: 4
A8: Bilanca - aktiva
A9: 1. Zalihe energetskih proizvoda (ugljen, nafta, derivati, plin i dr.) - bruto | H9: 230 | L9: +
A10: 2. Zajmovi dani kućanstvima i obrtima | H10: 231 | L10: +
A11: 3. Zajmovi dani nefinancijskim poduzećima | H11: 232 | L11: +
A12: 4. Zajmovi dani nerezidentima | H12: 233 | L12: +
A13: 5. Trgovački krediti i predujmovi dani kućanstvima i obrtima | H13: 234 | L13: +
A14: 6. Trgovački krediti i predujmovi dani nefinancijskim poduzećima | H14: 235 | L14: +
A15: 7. Trgovački krediti i predujmovi dani nerezidentima | H15: 236 | L15: +
A16: Bilanca - pasiva
A17: 8. Krediti i zajmovi primljeni od nerezidenata | H17: 237 | L17: +
A18: 9. Zajmovi primljeni od kućanstva i obrta | H18: 238 | L18: +
A19: 10. Zajmovi primljeni od nefinancijskih poduzeća | H19: 239 | L19: +
A20: 11. Trgovački krediti i predujmovi primljeni od kućanstva i obrta | H20: 240 | L20: +
A21: 12. Trgovački krediti i predujmovi primljeni od nefinancijskih poduzeća | H21: 241 | L21: +
A22: Račun dobiti i gubitka - poslovni prihodi
A23: 13. Prihodi od prodaje s poduzetnicima unutar grupe, rezidentima RH | H23: 242 | L23: +
A24: Prihodi od prodaje prema djelatnostima
A25: 14. Prihod od industrijskih djelatnosti | H25: 243 | L25: +
A26: 15. Prihod od trgovine (prodaje roba i usluga nabavljenih isključivo za daljnju prodaju i trgovačkih usluga) - ukupni | H26: 244 | L26: +
A27: 16. Prihod od trgovine ostvaren s poduzetnicima unutar grupe, rezidentima RH | H27: 245 | L27: +
A28: 17. Prihod od posredništva (provizija od posredovanja) | H28: 246 | L28: +
A29: 18. Prihod od građevinske djelatnosti - radova na zgradama | H29: 247 | L29: +
A30: 19. Prihod od građevinske djelatnosti - radova na ostalim građevinama | H30: 248 | L30: +
A31: 20. Prihod od građevinske djelatnosti kao podugovaratelj (podizvođač) | H31: 249 | L31: +
A32: 21. Prihod od poljoprivrede, šumarstva i ribarstva | H32: 250 | L32: +
A33: 22. Prihodi od djelatnosti pružanja smještaja te pripreme i usluživanja hrane i pića | H33: 251 | L33: +
A34: 23. Prihod od djelatnosti prijevoza i skladištenja, izdavačkih, filmskih, telekomunikacijskih, informacijskih i djelatnosti računalnog programiranja te emitiranja programa | H34: 252 | L34: +
A35: 24. Prihod od ostalih djelatnosti (financija, osiguranja, nekretnina, inženjerstva, znanosti, promidžbe, putničkih agencija, obrazovanja, zdravstva, umjetnosti i dr. prema uputama) | H35: 253 | L35: +
A36: Prihodi od prodaje prema rezidentnosti kupca
A37: 25. Prihodi od prodaje u zemlji | H37: 254 | L37: +
A38: 26. Prihodi od prodaje u inozemstvu | H38: 255 | L38: +
A39: Prihodi na temelju upotrebe vlastitih proizvoda, robe i usluga
A40: 27. Kapitalizirana proizvodnja za vlastite potrebe | H40: 256 | L40: +
A41: Ostali poslovni prihodi
A42: 28. Ostali poslovni prihodi ostvareni s poduzetnicima unutar grupe, rezidentima RH | H42: 257 | L42: +
A43: 29. Prihodi od subvencija ukupno | H43: 258 | L43: +
A44: 29.1. u tome: subvencije na proizvode | H44: 259 | L44: +
A45: 30. Prihodi od poslovnog najma nekretnina, opreme i slično | H45: 260 | L45: +
A46: 31. Prihodi od najma zemljišta i prihodi od tantijema za iskorištavanje nafte, plina i drugih prirodnih dobara | H46: 261 | L46: +
A47: 32. Prihodi od ukidanja dugoročnih rezerviranja | H47: 262 | L47: +
A48: Poslovni rashodi
A49: 33. Troškovi prodane robe s poduzetnicima unutar grupe, rezidentima RH | H49: 263 | L49: +
A50: 34. Troškovi energije | H50: 264 | L50: +
A51: 35. Tekući izdaci za odvoz i zbrinjavanje otpada, odvodnju i tretman otpadnih voda te ostali tekući izdaci za zaštitu okoliša | H51: 265 | L51: +
A52: 36. Troškovi robe i usluga nabavljenih za daljnju prodaju, a uključenih u vlastite proizvode i/ili usluge | H52: 266 | L52: +
A53: 37. Troškovi usluga podugovaratelja za industrijsku robu i usluge | H53: 267 | L53: +
A54: 38. Troškovi usluga podugovaratelja (podizvođača) za građevinske radove | H54: 268 | L54: +
A55: 39. Troškovi usluga investicijskog održavanja | H55: 269 | L55: +
A56: 40. Troškovi usluga dugoročnog i operativnog leasinga materijalne imovine | H56: 270 | L56: +
A57: 41. Izdaci za bruto autorske honorare i ugovore o djelu samo za fizičke osobe koje nemaju registriranu djelatnost | H57: 271 | L57: +
A58: 42. Izdaci za rad ostvaren preko studentskih i učeničkih servisa | H58: 272 | L58: +
A59: 43. Troškovi agencijskih radnika | H59: 273 | L59: +
A60: 44. Premije osiguranja (bruto) | H60: 274 | L60: +
A61: 44.1. u tome: premije neživotnog osiguranja (bruto) | H61: 275 | L61: +
A62: 45. Porezi koji ne ovise o dobitku i pristojbe | H62: 276 | L62: +
A63: 46. Stipendije | H63: 277 | L63: +
A64: 47. Nadoknade članovima uprave | H64: 278 | L64: +
A65: 48. Nadoknade troškova, darovi i potpore zaposlenicima i primici u naravi | H65: 279 | L65: +
A66: 48.1. u tome: otpremnine | H66: 280 | L66: +
A67: 49. Troškovi od najma zemljišta i plaćeni tantijemi za iskorištavanje nafte, plina i drugih prirodnih dobara | H67: 281 | L67: +
A68: 50. Vrijednosno usklađivanje zaliha sirovina i materijala | H68: 282 | L68: =
A69: 51. Vrijednosno usklađivanje predujmova za zalihe | H69: 283 | L69: =
A70: 52. Vrijednosno usklađivanje zaliha trgovačke robe (robe i usluga nabavljenih za daljnju prodaju) | H70: 284 | L70: =
A71: 53. Uvoz (uključuje i stjecanje) u razdoblju | H71: 285 | L71: +
A72: Financijski prihodi i rashodi
A73: 54. Prihodi s osnove kamata | H73: 286 | L73: +
A74: 55. Prihodi od dividendi | H74: 287 | L74: +
A75: 56. Prihodi od udjela u dobiti | H75: 288 | L75: +
A76: 57. Rashodi s osnove kamata | H76: 289 | L76: +
A77: Investicije (samo ulaganje u izvještajnoj godini)
A78: 58. Bruto investicije u dugotrajnu materijalnu i nematerijalnu imovinu - ukupno (AOP 291 do 294) | H78: 290 | I78: =ROUND(SUM(I79:I82),2) -> 0 | J78: =ROUND(SUM(J79:J82),2) -> 0 | L78: +
A79: 59. Bruto investicije u građevine | H79: 291 | L79: +
A80: 60. Bruto investicije u strojeve i opremu | H80: 292 | L80: +
A81: 61. Bruto investicije u prijevozna sredstva | H81: 293 | L81: +
A82: 62. Bruto investicije u ostalu materijalnu imovinu i nematerijalnu imovinu (biološka imovina, investicije u istraživanje i razvoj, softver, baze podataka i druga nematerijalna imovina) | H82: 294 | L82: +
A83: 63. Nabava zemljišta ukupno (građevinskog i negrađevinskog) | H83: 295 | L83: +
A84: 64. Bruto investicije samo u novu dugotrajnu imovinu | H84: 296 | L84: +
A85: 65. Bruto investicije u opremu, tehnologije, pogone i procese povezane sa zaštitom okoliša (za prevenciju, tretman i kontrolu zagađenja) | H85: 297 | L85: +
A86: 66. Bruto investicije u dugotrajnu materijalnu i nematerijalnu imovinu, stečenu od poduzetnika unutar grupe, rezidenata RH | H86: 298 | L86: +
A87: Podaci o zaposlenima
A88: 67. Broj neplaćenih osoba (neplaćeni obiteljski radnici, vlasnici bez ugovora o radu, volonteri, privremeno odsutne osobe kojima naknadu ne osigurava poslodavac i drugi prema uputama) | H88: 299 | L88: +

Sheet NT_I
A1: Navigacija | B1: Naslovna | C1: RefStr | D1: Bilanca | E1: RDG | F1: Dodatni | G1: NT_I | H1: NT_D | I1: PK | J1: Kont | Q1: =IF(OR(MIN(I8:J60)<0,MAX(I8:J60)>0),1,0) -> 0 | R1: - ako je bilo koji AOP različit od nule 1 u suprotnom 0
A2: IZVJEŠTAJ O NOVČANIM TOKOVIMA - Indirektna metoda | J2: Obrazac POD-NTI | Q2: =IF(OR(MIN(I8:I60)<0,MAX(I8:I60)>0),1,0) -> 0 | R2: - ako je upisan bilo koji AOP u koloni prethodne godine, 1 u suprotnom 0
A3: ="u razdoblju " & IF(RefStr!C4<>"", TEXT(RefStr!C4, "DD.MM.YYYY."), "__.__.____.") & " do " & IF(RefStr!F4<>"", TEXT(RefStr!F4, "DD.MM.YYYY."),"__.__.____.") -> u razdoblju 01.01.2024. do 31.12.2024. | Q3: =IF(OR(MIN(J8:J60)<0,MAX(J8:J60)>0),1,0) -> 0 | R3: - ako je upisan bilo koji AOP u koloni tekuće godine 1 u suprotnom 0
A5: ="Obveznik: "&IF(RefStr!C27<>"",RefStr!C27,"________") & "; " & IF(RefStr!C29<>"",RefStr!C29,"_________________"&"; "&IF(RefStr!F31<>"",RefStr!F31,"_______________")) -> Obveznik: 48188420009; Zračna luka Osijek d.o.o. | I5: Iznosi u eurima i centima
A6: Naziv pozicije | G6: AOP oznaka | H6: Rbr. bilješke | I6: Prethodna godina | J6: Tekuća godina
A7: 1 | G7: 2 | H7: 3 | I7: 4 | J7: 5
A8: Novčani tokovi od poslovnih aktivnosti
A9: 1. Dobit prije oporezivanja | G9: 1 | L9: =
A10: 2. Usklađenja (AOP 003 do 010): | G10: 2 | I10: =ROUND(SUM(I11:I18),2) -> 0 | J10: =ROUND(SUM(J11:J18),2) -> 0 | L10: =
A11: a) Amortizacija | G11: 3 | L11: +
A12: b) Dobici i gubici od prodaje i vrijednosna usklađenja dugotrajne materijalne i nematerijalne imovine | G12: 4 | L12: =
A13: c) Dobici i gubici od prodaje i nerealizirani dobici i gubici i vrijednosno usklađenje financijske imovine | G13: 5 | L13: =
A14: d) Prihodi od kamata i dividendi | G14: 6 | L14: -
A15: e) Rashodi od kamata | G15: 7 | L15: +
A16: f) Rezerviranja | G16: 8 | L16: =
A17: g) Tečajne razlike (nerealizirane) | G17: 9 | L17: =
A18: h) Ostala usklađenja za nenovčane transakcije i nerealizirane dobitke i gubitke | G18: 10 | L18: =
A19: I. Povećanje ili smanjenje novčanih tokova prije promjena u radnom kapitalu (AOP 001+002) | G19: 11 | I19: =ROUND(I9+I10,2) -> 0 | J19: =ROUND(J9+J10,2) -> 0 | L19: =
A20: 3. Promjene u radnom kapitalu (AOP 013 do 016) | G20: 12 | I20: =ROUND(SUM(I21:I24),2) -> 0 | J20: =ROUND(SUM(J21:J24),2) -> 0 | L20: =
A21: a) Povećanje ili smanjenje kratkoročnih obveza | G21: 13 | L21: =
A22: b) Povećanje ili smanjenje kratkotrajnih potraživanja | G22: 14 | L22: =
A23: c) Povećanje ili smanjenje zaliha | G23: 15 | L23: =
A24: d) Ostala povećanja ili smanjenja radnog kapitala | G24: 16 | L24: =
A25: II. Novac iz poslovanja (AOP 011+012) | G25: 17 | I25: =ROUND(I19+I20,2) -> 0 | J25: =ROUND(J19+J20,2) -> 0 | L25: =
A26: 4. Novčani izdaci za kamate | G26: 18 | L26: -
A27: 5. Plaćeni porez na dobit | G27: 19 | L27: =
A28: A) NETO NOVČANI TOKOVI OD POSLOVNIH AKTIVNOSTI (AOP 017 do 019) | G28: 20 | I28: =ROUND(SUM(I25:I27),2) -> 0 | J28: =ROUND(SUM(J25:J27),2) -> 0 | L28: =
A29: Novčani tokovi od investicijskih aktivnosti
A30: 1. Novčani primici od prodaje dugotrajne materijalne i nematerijalne imovine | G30: 21 | L30: +
A31: 2. Novčani primici od prodaje financijskih instrumenata | G31: 22 | L31: +
A32: 3. Novčani primici od kamata | G32: 23 | L32: +
A33: 4. Novčani primici od dividendi | G33: 24 | L33: +
A34: 5. Novčani primici s osnove povrata danih zajmova i štednih uloga | G34: 25 | L34: +
A35: 6. Ostali novčani primici od investicijskih aktivnosti | G35: 26 | L35: +
A36: III. Ukupno novčani primici od investicijskih aktivnosti (AOP 021 do 026) | G36: 27 | I36: =ROUND(SUM(I30:I35),2) -> 0 | J36: =ROUND(SUM(J30:J35),2) -> 0 | L36: +
A37: 1. Novčani izdaci za kupnju dugotrajne materijalne i nematerijalne imovine | G37: 28 | L37: -
A38: 2. Novčani izdaci za stjecanje financijskih instrumenata | G38: 29 | L38: -
A39: 3. Novčani izdaci s osnove danih zajmova i štednih uloga za razdoblje | G39: 30 | L39: -
A40: 4. Stjecanje ovisnog društva, umanjeno za stečeni novac | G40: 31 | L40: =
A41: 5. Ostali novčani izdaci od investicijskih aktivnosti | G41: 32 | L41: -
A42: IV. Ukupno novčani izdaci od investicijskih aktivnosti (AOP 028 do 032) | G42: 33 | I42: =ROUND(SUM(I37:I41),2) -> 0 | J42: =ROUND(SUM(J37:J41),2) -> 0 | L42: =
A43: B) NETO NOVČANI TOKOVI OD INVESTICIJSKIH AKTIVNOSTI (AOP 027+033) | G43: 34 | I43: =ROUND(I36+I42,2) -> 0 | J43: =ROUND(J36+J42,2) -> 0 | L43: =
A44: Novčani tokovi od financijskih aktivnosti
A45: 1. Novčani primici od povećanja temeljnog (upisanog) kapitala | G45: 35 | L45: +
A46: 2. Novčani primici od izdavanja vlasničkih i dužničkih financijskih instrumenata | G46: 36 | L46: +
A47: 3. Novčani primici od glavnice kredita, pozajmica i drugih posudbi | G47: 37 | L47: +
A48: 4. Ostali novčani primici od financijskih aktivnosti | G48: 38 | L48: +
A49: V. Ukupno novčani primici od financijskih aktivnosti (AOP 035 do 038) | G49: 39 | I49: =ROUND(SUM(I45:I48),2) -> 0 | J49: =ROUND(SUM(J45:J48),2) -> 0 | L49: +
A50: 1. Novčani izdaci za otplatu glavnice kredita, pozajmica i drugih posudbi i dužničkih financijskih instrumenata | G50: 40 | L50: -
A51: 2. Novčani izdaci za isplatu dividendi | G51: 41 | L51: -
A52: 3. Novčani izdaci za financijski najam | G52: 42 | L52: -
A53: 4. Novčani izdaci za otkup vlastitih dionica i smanjenje temeljnog (upisanog) kapitala | G53: 43 | L53: -
A54: 5. Ostali novčani izdaci od financijskih aktivnosti | G54: 44 | L54: -
A55: VI. Ukupno novčani izdaci od financijskih aktivnosti (AOP 040 do 044) | G55: 45 | I55: =ROUND(SUM(I50:I54),2) -> 0 | J55: =ROUND(SUM(J50:J54),2) -> 0 | L55: -
A56: C) NETO NOVČANI TOKOVI OD FINANCIJSKIH AKTIVNOSTI (AOP 039+045) | G56: 46 | I56: =ROUND(I49+I55,2) -> 0 | J56: =ROUND(J49+J55,2) -> 0 | L56: =
A57: 1. Nerealizirane tečajne razlike po novcu i novčanim ekvivalentima | G57: 47 | L57: =
A58: D) NETO POVEĆANJE ILI SMANJENJE NOVČANIH TOKOVA (AOP 020+034+046+047) | G58: 48 | I58: =ROUND(I28+I43+I56+I57,2) -> 0 | J58: =ROUND(J28+J43+J56+J57,2) -> 0 | L58: =
A59: E) NOVAC I NOVČANI EKVIVALENTI NA POČETKU RAZDOBLJA | G59: 49 | L59: +
A60: F) NOVAC I NOVČANI EKVIVALENTI NA KRAJU RAZDOBLJA (AOP 048+049) | G60: 50 | I60: =ROUND(I59+I58,2) -> 0 | J60: =ROUND(J59+J58,2) -> 0 | L60: +

Sheet NT_D
A1: Navigacija | B1: Naslovna | C1: RefStr | D1: Bilanca | E1: RDG | F1: Dodatni | G1: NT_I | H1: NT_D | I1: PK | J1: Kont | Q1: =IF(OR(MIN(I8:J54)<0,MAX(I8:J54)>0),1,0) -> 0 | R1: - ako je bilo koji AOP različit od nule 1 u suprotnom 0
A2: IZVJEŠTAJ O NOVČANIM TOKOVIMA - Direktna metoda | J2: Obrazac POD-NTD | Q2: =IF(OR(MIN(I8:I54)<0,MAX(I8:I54)>0),1,0) -> 0 | R2: - ako je upisan bilo koji AOP u koloni prethodne godine, 1 u suprotnom 0
A3: ="u razdoblju " & IF(RefStr!C4<>"", TEXT(RefStr!C4, "DD.MM.YYYY."), "__.__.____.") & " do " & IF(RefStr!F4<>"", TEXT(RefStr!F4, "DD.MM.YYYY."),"__.__.____.") -> u razdoblju 01.01.2024. do 31.12.2024. | Q3: =IF(OR(MIN(J8:J54)<0,MAX(J8:J54)>0),1,0) -> 0 | R3: - ako je upisan bilo koji AOP u koloni tekuće godine 1 u suprotnom 0
A5: ="Obveznik: "&IF(RefStr!C27<>"",RefStr!C27,"________") & "; " & IF(RefStr!C29<>"",RefStr!C29,"_________________"&"; "&IF(RefStr!F31<>"",RefStr!F31,"_______________")) -> Obveznik: 48188420009; Zračna luka Osijek d.o.o. | I5: Iznosi u eurima i centima
A6: Naziv pozicije | G6: AOP oznaka | H6: Rbr. bilješke | I6: Prethodna godina | J6: Tekuća godina
A7: 1 | G7: 2 | H7: 3 | I7: 4 | J7: 5
A8: Novčani tokovi od poslovnih aktivnosti
A9: 1. Novčani primici od kupaca | G9: 1 | L9: +
A10: 2. Novčani primici od tantijema, naknada, provizija i sl. | G10: 2 | L10: +
A11: 3. Novčani primici od osiguranja za naknadu šteta | G11: 3 | L11: +
A12: 4. Novčani primici s osnove povrata poreza | G12: 4 | L12: +
A13: 5. Ostali novčani primici od poslovnih aktivnosti | G13: 5 | L13: +
A14: I. Ukupno novčani primici od poslovnih aktivnosti (AOP 001 do 005) | G14: 6 | I14: =ROUND(SUM(I9:I13),2) -> 0 | J14: =ROUND(SUM(J9:J13),2) -> 0 | L14: +
A15: 1. Novčani izdaci dobavljačima | G15: 7 | L15: -
A16: 2. Novčani izdaci za zaposlene | G16: 8 | L16: -
A17: 3. Novčani izdaci za osiguranje za naknade šteta | G17: 9 | L17: -
A18: 4. Novčani izdaci za kamate | G18: 10 | L18: -
A19: 5. Plaćeni porez na dobit | G19: 11 | L19: -
A20: 6. Ostali novčani izdaci od poslovnih aktivnosti | G20: 12 | L20: -
A21: II. Ukupno novčani izdaci od poslovnih aktivnosti (AOP 007 do 012) | G21: 13 | I21: =ROUND(SUM(I15:I20),2) -> 0 | J21: =ROUND(SUM(J15:J20),2) -> 0 | L21: -
A22: A) NETO NOVČANI TOKOVI OD POSLOVNIH AKTIVNOSTI (AOP 006 + 013) | G22: 14 | I22: =ROUND(I14+I21,2) -> 0 | J22: =ROUND(J14+J21,2) -> 0 | L22: =
A23: Novčani tokovi od investicijskih aktivnosti
A24: 1. Novčani primici od prodaje dugotrajne materijalne i nematerijalne imovine | G24: 15 | L24: +
A25: 2. Novčani primici od prodaje financijskih instrumenata | G25: 16 | L25: +
A26: 3. Novčani primici od kamata | G26: 17 | L26: +
A27: 4. Novčani primici od dividendi | G27: 18 | L27: +
A28: 5. Novčani primici s osnove povrata danih zajmova i štednih uloga | G28: 19 | L28: +
A29: 6. Ostali novčani primici od investicijskih aktivnosti | G29: 20 | L29: +
A30: II. Ukupno novčani primici od investicijskih aktivnosti (AOP 015 do 020) | G30: 21 | I30: =ROUND(SUM(I24:I29),2) -> 0 | J30: =ROUND(SUM(J24:J29),2) -> 0 | L30: +
A31: 1. Novčani izdaci za kupnju dugotrajne materijalne i nematerijalne imovine | G31: 22 | L31: -
A32: 2. Novčani izdaci za stjecanje financijskih instrumenata | G32: 23 | L32: -
A33: 3. Novčani izdaci s osnove danih zajmova i štednih uloga | G33: 24 | L33: -
A34: 4. Stjecanje ovisnog društva, umanjeno za stečeni novac | G34: 25 | L34: =
A35: 5. Ostali novčani izdaci od investicijskih aktivnosti | G35: 26 | L35: -
A36: III. Ukupno novčani izdaci od investicijskih aktivnosti (AOP 022 do 026) | G36: 27 | I36: =ROUND(SUM(I31:I35),2) -> 0 | J36: =ROUND(SUM(J31:J35),2) -> 0 | L36: -
A37: B) NETO NOVČANI TOKOVI OD INVESTICIJSKIH AKTIVNOSTI (AOP 021 + 027) | G37: 28 | I37: =ROUND(I30+I36,2) -> 0 | J37: =ROUND(J30+J36,2) -> 0 | L37: =
A38: Novčani tokovi od financijskih aktivnosti | G38: 0
A39: 1. Novčani primici od povećanja temeljnog (upisanog) kapitala | G39: 29 | L39: +
A40: 2. Novčani primici od izdavanja vlasničkih i dužničkih financijskih instrumenata | G40: 30 | L40: +
A41: 3. Novčani primici od glavnice kredita, pozajmica i drugih posudbi | G41: 31 | L41: +
A42: 4. Ostali novčani primici od financijskih aktivnosti | G42: 32 | L42: +
A43: IV. Ukupno novčani primici od financijskih aktivnosti (AOP 029 do 032) | G43: 33 | I43: =ROUND(SUM(I39:I42),2) -> 0 | J43: =ROUND(SUM(J39:J42),2) -> 0 | L43: +
A44: 1. Novčani izdaci za otplatu glavnice kredita, pozajmica i drugih posudbi i dužničkih financijskih instrumenata | G44: 34 | L44: -
A45: 2. Novčani izdaci za isplatu dividendi | G45: 35 | L45: -
A46: 3. Novčani izdaci za financijski najam | G46: 36 | L46: -
A47: 4. Novčani izdaci za otkup vlastitih dionica i smanjenje temeljnog (upisanog) kapitala | G47: 37 | L47: -
A48: 5. Ostali novčani izdaci od financijskih aktivnosti | G48: 38 | L48: -
A49: V. Ukupno novčani izdaci od financijskih aktivnosti (AOP 034 do 038) | G49: 39 | I49: =ROUND(SUM(I44:I48),2) -> 0 | J49: =ROUND(SUM(J44:J48),2) -> 0 | L49: -
A50: C) NETO NOVČANI TOKOVI OD FINANCIJSKIH AKTIVNOSTI (AOP 033+039) | G50: 40 | I50: =ROUND(I43+I49,2) -> 0 | J50: =ROUND(J43+J49,2) -> 0 | L50: =
A51: 1. Nerealizirane tečajne razlike po novcu i novčanim ekvivalentima | G51: 41 | L51: =
A52: D) NETO POVEĆANJE ILI SMANJENJE NOVČANIH TOKOVA (AOP 014 + 028 + 040 + 041) | G52: 42 | I52: =ROUND(I22+I37+I50+I51,2) -> 0 | J52: =ROUND(J22+J37+J50+J51,2) -> 0 | L52: =
A53: E) NOVAC I NOVČANI EKVIVALENTI NA POČETKU RAZDOBLJA | G53: 43 | L53: +
A54: F) NOVAC I NOVČANI EKVIVALENTI NA KRAJU RAZDOBLJA (AOP 042+043) | G54: 44 | I54: =ROUND(I52+I53,2) -> 0 | J54: =ROUND(J52+J53,2) -> 0 | L54: +

Sheet PK
A1: Navigacija | B1: Naslovna | C1: RefStr | D1: Bilanca | E1: RDG | F1: Dodatni | G1: NT_I | H1: NT_D | I1: PK | J1: Kont | AD1: =MAX(AD2:AD3) -> 0 | AE1: - ako je bilo koji AOP različit od nule 1 u suprotnom 0
A2: Izvještaj o promjenama kapitala | R2: Obrazac POD-PK | AA2: Obrazac POD-PK | AD2: =IF(OR(MAX(H10:AA33)<>0,MIN(H10:AA33)<>0),1,0) -> 0 | AE2: - ako je upisan bilo koji AOP u koloni prethodne godine, 1 u suprotnom 0
A3: ="za razdoblje od " & IF(RefStr!C4<>"", TEXT(RefStr!C4, "DD.MM.YYYY."), "__.__.____.") & " do " & IF(RefStr!F4<>"", TEXT(RefStr!F4, "DD.MM.YYYY."),"__.__.____.") -> za razdoblje od 01.01.2024. do 31.12.2024. | AD3: =IF(OR(MAX(H39:AA62)<>0,MIN(H39:AA62)<>0),1,0) -> 0 | AE3: - ako je upisan bilo koji AOP u koloni tekuće godine 1 u suprotnom 0
A5: ="Obveznik: "&IF(RefStr!C27<>"",RefStr!C27,"________") & "; " & IF(RefStr!C29<>"",RefStr!C29,"________________________________________"&"; "&IF(RefStr!F31<>"",RefStr!F31,"_______________")) -> Obveznik: 48188420009; Zračna luka Osijek d.o.o. | R5: Iznosi u eurima i centima | AA5: Iznosi u eurima i centima | AE5: - ako je bilo što upisano u konsolidirana polja u kolonu prethodne godine 1, u suprotnom nula
A6: Opis pozicije | G6: AOP oznaka | H6: Rbr. bilješke | I6: Raspodjeljivo imateljima kapitala matice | Z6: Manjinski (nekontrolirajući) interes | AA6: Ukupno kapital i rezerve | AD6: =IF(OR(MAX(Z39:Z62)<>0,MIN(Z39:Z62)<>0),1,0) -> 0 | AE6: - ako je bilo što upisano u konsolidirana polja u kolonu tekuće godine 1, u suprotnom nula
I7: Temeljni (upisani) kapital | J7: Kapitalne rezerve | K7: Zakonske rezerve | L7: Rezerve za vlastite dionice | M7: Vlastite dionice i udjeli (odbitna stavka) | N7: Statutarne rezerve | O7: Ostale rezerve | P7: Revalorizacijske rezerve | Q7: Fer vrijednost financijske imovine kroz ostalu sveobuhvatnu dobit ( raspoloživa za prodaju) | R7: Učinkoviti dio zaštite novčanih tokova | S7: Učinkoviti dio zaštite neto ulaganja u inozemstvo | T7: Ostale rezerve fer vrijednosti | U7: Tečajne razlike iz preračuna inozemnog poslovanja | V7: Tečajne razlike zbog preračuna u prezentacijsku valutu | W7: Zadržana dobit / preneseni gubitak | X7: Dobit / gubitak poslovne godine | Y7: Ukupno raspodjeljivo imateljima kapitala matice | AD7: =IF(RefStr!N19="MSFI",1,0) -> 1 | AE7: - da li je MSFI
A8: 1 | G8: 2 | H8: 3 | I8: 4 | J8: 5 | K8: 6 | L8: 7 | M8: 8 | N8: 9 | O8: 10 | P8: 11 | Q8: 12 | R8: 13 | S8: 14 | T8: 15 | U8: 16 | V8: 17 | W8: 18 | X8: 19 | Y8: 20 (4 do 7 - 8 + 9 do 19) | Z8: 21 | AA8: 22 (20+21)
A9: Prethodno razdoblje
A10: 1. Stanje na prvi dan prethodnog razdoblja | G10: 1 | Y10: =ROUND(SUM(I10:L10)-M10+SUM(N10:X10),2) -> 0 | AA10: =ROUND(Z10+Y10,2) -> 0
A11: 2. Promjene računovodstvenih politika | G11: 2 | Y11: =ROUND(SUM(I11:L11)-M11+SUM(N11:X11),2) -> 0 | AA11: =ROUND(Z11+Y11,2) -> 0
A12: 3. Ispravak pogreški | G12: 3 | Y12: 0 | AA12: 0
A13: 4. Stanje na prvi dan prethodnog razdoblja (AOP 01 do 03) | G13: 4 | I13: =ROUND(SUM(I10:I12),2) -> 0 | J13: =ROUND(SUM(J10:J12),2) -> 0 | K13: 0 | L13: 0 | M13: 0 | N13: 0 | O13: 0 | P13: 0 | Q13: 0 | R13: 0 | S13: 0 | T13: 0 | U13: 0 | V13: 0 | W13: 0 | X13: 0 | Y13: 0 | Z13: 0 | AA13: 0
A14: 5. Dobit/gubitak razdoblja | G14: 5 | Y14: 0 | AA14: 0
A15: 6. Tečajne razlike iz preračuna inozemnog poslovanja | G15: 6 | Y15: 0 | AA15: 0
A16: 7. Promjene revalorizacijskih rezervi dugotrajne materijalne i nematerijalne imovine | G16: 7 | Y16: 0 | AA16: 0
A17: 8. Dobitak ili gubitak s osnove naknadnog vrednovanja financijske imovine prema fer vrijednosti kroz ostalu sveobuhvatnu dobit (raspoloživa za prodaju) | G17: 8 | Y17: 0 | AA17: 0
A18: 9. Dobitak ili gubitak s osnove učinkovite zaštite novčanog toka | G18: 9 | Y18: 0 | AA18: 0
A19: 10. Dobitak ili gubitak s osnove učinkovite zaštite neto ulaganja u inozemstvu | G19: 10 | Y19: 0 | AA19: 0
A20: 11. Udio u ostaloj sveobuhvatnoj dobiti/gubitku društava povezanih sudjelujućim interesom | G20: 11 | Y20: 0 | AA20: 0
A21: 12. Aktuarski dobici/gubici po planovima definiranih primanja | G21: 12 | Y21: 0 | AA21: 0
A22: 13. Ostale nevlasničke promjene kapitala | G22: 13 | Y22: 0 | AA22: 0
A23: 14. Porez na transakcije priznate direktno u kapitalu | G23: 14 | Y23: 0 | AA23: 0
A24: 15. Smanjenje temeljnog (upisanog) kapitala (osim u postupku predstečajne nagodbe i nastalog reinvestiranjem dobiti) | G24: 15 | Y24: 0 | AA24: 0
A25: 16. Smanjenje temeljnog (upisanog) kapitala u postupku predstečajne nagodbe | G25: 16 | Y25: 0 | AA25: 0
A26: 17. Smanjenje temeljnog (upisanog) kapitala nastalog reinvestiranjem dobiti | G26: 17 | Y26: 0 | AA26: 0
A27: 18. Otkup vlastitih dionica/udjela | G27: 18 | Y27: 0 | AA27: 0
A28: 19. Uplate članova/dioničara | G28: 19 | Y28: 0 | AA28: 0
A29: 20. Isplata udjela u dobiti/dividende | G29: 20 | Y29: 0 | AA29: 0
A30: 21. Ostale raspodjele i isplate članovima/dioničarima | G30: 21 | Y30: 0 | AA30: 0
A31: 22. Prijenos po godišnjem rasporedu | G31: 22 | Y31: 0 | AA31: 0
A32: 23. Povećanje rezervi u postupku predstečajne nagodbe | G32: 23 | Y32: 0 | AA32: 0
A33: 24. Stanje na zadnji dan prethodnog razdoblja (AOP 04 do 23) | G33: 24 | I33: =ROUND(SUM(I13:I32),2) -> 0 | J33: =ROUND(SUM(J13:J32),2) -> 0 | K33: 0 | L33: 0 | M33: 0 | N33: 0 | O33: 0 | P33: 0 | Q33: 0 | R33: 0 | S33: 0 | T33: 0 | U33: 0 | V33: 0 | W33: 0 | X33: 0 | Y33: 0 | Z33: 0 | AA33: 0
A34: DODATAK IZVJEŠTAJU O PROMJENAMA KAPITALA (popunjava poduzetnik obveznik primjene MSFI-a)
A35: I. OSTALA SVEOBUHVATNA DOBIT PRETHODNOG RAZDOBLJA, UMANJENO ZA POREZE (AOP 06 do 14) | G35: 25 | I35: =ROUND(SUM(I15:I23)*$AD$7,2) -> 0 | J35: =ROUND(SUM(J15:J23)*$AD$7,2) -> 0 | K35: 0 | L35: 0 | M35: 0 | N35: 0 | O35: 0 | P35: 0 | Q35: 0 | R35: 0 | S35: 0 | T35: 0 | U35: 0 | V35: =ROUND(SUM(V15:V23)*$AD$7,2) -> 0 | W35: 0 | X35: 0 | Y35: 0 | Z35: =ROUND(SUM(Z15:Z23)*$AD$7,2) -> 0 | AA35: 0
A36: II. SVEOBUHVATNA DOBIT ILI GUBITAK PRETHODNOG RAZDOBLJA (AOP 05+25) | G36: 26 | I36: =ROUND((I14+I35)*$AD$7,2) -> 0 | J36: =ROUND((J14+J35)*$AD$7,2) -> 0 | K36: 0 | L36: 0 | M36: 0 | N36: 0 | O36: 0 | P36: 0 | Q36: 0 | R36: 0 | S36: 0 | T36: 0 | U36: 0 | V36: 0 | W36: 0 | X36: 0 | Y36: 0 | Z36: 0 | AA36: 0
A37: III. TRANSAKCIJE S VLASNICIMA PRETHODNOG RAZDOBLJA PRIZNATE DIREKTNO U KAPITALU (AOP 15 do 23) | G37: 27 | I37: =ROUND(SUM(I24:I32)*$AD$7,2) -> 0 | J37: =ROUND(SUM(J24:J32)*$AD$7,2) -> 0 | K37: 0 | L37: 0 | M37: 0 | N37: 0 | O37: 0 | P37: 0 | Q37: 0 | R37: 0 | S37: 0 | T37: 0 | U37: 0 | V37: =ROUND(SUM(V24:V32)*$AD$7,2) -> 0 | W37: 0 | X37: 0 | Y37: 0 | Z37: 0 | AA37: 0
A38: Tekuće razdoblje
A39: 1. Stanje na prvi dan tekućeg razdoblja | G39: 28 | Y39: =ROUND(SUM(I39:L39)-M39+SUM(N39:X39),2) -> 0 | AA39: =ROUND(Z39+Y39,2) -> 0
A40: 2. Promjene računovodstvenih politika | G40: 29 | Y40: 0 | AA40: 0
A41: 3. Ispravak pogreški | G41: 30 | Y41: 0 | AA41: 0
A42: 4. Stanje na prvi dan tekućeg razdoblja (AOP 28 do 30) | G42: 31 | I42: =SUM(I39:I41) -> 0 | J42: 0 | K42: 0 | L42: 0 | M42: 0 | N42: 0 | O42: 0 | P42: 0 | Q42: 0 | R42: 0 | S42: 0 | T42: =SUM(T39:T41) -> 0 | U42: =SUM(U39:U41) -> 0 | V42: =SUM(V39:V41) -> 0 | W42: 0 | X42: 0 | Y42: 0 | Z42: =SUM(Z39:Z41) -> 0 | AA42: 0
A43: 5. Dobit/gubitak razdoblja | G43: 32 | Y43: 0 | AA43: 0
A44: 6. Tečajne razlike iz preračuna inozemnog poslovanja | G44: 33 | Y44: 0 | AA44: 0
A45: 7. Promjene revalorizacijskih rezervi dugotrajne materijalne i nematerijalne imovine | G45: 34 | Y45: 0 | AA45: 0
A46: 8. Dobitak ili gubitak s osnove naknadnog vrednovanja financijske imovine prema fer vrijednosti kroz ostalu sveobuhvatnu dobit (raspoloživa za prodaju) | G46: 35 | Y46: 0 | AA46: 0
A47: 9. Dobitak ili gubitak s osnove učinkovite zaštite novčanog toka | G47: 36 | Y47: 0 | AA47: 0
A48: 10. Dobitak ili gubitak s osnove učinkovite zaštite neto ulaganja u inozemstvu | G48: 37 | Y48: 0 | AA48: 0
A49: 11. Udio u ostaloj sveobuhvatnoj dobiti/gubitku društava povezanih sudjelujućim interesom | G49: 38 | Y49: 0 | AA49: 0
A50: 12. Aktuarski dobici/gubici po planovima definiranih primanja | G50: 39 | Y50: 0 | AA50: 0
A51: 13. Ostale nevlasničke promjene kapitala | G51: 40 | Y51: 0 | AA51: 0
A52: 14. Porez na transakcije priznate direktno u kapitalu | G52: 41 | Y52: 0 | AA52: 0
A53: 15. Smanjenje temeljnog (upisanog) kapitala (osim u postupku predstečajne nagodbe i nastalog reinvestiranjem dobiti) | G53: 42 | Y53: 0 | AA53: 0
A54: 16. Smanjenje temeljnog (upisanog) kapitala u postupku predstečajne nagodbe | G54: 43 | Y54: 0 | AA54: 0
A55: 17. Smanjenje temeljnog (upisanog) kapitala nastalog reinvestiranjem dobiti | G55: 44 | Y55: 0 | AA55: 0
A56: 18. Otkup vlastitih dionica/udjela | G56: 45 | Y56: 0 | AA56: 0
A57: 19. Uplate članova/dioničara | G57: 46 | Y57: 0 | AA57: 0
A58: 20. Isplata udjela u dobiti/dividende | G58: 47 | Y58: 0 | AA58: 0
A59: 21. Ostale raspodjele i isplate članovima/dioničarima | G59: 48 | Y59: 0 | AA59: 0
A60: 22. Prijenosi po godišnjem rasporedu | G60: 49 | Y60: 0 | AA60: 0
A61: 23. Povećanje rezervi u postupku predstečajne nagodbe | G61: 50 | Y61: 0 | AA61: 0
A62: 24. Stanje na zadnji dan tekućeg razdoblja (AOP 32 do 50) | G62: 51 | I62: =SUM(I42:I61) -> 0 | J62: 0 | K62: 0 | L62: 0 | M62: 0 | N62: 0 | O62: 0 | P62: 0 | Q62: 0 | R62: 0 | S62: 0 | T62: =SUM(T42:T61) -> 0 | U62: =SUM(U42:U61) -> 0 | V62: =SUM(V42:V61) -> 0 | W62: 0 | X62: 0 | Y62: 0 | Z62: =SUM(Z42:Z61) -> 0 | AA62: 0
A63: DODATAK IZVJEŠTAJU O PROMJENAMA KAPITALA (popunjava poduzetnik obveznik primjene MSFI-a)
A64: I. OSTALA SVEOBUHVATNA DOBIT TEKUĆEG RAZDOBLJA, UMANJENO ZA POREZE (AOP 33 do 41) | G64: 52 | I64: =ROUND(SUM(I44:I52)*$AD$7,2) -> 0 | J64: =ROUND(SUM(J44:J52)*$AD$7,2) -> 0 | K64: 0 | L64: 0 | M64: 0 | N64: 0 | O64: 0 | P64: 0 | Q64: 0 | R64: 0 | S64: 0 | T64: 0 | U64: 0 | V64: =ROUND(SUM(V44:V52)*$AD$7,2) -> 0 | W64: 0 | X64: 0 | Y64: =ROUND(SUM(I64:L64)-M64+SUM(N64:X64),2) -> 0 | Z64: 0 | AA64: =ROUND(Z64+Y64,2) -> 0
A65: II. SVEOBUHVATNA DOBIT ILI GUBITAK TEKUĆEG RAZDOBLJA (AOP 32 + 52) | G65: 53 | I65: =ROUND((I43+I64)*$AD$7,2) -> 0 | J65: =ROUND((J43+J64)*$AD$7,2) -> 0 | K65: 0 | L65: 0 | M65: 0 | N65: 0 | O65: 0 | P65: 0 | Q65: 0 | R65: 0 | S65: 0 | T65: 0 | U65: 0 | V65: 0 | W65: 0 | X65: 0 | Y65: =ROUND(SUM(I65:L65)-M65+SUM(N65:X65),2) -> 0 | Z65: 0 | AA65: =ROUND(Z65+Y65,2) -> 0
A66: III. TRANSAKCIJE S VLASNICIMA TEKUĆEG RAZDOBLJA PRIZNATE DIREKTNO U KAPITALU (AOP 42 do 50) | G66: 54 | I66: =ROUND(SUM(I53:I61)*$AD$7,2) -> 0 | J66: =ROUND(SUM(J53:J61)*$AD$7,2) -> 0 | K66: 0 | L66: 0 | M66: 0 | N66: 0 | O66: 0 | P66: 0 | Q66: 0 | R66: 0 | S66: 0 | T66: 0 | U66: 0 | V66: =ROUND(SUM(V53:V61)*$AD$7,2) -> 0 | W66: 0 | X66: 0 | Y66: =ROUND(SUM(I66:L66)-M66+SUM(N66:X66),2) -> 0 | Z66: 0 | AA66: =ROUND(Z66+Y66,2) -> 0

Sheet Kont
O1: Obrazac | P1: Prethodna | Q1: Tekuća | R1: Polje | S1: Vrijednost | T1: Polje | U1: Vrijednost | V1: Polje | W1: Vrijednost | X1: Polje | Y1: Vrijednost | Z1: Polje | AA1: Vrijednost
A2: Navigacija | B2: Naslovna | C2: RefStr | D2: Bilanca | E2: RDG | F2: Dodatni | G2: NT_I | H2: NT_D | I2: PK | J2: Kont | L2: GR | M2: UPO | N2: BIL | O2: =Bilanca!Q1 -> 1 | P2: =Bilanca!Q2 -> 1 | Q2: =Bilanca!Q3 -> 1 | R2: VI | S2: =IF(RefStr!C17<>"",IF(ISERROR(INT(RefStr!C17)),0,RefStr!C17),0) -> 10 | T2: REV | U2: =RefStr!I21 -> DA | V2: NAZIV | W2: =RefStr!C29 -> Zračna luka Osijek d.o.o. | X2: KAP_DOM | Y2: =IF(RefStr!C54<>"",RefStr!C54,"") -> 100 | Z2: SERVIS_MB | AA2: =IF(RefStr!B64="","",RefStr!B64) ->  | AB2: ODSTUPANJE | AC2: =IF(YEAR(RefStr!F4)>2022,0.14,1) -> 0.14
A3: Nepopunjen obrazac javit će mnoštvo pogrešaka zbog same nepopunjenosti. Tek nakon što popunite Referentnu stranicu i sve pripadajuće obrasce, provjerite status kontrola. Pogreške se moraju ispraviti da bi obrazac bio ispravan, a kod upozorenja provjerite jeste li ispravno upisali podatak na koji kontrola upozorava te ako je upisani podatak neupitno ispravan, upozorenje zanemarite. | N3: RDG | O3: =RDG!Q1 -> 1 | P3: =RDG!Q2 -> 1 | Q3: =RDG!Q3 -> 1 | R3: VEL | S3: =IF(RefStr!C50<>"",IF(ISERROR(INT(RefStr!C50)),0,RefStr!C50),0) -> 2 | T3: REV_OIB | U3: =RefStr!L21 -> 39806187636 | V3: POSTA | W3: =RefStr!C31 -> 31207 | X3: KAP_INO | Y3: =IF(RefStr!F54<>"",RefStr!F54,"") -> 0 | Z3: SERVIS_NZ | AA3: =IF(RefStr!B66="","",RefStr!B66) ->  | AB3: VALUTA | AC3: =Skriveni!B71 -> EUR
I4: Broj pogrešaka: | J4: =SUM(L12:L121) -> 0 | N4: DOD | O4: =Dodatni!Q1 -> 0 | P4: =Dodatni!Q2 -> 0 | Q4: =Dodatni!Q3 -> 0 | R4: VLAST | S4: =IF(RefStr!C52<>"",IF(ISERROR(INT(RefStr!C52)),0,RefStr!C52),0) -> 11 | T4: OIB | U4: =RefStr!C27 -> 48188420009 | V4: MJESTO | W4: =RefStr!F31 -> Klisa | X4: Odluka_Utvr | Y4: =RefStr!I68 -> DA | Z4: STANDARD | AA4: =RefStr!N19 -> MSFI | AB4: NEAKT_PR | AC4: =IF(RefStr!N7="NE","DA",IF(RefStr!N7="DA","NE",RefStr!N7)) -> NE
N5: NTI | O5: =NT_I!Q1 -> 0 | P5: =NT_I!Q2 -> 0 | Q5: =NT_I!Q3 -> 0 | R5: SVRHA | S5: =IF(RefStr!C19<>"",IF(ISERROR(INT(RefStr!C19)),0,RefStr!C19),0) -> 2 | T5: MB | U5: =RefStr!H27 -> 03361721 | V5: ADRESA | W5: =RefStr!C33 -> Vukovarska ulica 67 | X5: Revizorsko | Y5: =RefStr!I62 -> DA | Z5: MB_MATICE | AA5: =RefStr!M46 -> 0 | AB5: NEAKT_TK | AC5: =IF(RefStr!N6="NE","DA",IF(RefStr!N6="DA","NE",RefStr!N6)) -> NE
N6: NTD | O6: =NT_D!Q1 -> 0 | P6: =NT_D!Q2 -> 0 | Q6: =NT_D!Q3 -> 0 | R6: KONS | S6: =RefStr!C21 -> NE | T6: MBS | U6: =RefStr!M27 -> 030026579 | V6: TELEFON | W6: =RefStr!L35 -> 031/514-402 | X6: Kont_OS | Y6: =RefStr!C68 -> Katarina Jelečević | Z6: DRZAVA_S | AA6: =RefStr!C46 -> 0 | AB6: BRISAN | AC6: =RefStr!G6 -> NE
I7: Broj upozorenja: | J7: =SUM(M12:M121) -> 0 | N7: PK | O7: =PK!AD1 -> 0 | P7: =PK!AD2 -> 0 | Q7: =PK!AD3 -> 0 | R7: AUTONOM | S7: =IF(RefStr!C44<>"",IF(ISERROR(INT(RefStr!C44)),0,RefStr!C44),0) -> 1 | T7: VR_SUBJ | U7: =RefStr!C7 -> 1 | V7: E_MAIL | W7: =TRIM(UPPER(RefStr!C35)) -> INFO@OSIJEK-AIRPORT.HR | X7: Kont_TEL | Y7: =RefStr!C70 -> 031/512-402 | Z7: DRZAVA_T | AA7: =RefStr!D46 -> 
N8: NEAKT / MJES POSL | O8: =IF(RefStr!N6="NE","DA",IF(RefStr!N6="DA","NE",RefStr!N6)) -> NE | P8: =RefStr!C60 -> 12 | Q8: =RefStr!F60 -> 12 | R8: DAT_OD | S8: =IF(RefStr!C4<>"",RefStr!C4,0) -> 45292 | T8: VR_SUBJT | U8: =RefStr!D7 -> Javno trgovačko društvo | V8: NKD2007 | W8: =RefStr!C42 -> 5223 | X8: Kont_MAIL | Y8: =TRIM(UPPER(RefStr!C72)) -> KATARINA.JELECEVIC@OSIJEK-AIRPORT.HR | Z8: Biljeske | AA8: =RefStr!I56 -> DA
A9: Redni broj i rezultat kontrole | C9: Opis koja polja kontrola provjerava i koji podatak treba popraviti ako kontrola javlja pogrešku | O9: ZAPSATI | P9: =RefStr!C58 -> 49 | Q9: =RefStr!F58 -> 55 | R9: DAT_DO | S9: =IF(RefStr!F4<>"",RefStr!F4,0) -> 45657 | T9: OPC | U9: =RefStr!C39 -> 312 | V9: NKDOpis | W9: =RefStr!D42 -> Uslužne djelatnosti u vezi sa zračnim ... | X9: OdlukaRasp | Y9: =RefStr!I66 -> DA | Z9: GodIzvj | AA9: =RefStr!I64 -> NE
O10: ZAP_PROSJEK | P10: =RefStr!C56 -> 50 | Q10: =RefStr!F56 -> 57 | R10: NEFIN | S10: =RefStr!C23 -> 1 | T10: OPC_TXT | U10: =RefStr!D39 -> Osijek | V10: GOD | W10: =YEAR(RefStr!F4) -> 2024 | X10: Godina | Y10: =RefStr!F12 -> 2024 | Z10: POTPISNIK | AA10: =RefStr!A75 -> KOS IVAN
A11: Kontrole popunjenosti i ispravnosti upisanih podataka na Referentnoj stranici
A12: 1 | B12: =IF(L12=1,"Pogreška", IF(M12=1, "Provjera","OK")) -> OK | C12: Pogreška signalizira da Datum Od i/ili Datum Do izvještajnog razdoblja nisu popunjeni ili nisu ispravno popunjeni. | L12: =MAX(N12:R12) -> 0 | N12: =IF(OR(S8=0,S9=0,S8>=S9),1,0) -> 0 | O12: =IF(AND(S9-S8>366,OR(S2<>30,S5=1)),1,0) -> 0
A13: =A12+1 -> 2 | B13: OK | C13: Pogreška signalizira da oznaka primjene MSFI/HSFI, Vrste poslovnog subjekta ili oznaka poslovne aktivnosti nije ispravno popunjena. | L13: 0 | N13: =IF(OR(U7="",U7=0,AND(O8<>"DA",O8<>"NE"),AND(AA4<>"HSFI",AA4<>"MSFI"),U8="",U8=0,W2="Upisana je nepostojeća ili neprepoznatljiva vrsta poslovnog subjekta"),1,0) -> 0
A14: =A13+1 -> 3 | B14: OK | C14: Pogreška signalizira da Vrsta izvještaja nije popunjena ili je pogrešno popunjena | L14: 0 | N14: =IF(AND(S2<>10,S2<>11,S2<>20,S2<>21,S2<>30,S2<>31,S2<>40,S2<>50),1,0) -> 0
A15: 4 | B15: =IF(L15=1,"Pogreška", IF(M15=1, "Provjera","OK")) -> OK | C15: Pogreška signalizira da oznaka konsolidacije nije upisana (DA ili NE) ili da je označeno da je izvještaj konsolidiran, a vrsta poslovnog subjekta je takva da ne može imati konsolidaciju. Konsolidirani izvještaj se ne predaje za statističke potrebe, može imati samo šifru svrhe predaje 2 (javna objava). | L15: 0 | N15: =IF(AND(S6<>"DA",S6<>"NE"),1,0) -> 0 | O15: =IF(AND(S6="DA",S5<>2),1,0) -> 0
A16: =A15+1 -> 5 | B16: =IF(L16=1,"Pogreška", IF(M16=1, "Provjera","OK")) -> OK | C16: Pogreška signalizira da Šifra svrhe predaje nije popunjena ili je pogrešno popunjena. Kontrola također javlja grešku ako je odabrana javna objava za vrstu subjekta koji ne može imati javnu objavu. U tom slučaju ispravite svrhu ili ispravite vrstu subjekta. | L16: 0 | N16: =IF(AND(S5<>1,S5<>2,S5<>3),1,0) -> 0 | O16: =IF(AND(S5>1,U7>7,U7<>12),1,0) -> 0
A17: =A16+1 -> 6 | B17: =IF(L17=1,"Pogreška", IF(M17=1, "Provjera","OK")) -> OK | C17: Ako se predaje izvještaj u likvidaciji (vrsta izvještaja 30) - nije moguće predaja izvještaja sa svrhom predaje 3 (statistika i javna objava). Za društva u likvidaciji za statističke i druge potrebe financijski izvještaj predaje se za svaku kalendarsku godinu, a u svrhu javne objave vrsta izvještaja 30 predaje se za razdoblje od datuma početka do datuma kraja likvidacije - bez obzira koliko dugo ona trajala. S obzirom da ta dva razdoblja ne mogu po definiciji biti ista - nije moguća predaja izvještaja sa svrhom 3. Isto tako, za izvještaj u likvidaciji koji se predaje u svrhu javne objave, s obzirom da stupac "tekuća" godina predstavlja ukupno razdoblje likvidacije, a ne samo tekuću godinu - podaci za prehtodnu godinu se ne unose pa će u slučaju da kod takvog izvještaja popunite prethodnu godinu kontrola javiti pogrešku. S obzirom da likvidacija u pravilu ne počinje 1.1. i ne završava 31.12. kontrola će upozoriti ako je takav datum početka ili datum kraja razdoblja kod javne objave. | L17: =MAX(N17:R17) -> 0 | M17: =MAX(T17:Y17) -> 0 | N17: =IF(AND(S2=30,S5=3),1,0) -> 0 | O17: =IF(AND(S2=30,S5=2,P8>0),1,0) -> 0 | T17: =IF(AND(S2=30,S5=2,MONTH(S8)=1,DAY(S8)=1),1,0) -> 0 | U17: =IF(AND(S2=30,S5=2,MONTH(S9)=12,DAY(S9)=31),1,0) -> 0
A18: =A17+1 -> 7 | B18: =IF(L18=1,"Pogreška", IF(M18=1, "Provjera","OK")) -> OK | C18: Pogreška signalizira da polje Obveznost predaje nefinancijskog izvješća nije popunjena ili je pogrešno popunjena. Obveznost predaje nefinancijskog izvješća različitu od 1 mogu imati samo trgovačka društva pod uvjetom da su veliki, da imaju više od 500 zaposlenih u prethodnoj godini i da spadaju u grupu od posebnog državnog interesa. Ako obveznik koji nije trgovačko društvo ili obveznik koji nije veliki i nema 500 zaposlenih označi nešto drugo osim 1, kontrola javlja pogrešku. Kontrola će također javiti i upozorenje ako je obveznik veliki, ima više od 500 zaposlenih, a nije označio da je obveznik predaje nefinancijskog izvješća. | L18: 0 | M18: =MAX(T18:Y18) -> 0 | N18: =IF(AND(S10<>1,U7<>1,U7<>2,U7<>3, U7<>4, U7<> 5, U7<> 6, U7<>7,U7<>12),1,0) -> 0 | O18: =IF(AND(S10<>1,S3<>4),1,0) -> 0 | P18: =IF(AND(S10<>1,P10<500),1,0) -> 0 | T18: =IF(AND(S10=1,P10>500,S3>3,OR(U7=1,U7=2,U7=3, U7=4, U7= 5, U7= 6, U7=7,U7=12)),1,0) -> 0
A19: 8 | B19: OK | C19: Pogreška signalizira da Oznaka revizije i/ili OIB revizora nisu popunjeni ili su pogrešno popunjeni (ako je izvještaj revidiran mora biti popunjen i OIB revizora, a ako nije revidiran polje OIB revizora mora biti prazan). Ako je predaja samo u statističke svrhe, ne predaje se revidiran izvještaj pa se u oznaku revizije i pored Revizorskog izvješća na popisu dokumentacije obavezno upisuje "NE". | L19: 0 | N19: =IF(AND(U2<>"DA",U2<>"NE"),1,0) -> 0 | O19: =IF(AND(U2="NE",AND(U3<>"",U3<>0)),1,0) -> 0 | P19: =IF(AND(U2="DA",OR(U3="",U3=0)),1,0) -> 0 | Q19: =IF(AND(S5=1,U2="DA"),1,0) -> 0 | R19: =IF(U2<>Y5,1,0) -> 0
A20: =A19+1 -> 9 | B20: =IF(L20=1,"Pogreška", IF(M20=1, "Provjera","OK")) -> OK | C20: Pogreška signalizira da OIB nije upisan ili je pogrešna duljina OIB-a. | L20: 0 | N20: =IF(ISNUMBER(VALUE(U4)),0,1) -> 0 | O20: =IF(U4=0,1,0) -> 0 | P20: =IF(LEN(U4)>11,1,0) -> 0
A21: 10 | B21: OK | C21: Pogreška signalizira da Matični broj nije upisan ili je pogrešan. Moguće je da je pogrešno odabrana i Vrsta poslovnog subjekta (privatne osobe bez djelatnosti nemaju matični broj, obrtnici moraju imati matični koji počinje s brojem 9, slobodna zanimanja s brojem 8, a OPG-ovi s brojem 5. | L21: =MAX(N21:S21) -> 0 | N21: =IF(AND(INT(VALUE(U5))<123455,U7<>16),1,0) -> 0 | O21: =IF(AND(INT(VALUE(U5))>0,U7=16),1,0) -> 0 | P21: =IF(AND(OR(INT(VALUE(U5))<50000000,INT(VALUE(U5))>59999999),U7=15),1,0) -> 0 | Q21: =IF(AND(OR(INT(VALUE(U5))<80000000,INT(VALUE(U5))>89999999),U7=14),1,0) -> 0 | R21: =IF(AND(OR(INT(VALUE(U5))<90000000,INT(VALUE(U5))>99999999),U7=13),1,0) -> 0 | S21: =IF(AND(U7<>13,U7<>14,U7<>15,U7<>16,U7<>7,INT(VALUE(U5)>10000000)),1,0) -> 0
A22: 11 | B22: OK | C22: Pogreška signalizira da Matični broj subjekta nije upisan ili je pogrešno označena Vrsta poslovnog subjekta (ako je Trgovački sud registarsko tijelo mora biti upisan u suprotnom polje mora biti prazno) | L22: =MAX(N22:R22) -> 0 | N22: =IF(ISNUMBER(VALUE(U6)),0,1) -> 0 | O22: =IF(AND(U6=0,U7<13),1,0) -> 0 | P22: =IF(LEN(U6)>9,1,0) -> 0 | Q22: =IF(AND(U7>12,U6>0),1,0) -> 0
A23: 12 | B23: OK | C23: Pogreška signalizira da Naziv poslovnog subjekta nije popunjen ili je pogrešno popunjen | L23: =MAX(N23:R23) -> 0 | N23: =IF(OR(LEN(W2)<3,W2=0),1,0) -> 0
A24: 13 | B24: OK | C24: Pogreška signalizira da Poštanski broj i/ili mjesto nisu popunjeni ili su pogrešno popunjeni. Broj pošte je zasebno polje i upisuje se tamo, ne smije se upisivati u naziv naselja. | L24: =MAX(N24:R24) -> 0 | N24: =IF(OR(W3=0,W4=0),1,0) -> 0 | O24: =IF(LEN(W4)<2,1,0) -> 0 | P24: =IF(OR(W3<10000,W3>54000),1,0) -> 0 | Q24: =IF(OR(MID(W4,1,1)="1",MID(W4,1,1)="2",MID(W4,1,1)="3",MID(W4,1,1)="4",MID(W4,1,1)="5"),1,0) -> 0
A25: 14 | B25: OK | C25: Pogreška signalizira da adresa (ulica i broj) ili telefon poduzetnika nisu popunjeni ili nisu ispravno popunjeni. | L25: =MAX(N25:R25) -> 0 | N25: =IF(OR(W5=0,W6=0),1,0) -> 0 | O25: =IF(LEN(W5)<4,1,0) -> 0 | P25: =IF(LEN(W6)<6,1,0) -> 0
A26: 15 | B26: OK | C26: Pogreška signalizira da adresa e-pošte obveznika nije popunjena ili je pogrešno popunjena, a to znači da sadrži razmak ili neki specijalni znak koji adresa e-pošte ne bi smjela sadržavati. U polje adrese e-pošte upišite samo jednu adresu. | L26: =MAX(N26:BH26) -> 0 | N26: =IF(LEN(W7)<6,1,0) -> 0 | O26: =IF(ISERROR(FIND("@",W7,1)),1,0) -> 0 | P26: =IF(ISERROR(FIND("@",W7,1)),1,0) -> 0 | Q26: =IF(ISERROR(FIND(".",W7,1)),1,0) -> 0 | R26: =IF(ISERROR(FIND(".",W7,1)),1,0) -> 0 | S26: =IF(ISERROR(FIND("Č",W7,1)),0,1) -> 0 | T26: =IF(ISERROR(FIND("Č",W7,1)),0,1) -> 0 | U26: =IF(ISERROR(FIND("Ć",W7,1)),0,1) -> 0 | V26: =IF(ISERROR(FIND("Ć",W7,1)),0,1) -> 0 | W26: =IF(ISERROR(FIND("Š",W7,1)),0,1) -> 0 | X26: =IF(ISERROR(FIND("Š",W7,1)),0,1) -> 0 | Y26: =IF(ISERROR(FIND("Ž",W7,1)),0,1) -> 0 | Z26: =IF(ISERROR(FIND("Ž",W7,1)),0,1) -> 0 | AA26: =IF(ISERROR(FIND("Đ",W7,1)),0,1) -> 0 | AB26: =IF(ISERROR(FIND("Đ",W7,1)),0,1) -> 0 | AC26: =IF(ISERROR(FIND("""",W7,1)),0,1) -> 0 | AD26: =IF(ISERROR(FIND("""",W7,1)),0,1) -> 0 | AE26: =IF(ISERROR(FIND(",",W7,1)),0,1) -> 0 | AF26: =IF(ISERROR(FIND(",",W7,1)),0,1) -> 0 | AG26: =IF(ISERROR(FIND(";",W7,1)),0,1) -> 0 | AH26: =IF(ISERROR(FIND(";",W7,1)),0,1) -> 0 | AI26: =IF(ISERROR(FIND(":",$W7,1)),0,1) -> 0 | AJ26: =IF(ISERROR(FIND(":",$W7,1)),0,1) -> 0 | AK26: =IF(ISERROR(FIND("?",$W7,1)),0,1) -> 0 | AL26: =IF(ISERROR(FIND("?",$W7,1)),0,1) -> 0 | AM26: =IF(ISERROR(FIND("!",$W7,1)),0,1) -> 0 | AN26: =IF(ISERROR(FIND("!",$W7,1)),0,1) -> 0 | AO26: =IF(ISERROR(FIND("#",$W7,1)),0,1) -> 0 | AP26: =IF(ISERROR(FIND("#",$W7,1)),0,1) -> 0 | AQ26: =IF(ISERROR(FIND("$",$W7,1)),0,1) -> 0 | AR26: =IF(ISERROR(FIND("$",$W7,1)),0,1) -> 0 | AS26: =IF(ISERROR(FIND("%",$W7,1)),0,1) -> 0 | AT26: =IF(ISERROR(FIND("%",$W7,1)),0,1) -> 0 | AU26: =IF(ISERROR(FIND("&",$W7,1)),0,1) -> 0 | AV26: =IF(ISERROR(FIND("&",$W7,1)),0,1) -> 0 | AW26: =IF(ISERROR(FIND("/",$W7,1)),0,1) -> 0 | AX26: =IF(ISERROR(FIND("/",$W7,1)),0,1) -> 0 | AY26: =IF(ISERROR(FIND("=",$W7,1)),0,1) -> 0 | AZ26: =IF(ISERROR(FIND("=",$W7,1)),0,1) -> 0 | BA26: =IF(ISERROR(FIND("(",$W7,1)),0,1) -> 0 | BB26: =IF(ISERROR(FIND("(",$W7,1)),0,1) -> 0 | BC26: =IF(ISERROR(FIND(")",$W7,1)),0,1) -> 0 | BD26: =IF(ISERROR(FIND(")",$W7,1)),0,1) -> 0 | BE26: =IF(ISERROR(FIND(" ",$W7,1)),0,1) -> 0 | BF26: =IF(ISERROR(FIND(" ",$W7,1)),0,1) -> 0 | BG26: =IF(RIGHT(W7,1)=".",1,0) -> 0 | BH26: =IF(RIGHT(W7,1)=".",1,0) -> 0
A27: 16 | B27: OK | C27: Pogreška signalizira da šifra grada/općine nije upisana ili je pogrešno upisana | L27: =MAX(N27:R27) -> 0 | N27: =IF(OR(U9<1,U9>631),1,0) -> 0 | O27: =IF(U10="Šifra grada/općine ne postoji",1,0) -> 0
A28: 17 | B28: OK | C28: Pogreška signalizira da šifra Statusa autonomnosti nije upisana ili je upisana nepostojeća šifra. | L28: =MAX(N28:T28) -> 0 | N28: =IF(AND(S7<>1,S7<>2,S7<>3,S7<>5,S7<>6,S7<>7,S7<>9,S7<>10),1,0) -> 0
A29: 18 | B29: =IF(L29=1,"Pogreška", IF(M29=1, "Provjera","OK")) -> OK | C29: Kontrola uspoređuje vrstu subjekta u zaglavlju referentne stranice i šifru autonomnosti. Samo trgovačka društva mogu imati autonomnost različitu od 10. Obrtnici, slobodna zanimanja, zadruge, ustanove i ostali obveznici poreza na dobit mogu imati samo šifru autonomnosti 10. Ako ova kontrola javlja pogrešku pogrešno je upisana vrstu subjekta ili šifra autonomnosti. | L29: =MAX(N29:T29) -> 0 | N29: =IF(AND(S7=10,OR(U7<8,U7=12)),1,0) -> 0 | O29: =IF(AND(S7<10,OR(U7=9,U7=10, U7 = 11,U7>12)),1,0) -> 0
A30: 19 | B30: OK | C30: Kontrola provjerava da li je za ovisna društva pod kontrolom matice izvan RH (šifra autonomnosti 3 ili 6) upisana postojeća šifra zemlje sjedišta nadređenog društva. Isto tako kontrola javlja pogrešku ako je šifra autonomnosti drugačija od 3 ili 6, a upisana je šifra zemlje sjedišta nadređenog društva. | L30: =MAX(N30:S30) -> 0 | N30: =IF(AND(OR(S7=3,S7=6),OR(AA6=0,AA6="")),1,0) -> 0 | O30: =IF(AND(AND(S7<>3,S7<>6),AND(AA6<>0,AA6<>"")),1,0) -> 0
A31: 20 | B31: OK | C31: Matični broj nadređenog društva (odnosno dostupni identifikator za nadređena društva iz inozemstva) može biti upisan samo kod šifri autonomnosti 2, 3, 5 i 6. Kontrola javlja pogrešku ako je matični broj nadređenog društva upisan, a šifra autonomnosti je različita od ove četiri. Isto tako, kontrola javlja pogrešku ako je šifra autonomnosti jedna od navedenih, a matični broj nadređenog društva nije upisan. Matični broj nadređenog društva (ako je upisan) mora biti različit od matičnog broja poslovnog subjekta za koji se izvještaj predaje. | L31: =MAX(N31:Q31) -> 0 | N31: =IF(AND(AND(AA5<>0,AA5<>""),S7<>2,S7<>3,S7<>5,S7<>6),1,0) -> 0 | O31: =IF(AND(OR(AA5=0,AA5=""),OR(S7=2,S7=3,S7=5,S7=6)),1,0) -> 0 | P31: =IF(AND(U5<>0,U5<>"",U5=AA5),1,0) -> 0
A32: =A31+1 -> 21 | B32: OK | C32: Ova kontrola javlja pogrešku ako je izvještaj konsolidiran, a upisan je oznaka autonomnosti uz koju se ne popunjava konsolidirani izvještaj (obveznik nije matično društvo u grupi). | L32: =MAX(N32:R32) -> 0 | N32: =IF(AND(S6="DA",OR(S7=1,S7=2,S7=3,S7=9,S7=10)),1,0) -> 0
A33: 22 | B33: OK | C33: Status autonomnosti različit od 10 mogu imati samo poduzetnici koji su obveznici javne objave. Svi ostali obveznici poreza na dobit (obrtnici, slobodna zanimanja, OPG-ovi, zadruge, ustanove...) moraju imati status autonomnosti 10. Pogreška na ovoj kontroli znači da je upisana ili pogrešna šifra autonomnosti ili je odabrana pogrešna vrsta poslovnog subjekta. | L33: 0 | N33: =IF(AND(S7<10,OR(U7>12,U7=8,U7=9,U7=10)),1,0) -> 0
A34: 23 | B34: OK | C34: Ova pogreška signalizira da je upisana nepostojeća šifra države nadređenog (matičnog) društva ako je upisana. | L34: 0 | N34: =IF(AA7="Šifra države nepostojeća",1,0) -> 0
A35: 24 | B35: OK | C35: Pogreška signalizira da šifra djelatnosti nije upisana ili je upisana pogrešna (ili je upisana za vrstu subjekta koji je nema) | L35: 0 | N35: =IF(AND(OR(W8=0,W8=""),U7<>16),1,0) -> 0 | O35: =IF(W9="Šifra NKD-a ne postoji",1,0) -> 0
A36: 25 | B36: =IF(L36=1,"Pogreška", IF(M36=1, "Provjera","OK")) -> OK | C36: Pogreška signalizira da oznaka veličine nije upisana ili je upisana nepostojeća šifra. | L36: 0 | N36: =IF(AND(S3<>1,S3<>2,S3<>3,S3<>4),1,0) -> 0 | O36: =IF(AND(S6="DA",S3=1),1,0) -> 0
A37: 26 | B37: =IF(L37=1,"Pogreška", IF(M37=1, "Provjera","OK")) -> OK | C37: Pogreška signalizira da oznaka vlasništva nije upisana ili je upisana nepostojeća šifra. | L37: 0 | N37: =IF(AND(S4<>11,S4<>12,S4<>13,S4<>21,S4<>22,S4<>31,S4<>41,S4<>42),1,0) -> 0
A38: 27 | B38: =IF(L38=1,"Pogreška", IF(M38=1, "Provjera","OK")) -> OK | C38: Pogreška signalizira da postotak domaćeg i stranog kapitala nije dobro popunjen. Zbrojno moraju dati 100 i moraju biti upisani cijeli brojevi. | L38: 0 | N38: =IF(ISERROR(Y2+Y3),1,IF(Y2+Y3<>100,1,0)) -> 0 | O38: =IF(ISERROR(INT(Y2)),1,IF(ROUND(Y2,0)<>Y2,1,0)) -> 0 | P38: =IF(ISERROR(INT(Y3)),1,IF(ROUND(INT(Y3),0)<>INT(Y3),1,0)) -> 0
A39: 28 | B39: OK | C39: Pogreška signalizira da je broj mjeseci poslovanja izvan granica dopuštenog ili nije upisan za onaj stupac podataka za koji su upisani neki podaci u Bilanci. | L39: 0 | N39: =IF(AND(P2>0,P8=0),1,0) -> 0 | O39: =IF(Q8=0,1,0) -> 0 | P39: =IF(OR(P8>12,AND(Q8>12,P8>0)),1,0) -> 0 | Q39: =IF(AND(Q8>12,OR(S5<>2,S2<>30)),1,0) -> 0
A40: 29 | B40: =IF(L40=1,"Pogreška", IF(M40=1, "Provjera","OK")) -> OK | C40: Pogreška signalizira da nije popunjen ili je pogrešno popunjen podataka o osobi za kontaktiranje, telefonu, adresa e-pošte. Kod adrese e-pošte osobe za kontakt provjerava se ispravnost adrese (ne smije imati razmake, slova čžšđ, specijalne znakove itd.) | L40: =MAX(N40:BI40) -> 0 | N40: =IF(OR(LEN(Y6)<5,LEN(Y6)<8,LEN(Y8)<6),1,0) -> 0 | O40: =IF(LEN(Y8)<6,1,0) -> 0 | P40: =IF(ISERROR(FIND("@",Y8,1)),1,0) -> 0 | Q40: =IF(ISERROR(FIND("@",Y8,1)),1,0) -> 0 | R40: =IF(ISERROR(FIND(".",Y8,1)),1,0) -> 0 | S40: =IF(ISERROR(FIND(".",Y8,1)),1,0) -> 0 | T40: =IF(ISERROR(FIND("Č",Y8,1)),0,1) -> 0 | U40: =IF(ISERROR(FIND("Č",Y8,1)),0,1) -> 0 | V40: =IF(ISERROR(FIND("Ć",Y8,1)),0,1) -> 0 | W40: =IF(ISERROR(FIND("Ć",Y8,1)),0,1) -> 0 | X40: =IF(ISERROR(FIND("Š",Y8,1)),0,1) -> 0 | Y40: =IF(ISERROR(FIND("Š",Y8,1)),0,1) -> 0 | Z40: =IF(ISERROR(FIND("Ž",Y8,1)),0,1) -> 0 | AA40: =IF(ISERROR(FIND("Ž",Y8,1)),0,1) -> 0 | AB40: =IF(ISERROR(FIND("Đ",Y8,1)),0,1) -> 0 | AC40: =IF(ISERROR(FIND("Đ",Y8,1)),0,1) -> 0 | AD40: =IF(ISERROR(FIND("""",Y8,1)),0,1) -> 0 | AE40: =IF(ISERROR(FIND("""",Y8,1)),0,1) -> 0 | AF40: =IF(ISERROR(FIND(",",Y8,1)),0,1) -> 0 | AG40: =IF(ISERROR(FIND(",",Y8,1)),0,1) -> 0 | AH40: =IF(ISERROR(FIND(";",Y8,1)),0,1) -> 0 | AI40: =IF(ISERROR(FIND(";",Y8,1)),0,1) -> 0 | AJ40: =IF(ISERROR(FIND(":",$W18,1)),0,1) -> 0 | AK40: =IF(ISERROR(FIND(":",$W18,1)),0,1) -> 0 | AL40: =IF(ISERROR(FIND("?",$W18,1)),0,1) -> 0 | AM40: =IF(ISERROR(FIND("?",$W18,1)),0,1) -> 0 | AN40: =IF(ISERROR(FIND("!",$W18,1)),0,1) -> 0 | AO40: =IF(ISERROR(FIND("!",$W18,1)),0,1) -> 0 | AP40: =IF(ISERROR(FIND("#",$W18,1)),0,1) -> 0 | AQ40: =IF(ISERROR(FIND("#",$W18,1)),0,1) -> 0 | AR40: =IF(ISERROR(FIND("$",$W18,1)),0,1) -> 0 | AS40: =IF(ISERROR(FIND("$",$W18,1)),0,1) -> 0 | AT40: =IF(ISERROR(FIND("%",$W18,1)),0,1) -> 0 | AU40: =IF(ISERROR(FIND("%",$W18,1)),0,1) -> 0 | AV40: =IF(ISERROR(FIND("&",$W18,1)),0,1) -> 0 | AW40: =IF(ISERROR(FIND("&",$W18,1)),0,1) -> 0 | AX40: =IF(ISERROR(FIND("/",$W18,1)),0,1) -> 0 | AY40: =IF(ISERROR(FIND("/",$W18,1)),0,1) -> 0 | AZ40: =IF(ISERROR(FIND("=",$W18,1)),0,1) -> 0 | BA40: =IF(ISERROR(FIND("=",$W18,1)),0,1) -> 0 | BB40: =IF(ISERROR(FIND("(",$W18,1)),0,1) -> 0 | BC40: =IF(ISERROR(FIND("(",$W18,1)),0,1) -> 0 | BD40: =IF(ISERROR(FIND(")",$W18,1)),0,1) -> 0 | BE40: =IF(ISERROR(FIND(")",$W18,1)),0,1) -> 0 | BF40: =IF(ISERROR(FIND(" ",$W18,1)),0,1) -> 0 | BG40: =IF(ISERROR(FIND(" ",$W18,1)),0,1) -> 0 | BH40: =IF(RIGHT(Y8,1)=".",1,0) -> 0 | BI40: =IF(RIGHT(Y8,1)=".",1,0) -> 0
A41: 30 | B41: OK | C41: Matični broj i naziv knjigovodstvenog servisa unose se samo ako je vanjski servis sastavio financijski izvještaj, ako je izvještaj sastavljen u računovodstvu obveznika, ova polja se ne popunjavaju. Ako postoji servis, adresa e-pošte obveznika i e-pošte za kontakt ne može biti isti. Obje adrese e-pošte su obvezne zbog komunikacije i zbog slanja potvrde o predaji putem web-a. | L41: =MAX(N41:Q41) -> 0 | N41: =IF(OR(AND(AA2="",AA3<>""),AND(AA2<>"",AA3="")),1,0) -> 0 | O41: =IF(AND(RefStr!H27=RefStr!B64,RefStr!H27<>""),1,0) -> 0 | P41: =IF(AND(AA2<>"",Y8=W7),1,0) -> 0
A42: 31 | B42: OK | C42: Ime i prezime osobe ovlaštene za zastupanje mora biti upisano u za to predviđeno polje na Referentnoj stranici. | L42: =MAX(N42:R42) -> 0 | N42: =IF(LEN(AA10)<5,1,0) -> 0
A43: Matematičko - logičke obvezne kontrole (kontrole koje u svim uvjetima moraju biti zadovoljene) | L43: 0
A44: =A42+1 -> 32 | B44: =IF(L44=1,"Pogreška", IF(M44=1, "Provjera","OK")) -> OK | C44: Pozicije ukupno aktiva (AOP 065) i ukupno pasiva (AOP 126) moraju biti jednake uz dopušteno odstupanje od 0,14€ zbog zaokruživanja i veće od nule u svakoj godini u kojoj je poslovni subjekt poslovao, tj. gdje je broj mjeseci poslovanja veći od nule. Ukupno aktiva i ukupno pasiva mogu biti nula samo kod završne likvidacijske bilance za javnu objavu (svrha predaje 2 i vrsta izvještaja 30) ili ako je označeno da se tvrka briiše po skraćenom postupku bez likvidacije (Polje "Subjekt se briše sa zadnjim danom razdoblja izvještavanja.. | L44: 0 | N44: =IF(ABS(Bilanca!I73-Bilanca!I135)>$AC$2,1,0) -> 0 | O44: =IF(ABS(Bilanca!J73-Bilanca!J135)>$AC$2,1,0) -> 0 | P44: =IF(AND(Bilanca!J73=0,OR(S5<>2,S2<>30),AC6="NE"),1,0) -> 0 | Q44: =IF(AND(Bilanca!I73=0,P8>0,OR(S5<>2,S2<>30)),1,0) -> 0
A45: =A44+1 -> 33 | B45: =IF(L45=1,"Pogreška", IF(M45=1, "Provjera","OK")) -> OK | C45: Pozicije izvanbilančni zapisi u aktivi (AOP 066) moraju biti jednaki izvanbilančnim zapisima u pasivi (AOP 127) u oba stupca podataka - tekuća godina i prethodna godina. Zbog zaokruživanja iznosa, kontrola dozvoljava razliku od 0,14€. | L45: 0 | N45: =IF(ABS(Bilanca!I74-Bilanca!I136)>$AC$2,1,0) -> 0 | O45: =IF(ABS(Bilanca!J74-Bilanca!J136)>$AC$2,1,0) -> 0
A46: =A45+1 -> 34 | B46: =IF(L46=1,"Pogreška", IF(M46=1, "Provjera","OK")) -> OK | C46: Stavka Dobit poslovne godine (AOP 088) i Gubitak poslovne godine (AOP 089) ne mogu biti istovremeno popunjene u stupcu prethodne ili tekuće godine. | L46: 0 | N46: =IF(AND(Bilanca!I97<>0,Bilanca!I98<>0),1,0) -> 0 | O46: =IF(AND(Bilanca!J97<>0,Bilanca!J98<>0),1,0) -> 0
A47: 35 | B47: =IF(L47=1,"Pogreška", IF(M47=1, "Provjera","OK")) -> OK | C47: Stavka Dobit poslovne godine (AOP 088) u i Gubitak poslovne godine (AOP 089) u Bilanci moraju biti jednake stavkama Dobit razdoblja (AOP 187) i Gubitak razdoblja (AOP 188) u Računu dobiti i gubitka. Iznimka su obveznici primjene MSFI-a koji su imali prekinuto poslovanje. Kod njih vrijedi da AOP 087 mora biti jednak AOP-u 200, a AOP 089 mora biti jednak AOP-u 201. Zbog zaokruživanja iznosa dopušteno je odstupanje od 0,14€. Ova kontrola ne vrijedi kod konsolidiranih izvještaja. | L47: =MAX(N47:V47) -> 0 | N47: =IF(AND($S$6<>"DA", ABS(Bilanca!I97-RDG!I67)>$AC$2,MIN(RDG!I70:I83)=0,MAX(RDG!I70:I83)=0),1,0) -> 0 | O47: =IF(AND($S$6<>"DA", ABS(Bilanca!J97-RDG!J67)>$AC$2,MIN(RDG!J70:J83)=0,MAX(RDG!J70:J83)=0),1,0) -> 0 | P47: =IF(AND($S$6<>"DA", ABS(Bilanca!I98-RDG!I68)>$AC$2,MIN(RDG!I70:I83)=0,MAX(RDG!I70:I83)=0),1,0) -> 0 | Q47: =IF(AND($S$6<>"DA", ABS(Bilanca!J98-RDG!J68)>$AC$2,MIN(RDG!J70:J83)=0,MAX(RDG!J70:J83)=0),1,0) -> 0 | R47: =IF(AND($S$6<>"DA", ABS(Bilanca!I97-RDG!I82)>$AC$2,OR(MIN(RDG!I70:I83)<>0,MAX(RDG!I70:I83)<>0),$AA$4="MSFI"),1,0) -> 0 | S47: =IF(AND($S$6<>"DA", ABS(Bilanca!J97-RDG!J82)>$AC$2,OR(MIN(RDG!J70:J83)<>0,MAX(RDG!J70:J83)<>0),$AA$4="MSFI"),1,0) -> 0 | T47: =IF(AND($S$6<>"DA", ABS(Bilanca!K97-RDG!K82)>$AC$2,OR(MIN(RDG!K70:K83)<>0,MAX(RDG!K70:K83)<>0),$AA$4="MSFI"),1,0) -> 0 | U47: =IF(AND($S$6<>"DA", ABS(Bilanca!J98-RDG!J83)>$AC$2,OR(MIN(RDG!J70:J83)<>0,MAX(RDG!J70:J83)<>0),$AA$4="MSFI"),1,0) -> 0 | V47: =IF(AND($S$6<>"DA", ABS(Bilanca!K98-RDG!K83)>$AC$2,OR(MIN(RDG!K70:K83)<>0,MAX(RDG!K70:K83)<>0),$AA$4="MSFI"),1,0) -> 0
A48: 36 | B48: =IF(L48=1,"Pogreška", IF(M48=1, "Provjera","OK")) -> OK | C48: Kod obveznika organizacijskog oblika d.d., d.o.o ili j.d.o.o. AOP oznaka 068 mora biti veća od nule za svaki stupac u kojem je broj mjeseci poslovanja veći od nula (za godine u kojima je subjekt poslovao). Ako ova kontrola javlja pogrešku, moguće je da je krivo označena vrsta obveznika na Referentnoj stranici ili podaci nisu upisani. | L48: 0 | N48: =IF(AND(OR(RefStr!$C$7=4,RefStr!$C$7=5,RefStr!$C$7=6),P8>0,Bilanca!I77=0),1,0) -> 0 | O48: =IF(AND(OR(RefStr!$C$7=4,RefStr!$C$7=5,RefStr!$C$7=6),Q8>0,Bilanca!J77=0),1,0) -> 0
A49: 37 | B49: OK | C49: AOP 090 u Bilanci se popunjava samo u konsolidiranom izvještaju. Kontrola javlja pogrešku ako je ova AOP oznaka popunjena, a izvještaj nije konsolidiran, a upozorenje ako izvještaj jeste konsolidiran, a ova stavka je jednaka nuli. Provjeravaju se podaci u oba stupca podataka ako je u oba broj mjeseci poslovanja veći od nule. | L49: 0 | M49: =MAX(S49:V49) -> 0 | N49: =IF(AND(S6="NE",OR(Bilanca!I99<>0,Bilanca!J99<>0)),1,0) -> 0 | S49: =IF(AND(S6="DA",AND(Bilanca!I99=0,P8>0)),1,0) -> 0 | T49: =IF(AND(S6="DA",AND(Bilanca!J99=0,Q8>0)),1,0) -> 0 | AQ49: AKTIVA1 | AR49: AKTIVA2 | AS49: AKTIVA3 | AT49: PRIHOD1 | AU49: PRIHOD2 | AV49: PRIHOD3
A50: 38 | B50: OK | C50: ="Oznaka veličine može biti: 1-mikro, 2-mali, 3-srednji i 4-veliki. Ova kontrola javlja pogrešku ako se izračunata i upisana veličina ne slažu. "&"Uvjeti veličine za konsolidirane grupe su isti kao za pojedinačne izvještaje, razlika je samo u tome da konsolidirana grupa po definiciji ne može imati veličinu mikro."&" Ako izračunata veličina nije jednaka upisanoj ili oznaka veličine nije upisana u opće podatke ova kontrola javlja pogrešku. Prema upisanim podacima, izračunata veličina je "&N50&IF(OR(S3="",S3=""),", ali u opće podatke veličina nije ni upisana.",", a upisana veličina je "&S3 & ".") -> Oznaka veličine može biti: 1-mikro, 2-mali, 3-srednji i 4-veliki. Ova kontrola javlja pogrešku ako se izračunata i upisana veličina ne slažu. Uvjeti veličine za konsolidirane grupe su isti kao za pojedinačne izvještaje, razlika je samo u tome da konsolidirana grupa po definiciji ne može imati veličinu mikro. Ako izračunata veličina nije jednaka upisanoj ili oznaka veličine nije upisana u opće podatke ova kontrola javlja pogrešku. Prema upisanim podacima, izračunata veličina je 2, a upisana veličina je 2. | L50: =IF(N50<>S3,1,0) -> 0 | N50: =IF(P8>0,O50,AC50) -> 2 | O50: =IF(SUM(Y50:AA50)>1,4,IF(SUM(U50:W50)>1,3,IF(SUM(Q50:S50)>1,2,IF(S6="DA",2,1)))) -> 2 | P50: Mali | Q50: =IF(Bilanca!I73>AQ50,1,0) -> 1 | R50: =IF(RDG!I60>AT50,1,0) -> 1 | S50: =IF(P10>10,1,0) -> 1 | T50: Srednji | U50: =IF(Bilanca!I73>AR50,1,0) -> 1 | V50: =IF(RDG!I60>AU50,1,0) -> 0 | W50: =IF(P10>50,1,0) -> 0 | X50: Veliki | Y50: =IF(Bilanca!I73>AS50,1,0) -> 0 | Z50: =IF(RDG!I60>AV50,1,0) -> 0 | AA50: =IF(P10>250,1,0) -> 0 | AC50: =IF(SUM(AM50:AO50)>1,4,IF(SUM(AI50:AK50)>1,3,IF(SUM(AE50:AG50)>1,2,IF(S6="DA",2,1)))) -> 3 | AD50: Mali | AE50: =IF(Bilanca!J73>AQ50,1,0) -> 1 | AF50: =IF(S9>S8,IF(RDG!J60*365/(S9-S8)>AT50,1,0),0) -> 1 | AG50: =IF(Q10>10,1,0) -> 1 | AH50: Srednji | AI50: =IF(Bilanca!J73>AR50,1,0) -> 1 | AJ50: =IF(S9>S8,IF(RDG!J60*365/(S9-S8)>AU50,1,0),0) -> 0 | AK50: =IF(Q10>50,1,0) -> 1 | AL50: Veliki | AM50: =IF(Bilanca!J73>AS50,1,0) -> 0 | AN50: =IF(S9>S8,IF(RDG!J60*365/(S9-S8)>AV50,1,0),0) -> 0 | AO50: =IF(Q10>250,1,0) -> 0 | AQ50: =IF(W10<2023,2600000,350000) -> 350000 | AR50: =IF(W10<2023,30000000,4000000) -> 4000000 | AS50: =IF(W10<2023,150000000,20000000) -> 20000000 | AT50: =IF(W10<2023,5200000,700000) -> 700000 | AU50: =IF(W10<2023,60000000,8000000) -> 8000000 | AV50: =IF(W10<2023,300000000,40000000) -> 40000000
A51: 39 | B51: OK | C51: Samo neaktivni poduzetnik može imati nepopunjen RDG i PodDop za stupac prethodne ili tekuće godine, a istovremeno imati broj mjeseci poslovanja veći od nule u istom tom stupcu. Aktivni poduzetnik mora imati podatke u svakom stupcu u kojem je broj mjeseci poslovanja veći od nule. Ako obveznik ima podatke u RDG-u i/ili Dodatnim podacima, ne može biti poslovno neaktivan. | L51: =MAX(N51:R51) -> 0 | N51: =IF(AND(P8>0,P3=0,AC4<>"DA"),1,0) -> 0 | O51: =IF(AND(Q8>0,Q3=0,O8<>"DA"),1,0) -> 0 | P51: =IF(AND(P8>0,P4=0,AC4<>"DA",S5<>2),1,0) -> 0 | Q51: =IF(AND(Q8>0,Q4=0,O8<>"DA",S5<>2),1,0) -> 0 | R51: =IF(AND(O8="DA", OR(Q3>0,Q4>0)),1,0) -> 0
A52: 40 | B52: OK | C52: Pogreška u ovoj kontroli signalizira da je obveznik uz izvještaj obvezan predati i revizorsko izvješće jer je obveznik revizije. Kontrola upozorava ako je označeno da je poduzetnik podnio revizorsko izvješće a nije obveznik što je dopušteno iz razloga što može biti obveznik iz nekih razloga koji se ne odnose na ovaj izvještaj (npr. obveznik od državnog interesa). Revizorsko izvješće obavezno je uz vrste izvještaja 10 i 11. | L52: =MAX(N52:R52) -> 0 | N52: =IF(AND(S5>1,S3>2,OR(S2=10,S2=11),U2<>"DA"),1,0) -> 0 | O52: =IF(AND(S5>1,Z52>0,OR(S2=10,S2=11),U2<>"DA"),1,0) -> 0 | P52: =IF(AND(S5=1,U2="DA"),1,0) -> 0 | Z52: =IF(AND(OR(U7=2,U7=4,U7=5),SUM(AA52:AC52)>1),1,0) -> 0 | AA52: =IF(Bilanca!I73>AF52,1,0) -> 1 | AB52: =IF(RDG!I9+RDG!I10>AG52,1,0) -> 0 | AC52: =IF(P10>=25,1,0) -> 1 | AF52: 2500000 | AG52: 5000000
A53: 41 | B53: OK | C53: Samo vrste izvještaja 10, 11, 20 i 30 mogu biti konsolidirane. Kontrola javlja pogrešku ako je označeno da je neka druga vrsta izvještaja konsolidirana. Konsolidirani izvještaj može se predati samo za javnu objavu. | L53: =MAX(N53:R53) -> 0 | N53: =IF(AND(S6="DA",AND(S2<>10,S2<>11,S2<>20,S2<>30)),1,0) -> 0 | O53: =IF(AND(S5<>2,S6="DA"),1,0) -> 0
A54: 42 | B54: OK | C54: Kod obveznika koji imaju šifru autonomnosti 1 ne smiju biti popunjene AOP oznake RDG-a koje se odnose na pozicije vezane uz grupu, tj. AOP oznake: 129,132,158,160,161,162,169 i 170 u stupcu tekućeg razdoblja. | L54: =MAX(N54:R54) -> 0 | N54: =IF(AND(S7=1,MAX(RDG!J9,RDG!J12,RDG!J38,RDG!J40:J42,RDG!J49:J50)>0),1,0) -> 0 | O54: =IF(AND(S7=1,MIN(RDG!J9,RDG!J12,RDG!J38,RDG!J40:J42,RDG!J49:J50)<0),1,0) -> 0
A55: 43 | B55: OK | C55: Kod obveznika koji imaju šifru autonomnosti 1 ne smiju biti popunjene AOP oznake Dodatnih podataka koje se odnose na pozicije vezane uz grupu, tj. AOP oznake: 22,245,263 i 298 u stupcu tekućeg razdoblja. | L55: =MAX(N55:P55) -> 0 | N55: =IF(AND(S7=1,MAX(Dodatni!J23,Dodatni!J27,Dodatni!J49,Dodatni!J86)>0),1,0) -> 0 | O55: =IF(AND(S7=1,MAX(Dodatni!J23,Dodatni!J27,Dodatni!J49,Dodatni!J86)>0),1,0) -> 0
A56: 44 | B56: OK | C56: Broj zaposlenih ne može biti veći od 30.000 (u konsolidaciji 65.000). Isto tako, kontrola upozorava ako je broj zaposlenih u bilo kojem polju veći od 1000. | L56: =MAX(N56:O56) -> 0 | M56: =MAX(P56) -> 0 | N56: =IF(AND(S6<>"DA",OR(P9>30000,Q9>30000,P10>30000,Q10>30000)),1,0) -> 0 | O56: =IF(AND(S6="DA",OR(P9>65000,Q9>65000,P10>65000,Q10>65000)),1,0) -> 0 | P56: =IF(OR(P9>1000,Q9>1000,P10>1000,Q10>1000),1,0) -> 0
A57: =A56+1 -> 45 | B57: =IF(L57=1,"Pogreška", IF(M57=1, "Provjera","OK")) -> OK | C57: U Bilanci samo AOP oznake 067, 069 do 084, 087 i 090 mogu biti negativne. Kontrola javlja pogrešku ako je bilo koja druga AOP oznaka osim ovih negativna. | L57: =MAX(N57:Q57) -> 0 | N57: =IF(MIN(Bilanca!I9:J74,Bilanca!I77:J77,Bilanca!I94:J95,Bilanca!I97:J98,Bilanca!I100:J136)<0,1,0) -> 0
A58: 46 | B58: OK | C58: U Računu dobiti i gubitka samo AOP oznake 135, 146 do 155, 174, 182, 185, 186, 189, 192, 195, 198, 199, 202 do 229 mogu biti negativne. Kontrola javlja pogrešku ako je bilo koja druga AOP oznaka negativna. | L58: 0 | N58: =IF(MIN(RDG!I8:J14,RDG!I16:J25,RDG!I36:J53,RDG!I55:J61,RDG!I63:J64,RDG!I67:J68,RDG!I71:J72,RDG!I74:J75,RDG!I78:J79,RDG!I82:J83)<0,1,0) -> 0
A59: =A58+1 -> 47 | B59: =IF(L59=1,"Pogreška", IF(M59=1, "Provjera","OK")) -> OK | C59: U Izvještaju o novčanim tokovima po indirektnoj metodi AOP oznake 003, 007, 021 do 027, 035 do 039, 049 i 050 mogu biti nula ili pozitivne. Kontrola će javiti pogrešku ako je u neku od ovih AOP oznaka upisan negativan podatak. | L59: =MAX(N59:Q59) -> 0 | N59: =IF(MIN(NT_I!I11:J11,NT_I!I15:J15,NT_I!I30:J36,NT_I!I59:J60)<0,1,0) -> 0
A60: 48 | B60: OK | C60: U Izvještaju o novčanim tokovima po indirektnoj metodi AOP oznake 006, 018, 028 do 030, 032, 040 do 045 mogu biti nula ili negativne. Kontrola javlja pogrešku ako je u neku od ovih AOP oznaka upisana pozitivna vrijednost. | L60: =MAX(N60:Q60) -> 0 | N60: =IF(MAX(NT_I!I14:J14,NT_I!I26:J26,NT_I!I37:J39,NT_I!I41:J41,NT_I!I50:J55)>0,1,0) -> 0
A61: =A60+1 -> 49 | B61: =IF(L61=1,"Pogreška", IF(M61=1, "Provjera","OK")) -> OK | C61: U Izvještaju o novčanim tokovima po direktnoj metodi AOP oznake 001 do 006, 015 do 021, 029 do 033, 043 i 044 mogu biti nula ili pozitivne. Kontrola će javiti pogrešku ako je u neku od ovih AOP oznaka upisan negativan podatak. | L61: =MAX(N61:Q61) -> 0 | N61: =IF(MIN(NT_D!I9:J14,NT_D!I24:J30,NT_D!I39:J43,NT_D!I53:J54)<0,1,0) -> 0
A62: =A61+1 -> 50 | B62: =IF(L62=1,"Pogreška", IF(M62=1, "Provjera","OK")) -> OK | C62: U Izvještaju o novčanim tokovima po direktnoj metodi AOP oznake 007 do 013, 022 do 024, 026, 027 i 034 do 039 mogu biti nula ili negativne. Kontrola će javiti pogrešku ako je u neku od ovih AOP oznaka upisan pozitivan podatak. | L62: =MAX(N62:Q62) -> 0 | N62: =IF(MAX(NT_D!I15:J21,NT_D!I31:J33,NT_D!I35:J36,NT_D!I44:J49)>0,1,0) -> 0
A63: =A62+1 -> 51 | B63: =IF(L63=1,"Pogreška", IF(M63=1, "Provjera","OK")) -> OK | C63: Ako je izvještaj konsolidiran, AOP oznaka 186 u obrascu Račun dobiti i gubitka mora biti jednaka AOP oznaci 202 uz dopušteno odstupanje od 0,14€ zbog zaokruživanja iznosa. Kod obveznika MSFI-a koji su imali prekinuto poslovanje AOP 199 mora biti jednak AOP oznaci 202 uz dopušteno odstupanje od 0,14€. | L63: =MAX(N63:Q63) -> 0 | N63: =IF(AND($S$6="DA",ABS(RDG!I66-RDG!I85)>$AC$2,AND(MIN(RDG!I70:I75)=0,MAX(RDG!I70:I75)=0)),1,0) -> 0 | O63: =IF(AND($S$6="DA",ABS(RDG!J66-RDG!J85)>$AC$2,AND(MIN(RDG!J70:J75)=0,MAX(RDG!J70:J75)=0)),1,0) -> 0 | P63: =IF(AND($S$6="DA",ABS(RDG!I81-RDG!I85)>$AC$2,OR(MIN(RDG!I70:I75)<>0,MAX(RDG!I70:I75)<>0),$AA$4="MSFI"),1,0) -> 0 | Q63: =IF(AND($S$6="DA",ABS(RDG!J81-RDG!J85)>$AC$2,OR(MIN(RDG!J70:J75)<>0,MAX(RDG!J70:J75)<>0),$AA$4="MSFI"),1,0) -> 0
A64: 52 | B64: OK | C64: AOP oznaka 186 u obrascu Račun dobiti i gubitka mora biti jednaka AOP oznaci 205 kod obveznika primjene MSFI-a, uz dopušteno odstupanje od 0,14€ zbog zaokruživanja iznosa. Ako je subjekt obveznik MSFI-a i ima prekinuto poslovanje tada AOP 199 mora biti jednak AOP-u 205 uz dopušteno odstupanje od 0,14€. | L64: 0 | N64: =IF(AND($AA$4="MSFI",ABS(RDG!I89-RDG!I66)>$AC$2,AND(MIN(RDG!I70:I75)=0,MAX(RDG!I70:I75)=0)),1,0) -> 0 | O64: =IF(AND($AA$4="MSFI",ABS(RDG!J89-RDG!J66)>$AC$2,AND(MIN(RDG!J70:J75)=0,MAX(RDG!J70:J75)=0)),1,0) -> 0 | P64: =IF(AND($AA$4="MSFI",ABS(RDG!I89-RDG!I81)>$AC$2,OR(MIN(RDG!I70:I75)<>0,MAX(RDG!I70:I75)<>0)),1,0) -> 0 | Q64: =IF(AND($AA$4="MSFI",ABS(RDG!J89-RDG!J81)>$AC$2,OR(MIN(RDG!J70:J75)<>0,MAX(RDG!J70:J75)<>0)),1,0) -> 0
A65: 53 | B65: OK | C65: AOP oznaka 226 u obrascu Račun dobiti i gubitka mora biti jednaka AOP oznaci 227 u konsolidiranom izvještaju obveznika primjene MSFI-a, uz dopušteno odstupanje od 0,14€ zbog zaokruživanja iznosa. | L65: 0 | N65: =IF(AND(AA4="MSFI",S6="DA",ABS(RDG!I110-RDG!I112)>$AC$2),1,0) -> 0 | O65: =IF(AND(AA4="MSFI",S6="DA",ABS(RDG!J110-RDG!J112)>$AC$2),1,0) -> 0
A66: 54 | B66: OK | C66: U konsolidiranom izvještaju svi obveznici moraju imati popunjenu AOP oznaku 202 (a obveznici primjene MSFI standarda i AOP 227) u stupcu svake godine u kojoj je poslovni subjekt poslovao (broj mjeseci poslovanja veći od nula). | L66: =MAX(N66:U66) -> 0 | N66: =IF(AND(S6="DA",P8>0,RDG!I85=0),1,0) -> 0 | O66: =IF(AND(S6="DA",Q8>0,RDG!J85=0),1,0) -> 0 | P66: =IF(AND(S6="DA",P8>0,AA4="MSFI",RDG!I112=0),1,0) -> 0 | Q66: =IF(AND(S6="DA",Q8>0,AA4="MSFI",RDG!J112=0),1,0) -> 0 | R66: =IF(AND(S6="DA",P8>0,AA4="HSFI",RDG!I112<>0),1,0) -> 0 | S66: =IF(AND(S6="DA",Q8>0,AA4="HSFI",RDG!J112<>0),1,0) -> 0 | T66: =IF(AND(S6="NE",MIN(RDG!I85:J85,RDG!I112:J112)<>0),1,0) -> 0 | U66: =IF(AND(S6="NE",MAX(RDG!I85:J85,RDG!I112:J112)<>0),1,0) -> 0
A67: 55 | B67: OK | C67: Svi obveznici primjene MSFI-a moraju popuniti i izvještaj o Sveobuhvatnoj dobiti tj. moraju popuniti AOP oznake 205 do 226. Obveznici primjene HSFI-a ne mogu popuniti ovaj izvještaj. | L67: =MAX(N67:Q67) -> 0 | N67: =IF(AND(P8>0,AND(MIN(RDG!I89:I110)=0,MAX(RDG!I89:I110)=0),AA4="MSFI"),1,0) -> 0 | O67: =IF(AND(Q8>0,AND(MIN(RDG!J89:J110)=0,MAX(RDG!J89:J110)=0,Q3>0),AA4="MSFI"),1,0) -> 0 | P67: =IF(AND(P8>0,OR(MIN(RDG!I89:I110)<>0,MAX(RDG!I89:I110)<>0),AA4<>"MSFI"),1,0) -> 0 | Q67: =IF(AND(Q8>0,OR(MIN(RDG!J89:J110)<>0,MAX(RDG!J89:J110)<>0),AA4<>"MSFI"),1,0) -> 0
A68: 56 | B68: =IF(L68=1,"Pogreška", IF(M68=1, "Provjera","OK")) -> OK | C68: Veliki poduzetnici su obveznici primjene MSFI-a, ne mogu odabrati primjenu HSFI-a na Referentnoj stranici, osim ako je konsolidirani izještaj, tada i za izvještaj velike grupe može označiti i HSFI. | L68: =MAX(N68:Q68) -> 0 | N68: =IF(AND(S3=4,AA4<>"MSFI",S6<>"DA"),1,0) -> 0
A69: 57 | B69: OK | C69: Podatke koji se odnose na prekinuto poslovanje mogu popuniti samo obveznici primjene MSFI-a. Ova pogreška se javlja ako je obveznik primjene HSFI-a popunio bilo koju od AOP oznaka 189 do 201. | L69: =MAX(N69:Q69) -> 0 | N69: =IF(AND(OR(MIN(RDG!I70:J83)<>0,MAX(RDG!I70:J83)<>0),AA4<>"MSFI"),1,0) -> 0
A70: 58 | B70: =IF(L70=1,"Pogreška", IF(M70=1, "Provjera","OK")) -> OK | C70: Ako je popunjen izvještaj o novčanim tokovima po indirektnoj metodi tada AOP oznaka 001 mora biti jednaka AOP oznaci 182 u Računu dobiti i gubitka, a AOP oznaka 003 mora biti jednaka AOP oznaci 144 u Računu dobiti i gubitka. Dopuštena je razlika od 0,14€ zbog zaokruživanja iznosa. Kontrola javlja pogrešku ako je razlika u bilo kojem stupcu veća od dopuštene. | L70: =MAX(N70:Q70) -> 0 | N70: =IF(AND(O5<>0,OR(ABS(NT_I!I9-RDG!I62)>$AC$2,ABS(NT_I!J9-RDG!J62)>$AC$2,ABS(NT_I!I11-RDG!I24)>$AC$2,ABS(NT_I!J11-RDG!J24)>$AC$2)),1,0) -> 0
A71: 59 | B71: =IF(L71=1,"Pogreška", IF(M71=1, "Provjera","OK")) -> OK | C71: Ako je obrazac Promjene Kapitala popunjen, vrijednost upisanih podataka u obrascu Promjene kapitala mora i u prethodnoj i u tekućoj godini odgovarati istovrsnim pozicijama u Bilanci. U obrascu Promjene kapitala AOP oznaka 24 za podatke iz stupca prethodne godine, a AOP 51 za podatke iz stupca tekuće godine stupci 4 do 16, moraju odgovarati AOP oznakama Bilance (redom): 068, 069, 071, 072, 073, 074, 075, 076, 078, 079, 080, 081, 082, 083, 084, 087 a stupac 21 mora odgovarati AOP oznaci 090. Dopušteno je odstupanje od 0,14€ zbog zaokruživanja. | L71: =MAX(N71:AD71) -> 0 | N71: =IF(AND($O$7=1,OR(ABS(Bilanca!I76-PK!AA33)>$AC$2, ABS(Bilanca!J76-PK!AA62)>$AC$2)),1,0) -> 0 | O71: =IF(AND($O$7=1,OR(ABS(Bilanca!I77-PK!I33)>$AC$2, ABS(Bilanca!J77-PK!I62)>$AC$2)),1,0) -> 0 | P71: =IF(AND($O$7=1,OR(ABS(Bilanca!I78-PK!J33)>$AC$2, ABS(Bilanca!J78-PK!J62)>$AC$2)),1,0) -> 0 | Q71: =IF(AND($O$7=1,OR(ABS(Bilanca!I80-PK!K33)>$AC$2, ABS(Bilanca!J80-PK!K62)>$AC$2)),1,0) -> 0 | R71: =IF(AND($O$7=1,OR(ABS(Bilanca!I81-PK!L33)>$AC$2, ABS(Bilanca!J81-PK!L62)>$AC$2)),1,0) -> 0 | S71: =IF(AND($O$7=1,OR(ABS(Bilanca!I82-PK!M33)>$AC$2, ABS(Bilanca!J82-PK!M62)>$AC$2)),1,0) -> 0 | T71: =IF(AND($O$7=1,OR(ABS(Bilanca!I83-PK!N33)>$AC$2, ABS(Bilanca!J83-PK!N62)>$AC$2)),1,0) -> 0 | U71: =IF(AND($O$7=1,OR(ABS(Bilanca!I84-PK!O33)>$AC$2, ABS(Bilanca!J84-PK!O62)>$AC$2)),1,0) -> 0 | V71: =IF(AND($O$7=1,OR(ABS(Bilanca!I85-PK!P33)>$AC$2, ABS(Bilanca!J85-PK!P62)>$AC$2)),1,0) -> 0 | W71: =IF(AND($O$7=1,OR(ABS(Bilanca!I87-PK!Q33)>$AC$2, ABS(Bilanca!J87-PK!Q62)>$AC$2)),1,0) -> 0 | X71: =IF(AND($O$7=1,OR(ABS(Bilanca!I88-PK!R33)>$AC$2, ABS(Bilanca!J88-PK!R62)>$AC$2)),1,0) -> 0 | Y71: =IF(AND($O$7=1,OR(ABS(Bilanca!I89-PK!S33)>$AC$2, ABS(Bilanca!J89-PK!S62)>$AC$2)),1,0) -> 0 | Z71: =IF(AND($O$7=1,OR(ABS(Bilanca!I90-PK!T33)>$AC$2, ABS(Bilanca!J90-PK!T62)>$AC$2)),1,0) -> 0 | AA71: =IF(AND($O$7=1,OR(ABS(Bilanca!I91-PK!U33)>$AC$2, ABS(Bilanca!J91-PK!U62)>$AC$2)),1,0) -> 0 | AB71: =IF(AND($O$7=1,OR(ABS(Bilanca!I93-PK!W33)>$AC$2, ABS(Bilanca!J93-PK!W62)>$AC$2)),1,0) -> 0 | AC71: =IF(AND($O$7=1,OR(ABS(Bilanca!I96-PK!X33)>$AC$2, ABS(Bilanca!J96-PK!X62)>$AC$2)),1,0) -> 0 | AD71: =IF(AND($O$7=1,OR(ABS(Bilanca!I99-PK!Z33)>$AC$2, ABS(Bilanca!J99-PK!Z62)>$AC$2)),1,0) -> 0
A72: =A71+1 -> 60 | B72: =IF(L72=1,"Pogreška", IF(M72=1, "Provjera","OK")) -> OK | C72: Ni jedan iznos u dodatnim podacima ne može biti negativan. Iznimno, na AOP oznakama 282 do 284 moguć je i negativan iznos. U slučajnu negativnog iznosa na ovim AOP oznakama kontrola će javiti upozorenje, a u slučaju negativnog iznosa na bilo kojem drugom AOP-u u Dodatnim podacima kontrola javlja pogrešku jer negativni iznosi nisu dopušteni. | L72: =MAX(N72:O72) -> 0 | M72: =MAX(S72:W72) -> 0 | N72: =IF(MIN(Dodatni!I9:J67,Dodatni!I71:I88)<0,1,0) -> 0 | S72: =IF(MIN(Dodatni!I68:J70)<0,1,0) -> 0
A73: Kontrole dodatnih podataka | L73: =MAX(N73:R73) -> 0
A74: =A72+1 -> 61 | B74: =IF(L74=1,"Pogreška", IF(M74=1, "Provjera","OK")) -> OK | C74: Prihod od posredništva (provizija od posredovanja), AOP 246 mora biti manji ili jednak stavci Prihod od trgovine (prodaje roba i usluga nabavljenih isključivo za daljnju prodaju i trgovačkih usluga) - ukupni, AOP 244. | L74: =MAX(N74:R74) -> 0 | N74: =IF(Dodatni!I28>Dodatni!I26,1,0) -> 0 | O74: =IF(Dodatni!J28>Dodatni!J26,1,0) -> 0
A75: =A74+1 -> 62 | B75: OK | C75: Prihod od građevinske djelatnosti kao podugovaratelj (podizvođač) (AOP 249) mora biti manji ili jednak zbroju stavki Prihod od građevinske djelatnosti - radova na zgradama (AOP 247) + Prihod od građevinske djelatnosti - radova na ostalim građevinama (AOP 248). | L75: =MAX(N75:R75) -> 0 | N75: =IF(Dodatni!I31>(Dodatni!I30+Dodatni!I29)+1,1,0) -> 0 | O75: =IF(Dodatni!J31>(Dodatni!J30+Dodatni!J29)+1,1,0) -> 0
A76: 63 | B76: OK | C76: Zbroj AOP oznaka 243+244+247+249+250 do 253 (prihodi po djelatnostima) mora biti jednak zbroju ukupnih prihoda od prodaje (AOP 129+130). U iznimnim slučajevima zbroj prihoda po djelatnosti može biti i veći. Kontrola javlja pogrešku ako je zbroj prihoda po djelatnosti manji od prihoda od prodaje, a upozorenje ako je veći. Kontrola zanemaruje razliku od 0,14€ zbog zaokruživanja. | L76: =MAX(N76:R76) -> 0 | M76: =MAX(S76:W76) -> 0 | N76: =IF(AND($O$4=1,SUM(Dodatni!I25:I26)+SUM(Dodatni!I29:I30)+SUM(Dodatni!I32:I35)-RDG!I9-RDG!I10+0.14<0),1,0) -> 0 | O76: =IF(AND($O$4=1,SUM(Dodatni!J25:J26)+SUM(Dodatni!J29:J30)+SUM(Dodatni!J32:J35)-RDG!J9-RDG!J10+0.14<0),1,0) -> 0 | S76: =IF(AND($O$4=1,SUM(Dodatni!I25:I26)+SUM(Dodatni!I28:I30)+SUM(Dodatni!I32:I35)-RDG!I9-RDG!I10-0.14>0),1,0) -> 0 | T76: =IF(AND($O$4=1,SUM(Dodatni!J25:J26)+SUM(Dodatni!J28:J30)+SUM(Dodatni!J32:J35)-RDG!J9-RDG!J10-0.14>0),1,0) -> 0
A77: 64 | B77: OK | C77: AOP oznaka 260 mora biti manja ili jednaka AOP oznaci 253. | L77: =MAX(N77:R77) -> 0 | N77: =IF(Dodatni!I45>Dodatni!I35,1,0) -> 0 | O77: =IF(Dodatni!J45>Dodatni!J35,1,0) -> 0
A78: 65 | B78: OK | C78: Ako su dodatni podaci popunjeni, zbroj AOP oznaka 254+255 mora biti jednak zbroju AOP oznaka 129+130 u RDG-u uz dopušteno odstupanje od 0,14€. | L78: 0 | N78: =IF(AND($O$4=1,ABS(RDG!I9+RDG!I10-Dodatni!I37-Dodatni!I38)>$AC$2),1,0) -> 0 | O78: =IF(AND($O$4=1,ABS(RDG!J9+RDG!J10-Dodatni!J37-Dodatni!J38)>$AC$2),1,0) -> 0
A79: 66 | B79: OK | C79: AOP 280 mora biti manji ili jednak AOP-u 279. | L79: 0 | N79: =IF(Dodatni!I66>Dodatni!I65,1,0) -> 0 | O79: =IF(Dodatni!J66>Dodatni!J65,1,0) -> 0
A80: 67 | B80: OK | C80: AOP 242 ne smije biti veći od AOP oznake 129. | L80: 0 | N80: =IF(Dodatni!I23>RDG!I9,1,0) -> 0 | O80: =IF(Dodatni!J23>RDG!J9,1,0) -> 0
A81: 68 | B81: OK | C81: AOP 245 ne smije biti veći od AOP oznake 244. | L81: 0 | N81: =IF(Dodatni!I27>Dodatni!I26,1,0) -> 0 | O81: =IF(Dodatni!J27>Dodatni!J26,1,0) -> 0
A82: 69 | B82: OK | C82: AOP 245 ne smije biti veći od AOP oznake 242. | L82: 0 | N82: =IF(Dodatni!I27>Dodatni!I23,1,0) -> 0 | O82: =IF(Dodatni!J27>Dodatni!J23,1,0) -> 0
A83: 70 | B83: OK | C83: AOP 256 ne smije biti veći od AOP oznake 131. | L83: 0 | N83: =IF(Dodatni!I40>RDG!I11,1,0) -> 0 | O83: =IF(Dodatni!J40>RDG!J11,1,0) -> 0
A84: 71 | B84: OK | C84: AOP 257 ne smije biti veći od AOP oznake 132. | L84: 0 | N84: =IF(Dodatni!I42>RDG!I12,1,0) -> 0 | O84: =IF(Dodatni!J42>RDG!J12,1,0) -> 0
A85: 72 | B85: OK | C85: AOP 259 ne smije biti veći od AOP oznake 258. | L85: 0 | N85: =IF(Dodatni!I44>Dodatni!I43,1,0) -> 0 | O85: =IF(Dodatni!J44>Dodatni!J43,1,0) -> 0
A86: 73 | B86: OK | C86: AOP 263 ne smije biti veći od AOP oznake 138. | L86: 0 | N86: =IF(Dodatni!I49>RDG!I18,1,0) -> 0 | O86: =IF(Dodatni!J49>RDG!J18,1,0) -> 0
A87: 74 | B87: OK | C87: AOP 275 ne smije biti veći od AOP oznake 274. | L87: 0 | N87: =IF(Dodatni!I61>Dodatni!I60,1,0) -> 0 | O87: =IF(Dodatni!J61>Dodatni!J60,1,0) -> 0
A88: 75 | B88: OK | C88: AOP 286 ne smije biti veći od AOP oznake 157. | L88: 0 | N88: =IF(Dodatni!I73>RDG!I37,1,0) -> 0 | O88: =IF(Dodatni!J73>RDG!J37,1,0) -> 0
A89: =A88+1 -> 76 | B89: =IF(L89=1,"Pogreška", IF(M89=1, "Provjera","OK")) -> OK | C89: AOP 289 ne smije biti veći od AOP oznake 168. | L89: 0 | N89: =IF(Dodatni!I76>RDG!I48,1,0) -> 0 | O89: =IF(Dodatni!J76>RDG!J48,1,0) -> 0
A90: =A89+1 -> 77 | B90: =IF(L90=1,"Pogreška", IF(M90=1, "Provjera","OK")) -> OK | C90: AOP 296 ne smije biti veći od AOP oznake 290. | L90: 0 | N90: =IF(Dodatni!I78<Dodatni!I84,1,0) -> 0 | O90: =IF(Dodatni!J78<Dodatni!J84,1,0) -> 0
A91: =A90+1 -> 78 | B91: =IF(L91=1,"Pogreška", IF(M91=1, "Provjera","OK")) -> OK | C91: Troškovi energije (AOP 264) trebali bi biti veći od nule ako je poslovni subjekt aktivan. | L91: 0 | M91: =MAX(N91:O91) -> 0 | N91: =IF(AND(P4>0,O8<>"DA",Dodatni!I50=0),1,0) -> 0 | O91: =IF(AND(Q4>0,O8<>"DA",Dodatni!J50=0),1,0) -> 0
A92: =A91+1 -> 79 | B92: =IF(L92=1,"Pogreška", IF(M92=1, "Provjera","OK")) -> OK | C92: Tekući izdaci za odvoz i zbrinjavanje otpada, odvodnju i tretman otpadnih voda te ostali tekući izdaci za zaštitu okoliša (AOP 265) trebali bi biti veći od nule. | L92: 0 | M92: =MAX(N92:O92) -> 0 | N92: =IF(AND(P4>0,O8<>"DA",Dodatni!I51=0),1,0) -> 0 | O92: =IF(AND(Q4>0,O8<>"DA",Dodatni!J51=0),1,0) -> 0
A93: 80 | B93: =IF(L93=1,"Pogreška", IF(M93=1, "Provjera","OK")) -> OK | C93: Iznos na stavci Prihodi od subvencija-ukupni (AOP 258), u pravilu ne bi smio biti veći od zbroja AOP oznaka 132 + 133. | L93: 0 | M93: =MAX(N93:O93) -> 0 | N93: =IF(Dodatni!I43>SUM(RDG!I12:I13),1,0) -> 0 | O93: =IF(Dodatni!J43>SUM(RDG!J12:J13),1,0) -> 0
A94: 81 | B94: OK | C94: Troškovi robe i usluga nabavljenih za daljnju prodaju, a uključenih u vlastite proizvode i/ili usluge (AOP 266) ne bi smjeli biti veći od zbroja prihoda svih djelatnosti (osim prihoda od trgovine - AOP 244). Kontrola upozorava ako je AOP 266 veći od zbroja AOP-a 243 + 247 + 248 + 250 do 253. | L94: 0 | M94: =MAX(N94:O94) -> 0 | N94: =IF(Dodatni!I52>(Dodatni!I25+Dodatni!I29+Dodatni!I30+SUM(Dodatni!I32:I35)),1,0) -> 0 | O94: =IF(Dodatni!J52>(Dodatni!J25+Dodatni!J29+Dodatni!J30+SUM(Dodatni!J32:J35)),1,0) -> 0
A95: 82 | B95: OK | C95: Troškovi robe i usluga nabavljenih za daljnju prodaju, a uključenih u vlastite proizvode i/ili usluge (AOP 266) trebali bi biti manji ili jednaki AOP oznaci 138. | L95: 0 | M95: =MAX(N95:O95) -> 0 | N95: =IF(Dodatni!I52>RDG!I18,1,0) -> 0 | O95: =IF(Dodatni!J52>RDG!J18,1,0) -> 0
A96: 83 | B96: OK | C96: Kontrola upozorenja na broj zaposlenih upozorava ako je promjena broja zaposlenih iz godine u godinu neuobičajeno velika ili ako je razlika između broja zaposlenih prema satima rada i prosjeka broja zaposlenih veća od 20%. Ako se javi ovo upozorenje, provjerite upisane podatke jer postoji mogućnost da je broj zaposlenih u nekom polju pogrešno upisan. | L96: 0 | M96: =MAX(N96:W96) -> 0 | N96: =IF(AND(P9=0,Q9>2,P8>0),1,0) -> 0 | O96: =IF(AND(P10=0,Q10>2,P8>0),1,0) -> 0 | P96: =IF(AND(P9>2,Q9=0,P8>0),1,0) -> 0 | Q96: =IF(AND(P10>2,Q10=0,P8>0),1,0) -> 0 | R96: =IF(AND(P9+Q9>10,OR(P9<0.39*(P9+Q9),Q9<0.39*(P9+Q9))),1,0) -> 0 | S96: =IF(AND(P10+Q10>10,OR(P10<0.39*(P10+Q10),Q10<0.39*(P10+Q10))),1,0) -> 0 | T96: =IF(AND(P9+P10>10,OR(P9<0.39*(P9+P10),P10<0.39*(P9+P10))),1,0) -> 0 | U96: =IF(AND(Q9+Q10>10,OR(Q9<0.39*(Q9+Q10),Q10<0.39*(Q9+Q10))),1,0) -> 0
A97: 84 | B97: OK | C97: Kontrola broja neplaćenih osoba upozorava ako je broj neplaćenih osoba neuobičajeno velik (veći od 3 i veći od 10% prosjeka broja zaposlenih na referentnoj stranici). Provjerite upisani broj neplaćenih osoba pod AOP oznakom 299. | L97: 0 | M97: 0 | N97: =IF(AND(Dodatni!I88>3,Dodatni!I88>0.1*Kont!P10),1,0) -> 0 | O97: =IF(AND(Dodatni!J88>3,Dodatni!J88>0.1*Kont!Q10),1,0) -> 0
A98: 85 | B98: OK | C98: Porezi koji ne ovise o dobitku i pristojbe (AOP 276) trebali bi biti veći od nule. | L98: 0 | M98: 0 | N98: =IF(AND($O$8<>"DA",P4>0,Dodatni!I62=0),1,0) -> 0 | O98: =IF(AND($O$8<>"DA",Q4>0,Dodatni!J62=0),1,0) -> 0
A99: 86 | B99: =IF(L99=1,"Pogreška", IF(M99=1, "Provjera","OK")) -> OK | C99: AOP 297 mora biti manji ili jednak AOP oznaci 290 osim u iznimnim situacijama. Ako se kontrola javlja, provjerite upisane podatke pod navedenim AOP oznakama. | L99: 0 | M99: 0 | N99: =IF(Dodatni!I85>Dodatni!I78,1,0) -> 0 | O99: =IF(Dodatni!J85>Dodatni!J78,1,0) -> 0
A100: 87 | B100: OK | C100: AOP 298 mora biti manji ili jednak sumi AOP oznaka 290 i 295 osim u iznimnim situacijama. Ako se kontrola javlja, provjerite upisane podatke pod navedenim AOP oznakama. | L100: 0 | M100: 0 | N100: =IF(Dodatni!I86>(Dodatni!I78+Dodatni!I83),1,0) -> 0 | O100: =IF(Dodatni!J86>(Dodatni!J78+Dodatni!J83),1,0) -> 0
A101: 88 | B101: OK | C101: Poslovni subjekt koji je u stavci Status autonomnosti odabrao 2, 3, 5, 6 ili 7, (član grupe), trebao bi imati neki od poslovnih prihoda ostvaren unutar grupe (AOP 129 ili 132). Ako zaista nisu realizirani poslovni prihodi unutar grupe kontrolu zanemarite. | L101: 0 | M101: 0 | N101: =IF(AND(OR(S7=2,S7=3,S7=5,S7=6,S7=7),MIN(RDG!I9:J9,RDG!I12:J12)=0),1,0) -> 0
A102: 89 | B102: OK | C102: Ako su dodatni podaci popunjeni, zbroj AOP oznaka 231 do 233 trebao bi biti manji ili jednak zbroju AOP oznaka 023+026+028+030+056+059+061+062. | L102: 0 | M102: 0 | N102: =IF(AND(P4>0,SUM(Bilanca!I31+Bilanca!I34+Bilanca!I36+Bilanca!I38+Bilanca!I64+Bilanca!I67+Bilanca!I69+Bilanca!I70)<SUM(Dodatni!I10:I12)),1,0) -> 0 | O102: =IF(AND(Q4>0,SUM(Bilanca!J31+Bilanca!J34+Bilanca!J36+Bilanca!J38+Bilanca!J64+Bilanca!J67+Bilanca!J69+Bilanca!J70)<SUM(Dodatni!J10:J12)),1,0) -> 0
A103: 90 | B103: OK | C103: Ako su dodatni podaci popunjeni, zbroj AOP oznaka 234 do 236 trebao bi biti manji ili jednak zbroju AOP oznaka 031+046+125. | L103: 0 | M103: 0 | N103: =IF(AND(P4>0,SUM(Bilanca!I39+Bilanca!I54+Bilanca!I134)<SUM(Dodatni!I13:I15)),1,0) -> 0 | O103: =IF(AND(Q4>0,SUM(Bilanca!J39+Bilanca!J54+Bilanca!J134)<SUM(Dodatni!J13:J15)),1,0) -> 0
A104: 91 | B104: OK | C104: Ako su dodatni podaci popunjeni, zbroj AOP oznaka 237 do 239 trebao bi biti manji ili jednak zbroju AOP oznaka 100+102+103+104+112+114+115+116. | L104: 0 | M104: 0 | N104: =IF(AND(P4>0,SUM(Bilanca!I109+Bilanca!I111+Bilanca!I112+Bilanca!I113+Bilanca!I121+Bilanca!I123+Bilanca!I124+Bilanca!I125)<SUM(Dodatni!I17:I19)),1,0) -> 0 | O104: =IF(AND(Q4>0,SUM(Bilanca!J109+Bilanca!J111+Bilanca!J112+Bilanca!J113+Bilanca!J121+Bilanca!J123+Bilanca!J124+Bilanca!J125)<SUM(Dodatni!J17:J19)),1,0) -> 0
A105: 92 | B105: OK | C105: Ako su dodatni podaci popunjeni, zbroj AOP oznaka 240 i 241 trebao bi biti manji ili jednak zbroju AOP oznaka 064+105+106+117+118. | L105: 0 | M105: 0 | N105: =IF(AND(P4>0,SUM(Bilanca!I72+Bilanca!I114+Bilanca!I115+Bilanca!I126+Bilanca!I127)<SUM(Dodatni!I20:I21)),1,0) -> 0 | O105: =IF(AND(Q4>0,SUM(Bilanca!J72+Bilanca!J114+Bilanca!J115+Bilanca!J126+Bilanca!J127)<SUM(Dodatni!J20:J21)),1,0) -> 0
A106: =A105+1 -> 93 | B106: =IF(L106=1,"Pogreška", IF(M106=1, "Provjera","OK")) -> OK | C106: Ako su Dodatni podaci popunjeni, Prihodi od prodaje s poduzetnicima unutar grupe, rezidentima RH, AOP 242 moraju biti manji ili jednaki stavci Prihodi od prodaje u zemlji, AOP 254. Ako je iznos na AOP poziciji 242 veći - javlja se pogreška. | L106: =MAX(N106:R106) -> 0 | M106: 0 | N106: =IF(AND($S$5<>2,Dodatni!I23>Dodatni!I37),1,0) -> 0 | O106: =IF(AND($S$5<>2,Dodatni!J23>Dodatni!J37),1,0) -> 0
A107: 94 | B107: =IF(L107=1,"Pogreška", IF(M107=1, "Provjera","OK")) -> OK | C107: Ako su Dodatni podaci popunjeni, Prihodi od prodaje unutar grupe ostvareni s nerezidentima RH (razlika AOP oznaka 129 i 242) moraju biti manji ili jednaki stavci Prihodi od prodaje u inozemstvu, AOP 255. | L107: =MAX(N107:R107) -> 0 | M107: 0 | N107: =IF(AND($S$5<>2,RDG!I9-Dodatni!I23>Dodatni!I38),1,0) -> 0 | O107: =IF(AND($S$5<>2,RDG!J9-Dodatni!J23>Dodatni!J38),1,0) -> 0
A108: =A107+1 -> 95 | B108: OK | C108: Postavke Reginal Settingsa na ovom računalu su pogrešne. Ako je ova kontrola pogrešna znači da postavke na računalu nisu primjerene hrvatskom pravopisu. Prema hrvatskom pravopisu, tisuće se odvajaju točkom, a decimalna mjesta se odvajaju zarezom. Ova pogreška ne znači da je obrazac matematičke ili logički neispravan, već da zbog postavke ovog računala obrazac neće biti moguće učitati kroz aplikaciju. Potrebno je u Control Panel-u, opcija Regional Settings ili Regional And Language Options postaviti formate brojeva na način da se tisuće odvajaju točkom (digit group symbol), a decimalna mjesta zarezom (decimal symbol). Datoteku snimljenu na računalu sa ovakvim postavkama biti će moguće učitati. | L108: =MAX(N108:R108) -> 0 | N108: =IF(MID(P108,2,1)<> ".",1,0) -> 0 | O108: =IF(MID(P108,6,1)<> ",",1,0) -> 0 | P108: =TEXT(1000.1,"#.000,00") -> 1.000,10
A109: Kontrole popunjenosti podataka i primjene poslovnih pravila - moraju biti zadovoljene
A110: =A108+1 -> 96 | B110: =IF(L110=1,"Pogreška", IF(M110=1, "Provjera","OK")) -> OK | C110: Bilanca i Račun dobiti i gubitka predaju se u svim slučajevima. Podaci moraju biti popunjeni u onim stupcima u kojima je broj mjeseci poslovanja veći od nule. Izuzetak su poduzetnici koji nisu bili poslovno aktivni. Oni na Referentnoj stranici upisuju broj mjeseci poslovanja, ali moraju označiti da su bili poslovno neaktivni te tada mogu Račun dobiti i gubitka imati prazan i za stupac u kojem je broj mjeseci poslovanja veći od nule, ali se smatra kao da je popunjen. | L110: =MAX(N110:S110) -> 0 | N110: =IF(OR(AND(P2=0,P8>0),AND(P2>0,P8=0)),1,0) -> 0 | O110: =IF(OR(AND(Q2=0,Q8>0),AND(Q2>0,Q8=0)),1,0) -> 0 | P110: =IF(OR(AND(P3=0,P8>0,AC4<>"DA"),AND(P3>0,P8=0)),1,0) -> 0 | Q110: =IF(OR(AND(Q3=0,Q8>0,O8<>"DA"),AND(Q3=1,Q8=0)),1,0) -> 0
A111: =A110+1 -> 97 | B111: OK | C111: Obrazac Dodatni podaci obavezno se popunjava ako se izvještaj predaje za statističke svrhe ili istovremeno za statističke svrhe i za javnu objavu. Dodatni podaci se popunjavaju uz vrste izvještaja 10, 11, 20, 30 i 40. Obveznici koji su na referentnoj stranici označili da su poslovno neaktivni ne moraju popuniti dodatne podatke. U tom će slučaju kontrola upozoriti da su Dodatni podaci prazni. Kontrola javlja pogrešku ako obrazac Dodatni podaci nije popunjeni kada je predaja u statističke svrhe ili je popunjen, a predaja je samo u svrhu javne objave. Dodatni podaci mora biti popunjen u svim stupcima u kojima je broj mjeseci poslovanja veći od nule. | L111: =MAX(N111:T111) -> 0 | M111: =MAX(U111:W111) -> 0 | N111: =IF(AND(S5<>2,AND(P4=0,AC4<>"DA",P8>0)),1,0) -> 0 | O111: =IF(AND(S5<>2,AND(Q4=0,O8<>"DA",Q8>0)),1,0) -> 0 | P111: =IF(AND(S5=2,OR(P4>0,Q4>0)),1,0) -> 0 | Q111: =IF(AND(O4>0,S2<>10,S2<>11,S2<>20,S2<>30,S2<>40),1,0) -> 0 | U111: =IF(AND(S5<>2,AND(P4=0,P8>0)),1,0) -> 0 | V111: =IF(AND(S5<>2,AND(Q4=0,Q8>0)),1,0) -> 0
A112: =A111+1 -> 98 | B112: OK | C112: Bilješke uz financijske izvještaje predaju se u svrhu javne objave (samo za javnu objavu ili za javnu objavu i statistiku) uz sve vrste izvještaja, a ne predaju se ako je svrha predaje samo u statističke potrebe. Pogreška je kada je u Općim podacima označeno "NE", a treba biti "DA" ili nije upisano ni "NE" ni "DA". | L112: =MAX(N112:O112) -> 0 | N112: =IF(AND(S5=1,AA8<>"NE"),1,0) -> 0 | O112: =IF(AND(S5>1,AA8<>"DA"),1,0) -> 0
A113: 99 | B113: OK | C113: Izvještaj o novčanim tokovima moraju popuniti srednji i veliki poduzetnici ako predaju izvještaj u svrhu javne objave. Ovisno o primjeni računovodstvenih politika poduzetnik popunjava jedan izvještaj, po indirektnoj ili direktnoj metodi. Kontrola javlja pogrešku ako su popunjena oba izvještaja, ili nije ni jedan, a poduzetnik ga je dužan popuniti. Ovaj izvještaj se ne popunjava ako je svrha predaje samo statistika te ako je veličina poduzetnika mikro ili mali. U svakoj godini (tekuća ili prethodna) gdje je broj mjeseci poslovanja veći od nule, moraju biti upisani podaci i u ovaj izvještaj. | L113: =IF(SUM(N113:S113)>0,1,0) -> 0 | N113: =IF(AND(S5=1,OR(O5<>0,O6<>0)),1,0) -> 0 | O113: =IF(AND(S3<3,OR(O5<>0,O6<>0)),1,0) -> 0 | P113: =IF(AND(O5<>0,O6<>0),1,0) -> 0 | Q113: =IF(AND(S3>2,S5>1,AND(O5=0,O6=0)),1,0) -> 0 | R113: =IF(AND(O5<>0,OR(P2<>P5,Q2<>Q5)),1,0) -> 0 | S113: =IF(AND(O6<>0,OR(P2<>P6,Q2<>Q6)),1,0) -> 0
A114: 100 | B114: OK | C114: Izvještaj o promjenama kapitala moraju popuniti svi srednji i veliki poduzetnici koji predaju izvještaj u svrhu javne objave. Ovaj izvještaj se ne popunjava ako je svrha predaje samo za statističke potrebe te ako je veličina poduzetnika mikro ili mali. | L114: =IF(SUM(N114:Q114)>0,1,0) -> 0 | N114: =IF(AND(S5=1,O7<>0),1,0) -> 0 | O114: =IF(AND(S3<3,O7<>0),1,0) -> 0 | P114: =IF(AND(S3>2,S5>1,O7=0),1,0) -> 0 | Q114: =IF(AND(O7<>0,OR(P2<>P7,Q2<>Q7)),1,0) -> 0
A115: 101 | B115: OK | C115: Godišnje izvješće dužni su dostaviti srednji i veliki poduzetnici i to kada se izvještaj predaje za potrebe javne objave, i za vrste izvještaja 10 i 11. | L115: =MAX(N115:R115) -> 0 | N115: =IF(AND(S5=1,AA9="DA"),1,0) -> 0 | O115: =IF(AND(S3<3,AA9="DA"),1,0) -> 0 | P115: =IF(AND(AA9="DA",S2<>10,S2<>11,S2<>20,S2<>30),1,0) -> 0 | Q115: =IF(AND(AA9="NE",S2<12,S3>2,S5>1),1,0) -> 0
A116: 102 | B116: OK | C116: Odluka o raspodjeli dobiti ili pokriću gubitka predaje se za sve veličine poduzetnika, uz izvještaje s oznakom vrste izvještaja 10 i 11. Za vrste izvještaja 20 i 30 ova odluka može se predati, ali nije obvezna dok se uz ostale vrste izvještaja kao ni uz konsolidirane izvještaje ne predaje. | L116: =MAX(N116:R116) -> 0 | N116: =IF(AND(S2<>10,S2<>11,S2<>20,S2<>30,Y9="DA"),1,0) -> 0 | O116: =IF(AND(Y9="DA",RefStr!C19<2),1,0) -> 0 | P116: =IF(AND(RefStr!C19>1,Y9<>"DA",S2=10,S6<>"DA"),1,0) -> 0 | Q116: =IF(AND(RefStr!C19>1,Y9<>"DA",S2=11,S6<>"DA"),1,0) -> 0 | R116: =IF(AND(S6="DA",Y9="DA"),1,0) -> 0
A117: 103 | B117: OK | C117: Odluka o utvrđivanju godišnjeg izvještaja predaje se za sve veličine poduzetnika, i to za izvještaje s oznakom vrste izvještaja 10 i 11 - ako je svrha predaje javna objava. Kod vrsta izvještaja 20 i 30 odluka se može predati ali i ne mora (zavisi od stečajnog ili likvidacijskog upravitelja). | L117: =MAX(N117:S117) -> 0 | N117: =IF(AND(RefStr!C19=1,Y4="DA"),1,0) -> 0 | O117: =IF(AND(Y4="DA",S2<>10,S2<>11,S2<>20,S2<>30),1,0) -> 0 | P117: =IF(AND(S2=10,RefStr!C19>1,Y4<> "DA"),1,0) -> 0 | Q117: =IF(AND(S2=11,RefStr!C19>1,Y4<> "DA"),1,0) -> 0
A118: 104 | B118: OK | C118: Izvještaji s oznakom vrste izvještaja 11 ne mogu biti istovremeno predani u svrhu javne objave i statistike jer se izvještaj za statistiku predaje za kalendarsku godinu, dok se izvještaj za javnu objavu predaje za poslovnu godinu koja je kod vrste izvještaja 11 različita od kalendarske, pa shodno tome podaci za dva različita razdoblja ne mogu biti identični. | L118: =MAX(N118:S118) -> 0 | N118: =IF(AND(S2=11,S5=3),1,0) -> 0
A119: 105 | B119: OK | C119: Kontrola na datum od i datum do te na broj mjeseci poslovanja. Ako izvještaj nije vrste izvještaja 30 te za svrhu javne objave, broj mjeseci poslovanja ne može biti veći od 12 i ne može biti nula u stupcu tekuće godine. Ako stvarno razdoblje poslovanja u tekućoj godini nije 1.1. do 31.12., broj mjeseci poslovanja mora odgovarati trajanju razdoblja datuma od i datuma do Računa dobiti u gubitka. Ako su u stupcu prethodne godine upisani podaci i broj mjeseci poslovanja mora biti veći od nule (vrijedi i obratno). Samo kod predaje vrste izvještaja 30 u svrhu javne objave datum od i datum do razdoblja mogu biti i duži od godine dana, pa može i broj mjeseci poslovanja biti veći od 12, a u tom slučaju stupac prethodne godine mora biti prazan. Vrsta izvještaja 10 ne može imati završni datum drugačiji od 31.12. osim u iznimnim slučajevima kad se tvrtka zatvara po ubrzanom postupku bez stečaja ili likvidacije. U tom slučaju, kontrola javlja upozorenje. Vrsta izvještaja 11 kod predaje za javnu objavu ne može imati završni datum 31.12., ali kod predaje za statistiku mora imati 31.12. Ni u jednom obrascu ne mogu biti popunjeni podaci za stupac godine u kojem je broj mjeseci poslovanja nula. | L119: =MAX(N119:O119,Q119:S119) -> 0 | M119: =P119 -> 0 | N119: =IF(OR(P8>12,P8<0,Q8<=0,Q8<U119,Q8>V119,S8>=S9),1,0) -> 0 | O119: =IF(AND(P8 = 0,MAX(P2:P7)=1),1,0) -> 0 | P119: =IF(AND(S2=10,OR(MONTH(S9)<>12,DAY(S9)<>31)),1,0) -> 0 | Q119: =IF(AND(S2=11,S5=1,OR(MONTH(S9)<>12,DAY(S9)<>31)),1,0) -> 0 | R119: =IF(AND(S2=11,MONTH(S9)=12,DAY(S9)=31,RefStr!C19=2),1,0) -> 0 | U119: =IF(X119-ROUNDDOWN(X119,1)>0.6,ROUNDUP(X119,0),ROUNDDOWN(X119,0)) -> 11 | V119: =IF(IF(X119-ROUNDDOWN(X119,0)>0.4,ROUNDUP(X119,0),ROUNDDOWN(X119,0))=0,1,IF(X119-ROUNDDOWN(X119,0)>0.4,ROUNDUP(X119,0),ROUNDDOWN(X119,0))) -> 12 | X119: =(S9-S8) / (365.25/12) -> 11.99178645
A120: 106 | B120: OK | C120: Pogrešan tip datoteke. Kako je moguće da i novije i starije verzije Microsoft Excel-a rade sa starijim tipom datoteka, za predaju u Finu zadržan je stariji tip Excel datoteka jer je kompatibilan i sa svim verzijama Excel-a te je s te strane pogodan za rad i korisnicima s novim i sa starim verzijama Microsoft Excel-a. Noviji format Excel datoteka ima u nazivu nastavak ".xlsx", dok stari tip ima nastavak ".xls". Ako je ova kontrola pogrešna, znači da datoteka u nazivu ima tekst ".xlsx" tj. da je pretvorena u novi format. Da bi se datoteka mogla učitati u Finine aplikacije potrebno ju je prije predaje snimiti u stariju verziju. Potrebno je odabrati "File" > "Save As" te pod "File Type" odabrati "Microsoft Excel 97-2003 workbook" (za englesku verziju Excel-a) ili "Datoteka" > "Spremi kao..." te odabrati "Microsoft Excel 97-2003 radna knjiga" u hrvatskoj verziji Office-a. U tom slučaju će se i u nazivu datoteke ".xlsx" pretvoriti u ".xls", datoteku će biti moguće poslati putem web-a ili učitati u poslovnici Fine, a ova kontrola neće javljati pogrešku. | L120: =MAX(N120:N120) -> 0 | N120: =IF(ISERROR(P120),0,1) -> 0 | O120: =CELL("filename") -> D:\DL\izvješća\2024\[Godišnji financijski izvještaj poduzetnika – Javna objava.xls]NT_D | P120: =FIND(".XLSX", UPPER(O120),1) -> 
A121: 107 | B121: OK | C121: Upozorenje zaposlene i troškove osoblja. Ova kontrola upozorava u slučaju da postoje značajni troškovi osoblja ( veći od 5300 EUR-a), a broj zaposlenih krajem razdoblje ili prema satima rada je nula. Ako postoje isplate zaposlenima - moraju postojati i zaposleni, izuzetak su slučajevi gdje se radi o jednom zaposlenom koji radi tek mjesec-dva tokom godine pa je prosječan broj zaposlenih kroz cijelu godinu nula. Kontrola uspoređuje podatke iz prethodne godine i podatke iz tekuće i ovaj uvjet u oba stupca podataka treba biti zadovoljen (osim u spomenutim posebnim slučajevima). | L121: 0 | M121: =MAX(N121:O121) -> 0 | N121: =IF(AND(RDG!I21>40000,W10<2023,OR(P9=0,P10=0)),1,0) -> 0 | O121: =IF(AND(RDG!J21>40000,W10<2023,OR(Q9=0,Q10=0)),1,0) -> 0 | P121: =IF(AND(RDG!I21>5300,W10>2022,OR(P9=0,P10=0)),1,0) -> 0 | Q121: =IF(AND(RDG!J21>5300,W10>2022,OR(Q9=0,Q10=0)),1,0) -> 0
AN122: 0
